Publisher Label,Publisher URI,Body Name,Service Area Categorisation,Service Division Categorisation,Expenses Type,Date,Transaction Number,Amount,Capital or Revenue,Supplier Name,Merchant Category
Peterborough,http://opendatacommunities.org/id/unitary-authority/peterborough,Peterborough City Council,Children's & Education Services - Children's Social Care,Children Looked After,Supplies and Services - Transfer Payments,03/01/2012 00:00,384183,3011.43,REVENUE,Nene Valley Fostering Agency,
Peterborough,http://opendatacommunities.org/id/unitary-authority/peterborough,Peterborough City Council,Children's & Education Services - Children's Social Care,Children Looked After,Supplies and Services - Transfer Payments,03/01/2012 00:00,401759,3216,REVENUE,Key2,
Peterborough,http://opendatacommunities.org/id/unitary-authority/peterborough,Peterborough City Council,Children's & Education Services - Children's Social Care,Children Looked After,Supplies and Services - Transfer Payments,03/01/2012 00:00,422420,2357.14,REVENUE,MJ Childrens Services,
Peterborough,http://opendatacommunities.org/id/unitary-authority/peterborough,Peterborough City Council,Children's & Education Services - Children's Social Care,Children Looked After,Supplies and Services - Transfer Payments,03/01/2012 00:00,422422,15300,REVENUE,MJ Childrens Services,
Peterborough,http://opendatacommunities.org/id/unitary-authority/peterborough,Peterborough City Council,Cultural and Related Services,Culture & Heritage,Supplies and Services,03/01/2012 00:00,422468,1140,REVENUE,Papa Luigi Franchise 90 Limited,
Peterborough,http://opendatacommunities.org/id/unitary-authority/peterborough,Peterborough City Council,Children's & Education Services - Education,Non-School Funding,Supplies and Services,03/01/2012 00:00,422477,22411,REVENUE,Treloar School,
Peterborough,http://opendatacommunities.org/id/unitary-authority/peterborough,Peterborough City Council,Children's & Education Services - Children's Social Care,Youth Justice,Premises,03/01/2012 00:00,422524,651.6,REVENUE,Cording Asset Manage. LLP Client A/C,
Peterborough,http://opendatacommunities.org/id/unitary-authority/peterborough,Peterborough City Council,Children's & Education Services - Children's Social Care,Youth Justice,Premises,03/01/2012 00:00,422526,649.2,REVENUE,Cording Asset Manage. LLP Client A/C,
Peterborough,http://opendatacommunities.org/id/unitary-authority/peterborough,Peterborough City Council,Support Services,Support Services,Supplies and Services,03/01/2012 00:00,422554,759.38,REVENUE,AXA PPP Healthcare OHS Ltd,
Peterborough,http://opendatacommunities.org/id/unitary-authority/peterborough,Peterborough City Council,Capital,Capital,Capital Pending Update to BS,03/01/2012 00:00,422568,4590,CAPITAL,Telensa Limited,
Peterborough,http://opendatacommunities.org/id/unitary-authority/peterborough,Peterborough City Council,Children's & Education Services - Children's Social Care,Children Looked After,Supplies and Services - Transfer Payments,03/01/2012 00:00,422587,12900,REVENUE,MJ Childrens Services,
Peterborough,http://opendatacommunities.org/id/unitary-authority/peterborough,Peterborough City Council,Children's & Education Services - Children's Social Care,Children Looked After,Supplies and Services - Transfer Payments,03/01/2012 00:00,422589,12900,REVENUE,MJ Childrens Services,
Peterborough,http://opendatacommunities.org/id/unitary-authority/peterborough,Peterborough City Council,Children's & Education Services - Children's Social Care,Children Looked After,Supplies and Services - Transfer Payments,03/01/2012 00:00,422595,11700,REVENUE,MJ Childrens Services,
Peterborough,http://opendatacommunities.org/id/unitary-authority/peterborough,Peterborough City Council,Support Services,Support Services,Supplies and Services,03/01/2012 00:00,422612,666,REVENUE,Key People Ltd,
Peterborough,http://opendatacommunities.org/id/unitary-authority/peterborough,Peterborough City Council,Children's & Education Services - Education,Non-School Funding,Supplies and Services,03/01/2012 00:00,422652,2160,REVENUE,Top Class Tutors,
Peterborough,http://opendatacommunities.org/id/unitary-authority/peterborough,Peterborough City Council,Children's & Education Services - Education,Non-School Funding,Supplies and Services,03/01/2012 00:00,422653,2112,REVENUE,Top Class Tutors,
Peterborough,http://opendatacommunities.org/id/unitary-authority/peterborough,Peterborough City Council,Children's & Education Services - Education,Non-School Funding,Supplies and Services,03/01/2012 00:00,422654,780,REVENUE,Top Class Tutors,
Peterborough,http://opendatacommunities.org/id/unitary-authority/peterborough,Peterborough City Council,Children's & Education Services - Education,Non-School Funding,Supplies and Services,03/01/2012 00:00,422659,2112,REVENUE,Top Class Tutors,
Peterborough,http://opendatacommunities.org/id/unitary-authority/peterborough,Peterborough City Council,Children's & Education Services - Children's Social Care,Family Support Services,Third Party Payments,03/01/2012 00:00,422746,40000,REVENUE,Caverstede Early Years Centre,
Peterborough,http://opendatacommunities.org/id/unitary-authority/peterborough,Peterborough City Council,Support Services,Support Services,Premises,03/01/2012 00:00,422856,612,REVENUE,Clouds,
Peterborough,http://opendatacommunities.org/id/unitary-authority/peterborough,Peterborough City Council,Children's & Education Services - Children's Social Care,Children Looked After,Supplies and Services,03/01/2012 00:00,422886,697.68,REVENUE,Excell Network Solutions Ltd,
Peterborough,http://opendatacommunities.org/id/unitary-authority/peterborough,Peterborough City Council,"Highways, Roads & Transport Services",Traffic management & Road Safety,Supplies and Services,03/01/2012 00:00,423193,792,REVENUE,Red Zulu Limited,
Peterborough,http://opendatacommunities.org/id/unitary-authority/peterborough,Peterborough City Council,Children's & Education Services - Children's Social Care,Children Looked After,Premises,03/01/2012 00:00,423291,795,REVENUE,Italian Community Association,
Peterborough,http://opendatacommunities.org/id/unitary-authority/peterborough,Peterborough City Council,Children's & Education Services - Education,Non-School Funding,Supplies and Services,03/01/2012 00:00,423292,750,REVENUE,IMB Property Maintenance,
Peterborough,http://opendatacommunities.org/id/unitary-authority/peterborough,Peterborough City Council,Planning Services,Community Safety (CCTV),Supplies and Services,03/01/2012 00:00,423310,8892.16,REVENUE,Quadrant Security Group Ltd,
Peterborough,http://opendatacommunities.org/id/unitary-authority/peterborough,Peterborough City Council,Children's & Education Services - Children's Social Care,Other Children's & Families Services,Employees,03/01/2012 00:00,423315,1272.96,REVENUE,Sanctuary Personnel Ltd,
Peterborough,http://opendatacommunities.org/id/unitary-authority/peterborough,Peterborough City Council,Environmental and Regulatory Services,Regulatory services,Third Party Payments,03/01/2012 00:00,423322,11538.87,REVENUE,Midland Environmental Contracts Ltd,
Peterborough,http://opendatacommunities.org/id/unitary-authority/peterborough,Peterborough City Council,Central Services to the Public,Registrar,Premises,03/01/2012 00:00,423416,3549,REVENUE,The Lawns(Peterborough) Ltd,
Peterborough,http://opendatacommunities.org/id/unitary-authority/peterborough,Peterborough City Council,Planning Services,Economic Development,Employees,03/01/2012 00:00,423428,1355.86,REVENUE,The Synergy Group,
Peterborough,http://opendatacommunities.org/id/unitary-authority/peterborough,Peterborough City Council,Planning Services,Economic Development,Employees,03/01/2012 00:00,423429,1301.62,REVENUE,The Synergy Group,
Peterborough,http://opendatacommunities.org/id/unitary-authority/peterborough,Peterborough City Council,Planning Services,Economic Development,Employees,03/01/2012 00:00,423435,1710.58,REVENUE,The Synergy Group,
Peterborough,http://opendatacommunities.org/id/unitary-authority/peterborough,Peterborough City Council,Planning Services,Economic Development,Employees,03/01/2012 00:00,423438,1870.02,REVENUE,The Synergy Group,
Peterborough,http://opendatacommunities.org/id/unitary-authority/peterborough,Peterborough City Council,Planning Services,Economic Development,Employees,03/01/2012 00:00,423439,1150.57,REVENUE,The Synergy Group,
Peterborough,http://opendatacommunities.org/id/unitary-authority/peterborough,Peterborough City Council,Children's & Education Services - Children's Social Care,Other Children's & Families Services,Employees,03/01/2012 00:00,423443,1554,REVENUE,Blue Group International Ltd,
Peterborough,http://opendatacommunities.org/id/unitary-authority/peterborough,Peterborough City Council,Capital,Capital,Capital Pending Update to BS,03/01/2012 00:00,423516,1272,CAPITAL,Atkins Limited,
Peterborough,http://opendatacommunities.org/id/unitary-authority/peterborough,Peterborough City Council,Children's & Education Services - Children's Social Care,Children Looked After,Employees,03/01/2012 00:00,423521,799.2,REVENUE,Frontline Staffing Ltd,
Peterborough,http://opendatacommunities.org/id/unitary-authority/peterborough,Peterborough City Council,Support Services,Support Services,Employees,03/01/2012 00:00,423526,1527.37,REVENUE,Venn Group Ltd,
Peterborough,http://opendatacommunities.org/id/unitary-authority/peterborough,Peterborough City Council,Children's & Education Services - Children's Social Care,Family Support Services,Employees,03/01/2012 00:00,423527,806.04,REVENUE,PAM Recruitment Ltd,
Peterborough,http://opendatacommunities.org/id/unitary-authority/peterborough,Peterborough City Council,Adult Social Care,Service Strategy,Supplies and Services,03/01/2012 00:00,423528,21600,REVENUE,Veredus,
Peterborough,http://opendatacommunities.org/id/unitary-authority/peterborough,Peterborough City Council,Support Services,Support Services,Employees,03/01/2012 00:00,423529,1326.67,REVENUE,Venn Group Ltd,
Peterborough,http://opendatacommunities.org/id/unitary-authority/peterborough,Peterborough City Council,Children's & Education Services - Children's Social Care,Children Looked After,Supplies and Services,03/01/2012 00:00,423559,1781.97,REVENUE,XMA Limited,
Peterborough,http://opendatacommunities.org/id/unitary-authority/peterborough,Peterborough City Council,Children's & Education Services - Children's Social Care,Other Children's & Families Services,Employees,03/01/2012 00:00,423633,1658.78,REVENUE,Blue Group International Ltd,
Peterborough,http://opendatacommunities.org/id/unitary-authority/peterborough,Peterborough City Council,Children's & Education Services - Education,Primary,Supplies and Services,03/01/2012 00:00,423648,21300,REVENUE,Cambridgeshire County Council,
Peterborough,http://opendatacommunities.org/id/unitary-authority/peterborough,Peterborough City Council,Children's & Education Services - Education,Non-School Funding,Employees,03/01/2012 00:00,423673,6672.6,REVENUE,Top Class Tutors,
Peterborough,http://opendatacommunities.org/id/unitary-authority/peterborough,Peterborough City Council,Support Services,Support Services,Supplies and Services,03/01/2012 00:00,423679,1800,REVENUE,Lorensbergs Ltd,
Peterborough,http://opendatacommunities.org/id/unitary-authority/peterborough,Peterborough City Council,Children's & Education Services - Education,Non-School Funding,Employees,03/01/2012 00:00,423688,720,REVENUE,Mana Resourcing Ltd,
Peterborough,http://opendatacommunities.org/id/unitary-authority/peterborough,Peterborough City Council,Children's & Education Services - Children's Social Care,Family Support Services,Supplies and Services,03/01/2012 00:00,423704,3310,REVENUE,Anglia Support Partnership,
Peterborough,http://opendatacommunities.org/id/unitary-authority/peterborough,Peterborough City Council,Children's & Education Services - Children's Social Care,Other Children's & Families Services,Employees,03/01/2012 00:00,423707,1530,REVENUE,Medicare First,
Peterborough,http://opendatacommunities.org/id/unitary-authority/peterborough,Peterborough City Council,Children's & Education Services - Education,Non-School Funding,Employees,03/01/2012 00:00,423729,954,REVENUE,Mana Resourcing Ltd,
Peterborough,http://opendatacommunities.org/id/unitary-authority/peterborough,Peterborough City Council,Planning Services,Economic Development,Employees,03/01/2012 00:00,423735,1980,REVENUE,Macdonald & Company,
Peterborough,http://opendatacommunities.org/id/unitary-authority/peterborough,Peterborough City Council,Children's & Education Services - Children's Social Care,Other Children's & Families Services,Employees,03/01/2012 00:00,423736,1940.4,REVENUE,Medicare First,
Peterborough,http://opendatacommunities.org/id/unitary-authority/peterborough,Peterborough City Council,Children's & Education Services - Children's Social Care,Other Children's & Families Services,Employees,03/01/2012 00:00,423738,1664.4,REVENUE,Medicare First,
Peterborough,http://opendatacommunities.org/id/unitary-authority/peterborough,Peterborough City Council,Children's & Education Services - Children's Social Care,Other Children's & Families Services,Employees,03/01/2012 00:00,423739,1498.08,REVENUE,Medicare First,
Peterborough,http://opendatacommunities.org/id/unitary-authority/peterborough,Peterborough City Council,Children's & Education Services - Children's Social Care,Other Children's & Families Services,Employees,03/01/2012 00:00,423741,1687.2,REVENUE,Medicare First,
Peterborough,http://opendatacommunities.org/id/unitary-authority/peterborough,Peterborough City Council,Children's & Education Services - Education,Secondary,Employees,03/01/2012 00:00,424044,798.72,REVENUE,Mana Resourcing Ltd,
Peterborough,http://opendatacommunities.org/id/unitary-authority/peterborough,Peterborough City Council,Cultural and Related Services,Waste Collection,Supplies and Services,03/01/2012 00:00,424054,2291.27,REVENUE,Waste Recycling Ltd,
Peterborough,http://opendatacommunities.org/id/unitary-authority/peterborough,Peterborough City Council,Cultural and Related Services,Waste Collection,Supplies and Services,03/01/2012 00:00,424055,11449.27,REVENUE,Waste Recycling Ltd,
Peterborough,http://opendatacommunities.org/id/unitary-authority/peterborough,Peterborough City Council,Cultural and Related Services,Waste Collection,Supplies and Services,03/01/2012 00:00,424061,5982.85,REVENUE,Waste Recycling Ltd,
Peterborough,http://opendatacommunities.org/id/unitary-authority/peterborough,Peterborough City Council,Cultural and Related Services,Waste Collection,Supplies and Services,03/01/2012 00:00,424063,2637.36,REVENUE,Waste Recycling Ltd,
Peterborough,http://opendatacommunities.org/id/unitary-authority/peterborough,Peterborough City Council,Cultural and Related Services,Waste Collection,Supplies and Services,03/01/2012 00:00,424064,4935.76,REVENUE,Waste Recycling Ltd,
Peterborough,http://opendatacommunities.org/id/unitary-authority/peterborough,Peterborough City Council,Deficit/(Surplus) on Trading Undertakings,Trading Account Surpluses & Deficits,Supplies and Services,03/01/2012 00:00,424098,1116,REVENUE,Perkins Engines Co Ltd,
Peterborough,http://opendatacommunities.org/id/unitary-authority/peterborough,Peterborough City Council,Support Services,Support Services,Employees,03/01/2012 00:00,424558,685.56,REVENUE,Brook Street Bureau Plc,
Peterborough,http://opendatacommunities.org/id/unitary-authority/peterborough,Peterborough City Council,Capital,Capital,Capital Pending Update to BS,03/01/2012 00:00,425113,8203.2,CAPITAL,Enterprise Managed Services Limited,
Peterborough,http://opendatacommunities.org/id/unitary-authority/peterborough,Peterborough City Council,Capital,Capital,Capital Pending Update to BS,03/01/2012 00:00,425114,9720,CAPITAL,Enterprise Managed Services Limited,
Peterborough,http://opendatacommunities.org/id/unitary-authority/peterborough,Peterborough City Council,"Highways, Roads & Transport Services",Highways/road (structural),Supplies and Services,03/01/2012 00:00,425115,7056.64,REVENUE,Ringway Infrastructure Services,
Peterborough,http://opendatacommunities.org/id/unitary-authority/peterborough,Peterborough City Council,Deficit/(Surplus) on Trading Undertakings,Trading Account Surpluses & Deficits,Supplies and Services,03/01/2012 00:00,425164,698.34,REVENUE,Eaton Ltd,
Peterborough,http://opendatacommunities.org/id/unitary-authority/peterborough,Peterborough City Council,Children's & Education Services - Children's Social Care,Children Looked After,Supplies and Services - Transfer Payments,03/01/2012 00:00,425182,6793.21,REVENUE,Credo Care Ltd,
Peterborough,http://opendatacommunities.org/id/unitary-authority/peterborough,Peterborough City Council,Children's & Education Services - Children's Social Care,Children Looked After,Supplies and Services - Transfer Payments,03/01/2012 00:00,425187,6135.8,REVENUE,Credo Care Ltd,
Peterborough,http://opendatacommunities.org/id/unitary-authority/peterborough,Peterborough City Council,Children's & Education Services - Children's Social Care,Children Looked After,Supplies and Services - Transfer Payments,03/01/2012 00:00,425230,2907.49,REVENUE,Foster Care Associates Ltd FCA,
Peterborough,http://opendatacommunities.org/id/unitary-authority/peterborough,Peterborough City Council,Children's & Education Services - Children's Social Care,Children Looked After,Supplies and Services - Transfer Payments,03/01/2012 00:00,425232,2813.7,REVENUE,Foster Care Associates Ltd FCA,
Peterborough,http://opendatacommunities.org/id/unitary-authority/peterborough,Peterborough City Council,Children's & Education Services - Children's Social Care,Children Looked After,Transport,03/01/2012 00:00,425376,3483.6,REVENUE,A2B Euro Cars,
Peterborough,http://opendatacommunities.org/id/unitary-authority/peterborough,Peterborough City Council,Planning Services,Economic Development,Supplies and Services,03/01/2012 00:00,425406,3093.95,REVENUE,Vivacity Culture and Leisure,
Peterborough,http://opendatacommunities.org/id/unitary-authority/peterborough,Peterborough City Council,Capital,Capital,Capital Pending Update to BS,03/01/2012 00:00,425412,13092.6,CAPITAL,Centre Screen Productions Ltd,
Peterborough,http://opendatacommunities.org/id/unitary-authority/peterborough,Peterborough City Council,More than one Service Area Category,More than one Service Division,Balance Sheet,03/01/2012 00:00,425413,1207.12,Balance Sheet,Equita Ltd,
Peterborough,http://opendatacommunities.org/id/unitary-authority/peterborough,Peterborough City Council,More than one Service Area Category,More than one Service Division,Balance Sheet,03/01/2012 00:00,425416,613.44,Balance Sheet,Equita Ltd,
Peterborough,http://opendatacommunities.org/id/unitary-authority/peterborough,Peterborough City Council,More than one Service Area Category,More than one Service Division,Balance Sheet,03/01/2012 00:00,425423,531.06,Balance Sheet,Equita Ltd,
Peterborough,http://opendatacommunities.org/id/unitary-authority/peterborough,Peterborough City Council,More than one Service Area Category,More than one Service Division,Balance Sheet,03/01/2012 00:00,425424,914.76,Balance Sheet,Equita Ltd,
Peterborough,http://opendatacommunities.org/id/unitary-authority/peterborough,Peterborough City Council,More than one Service Area Category,More than one Service Division,Balance Sheet,03/01/2012 00:00,425427,565.63,Balance Sheet,Equita Ltd,
Peterborough,http://opendatacommunities.org/id/unitary-authority/peterborough,Peterborough City Council,Children's & Education Services - Education,Secondary,Premises,03/01/2012 00:00,425428,843.2,REVENUE,Anglian Water,
Peterborough,http://opendatacommunities.org/id/unitary-authority/peterborough,Peterborough City Council,Children's & Education Services - Education,Secondary,Premises,03/01/2012 00:00,425430,8046.22,REVENUE,Southern Electric,
Peterborough,http://opendatacommunities.org/id/unitary-authority/peterborough,Peterborough City Council,Children's & Education Services - Education,Secondary,Premises,03/01/2012 00:00,425431,2736.76,REVENUE,Southern Electric,
Peterborough,http://opendatacommunities.org/id/unitary-authority/peterborough,Peterborough City Council,Children's & Education Services - Education,Management and support services,Premises,03/01/2012 00:00,425433,865.92,REVENUE,Southern Electric,
Peterborough,http://opendatacommunities.org/id/unitary-authority/peterborough,Peterborough City Council,Support Services,Support Services,Premises,03/01/2012 00:00,425443,852.92,REVENUE,Zurich Insurance Company,
Peterborough,http://opendatacommunities.org/id/unitary-authority/peterborough,Peterborough City Council,Children's & Education Services - Education,Secondary,Premises,03/01/2012 00:00,425511,1204.81,REVENUE,Anglian Water,
Peterborough,http://opendatacommunities.org/id/unitary-authority/peterborough,Peterborough City Council,Capital,Capital,Capital Pending Update to BS,03/01/2012 00:00,425647,1171816.26,CAPITAL,Kier Eastern,
Peterborough,http://opendatacommunities.org/id/unitary-authority/peterborough,Peterborough City Council,Deficit/(Surplus) on Trading Undertakings,Trading Account Surpluses & Deficits,Supplies and Services,03/01/2012 00:00,425655,601.38,REVENUE,Barron Clark Castings Ltd,
Peterborough,http://opendatacommunities.org/id/unitary-authority/peterborough,Peterborough City Council,Support Services,Support Services,Premises,03/01/2012 00:00,425658,2634.34,REVENUE,Anglian Water,
Peterborough,http://opendatacommunities.org/id/unitary-authority/peterborough,Peterborough City Council,Support Services,Support Services,Premises,03/01/2012 00:00,425660,4621.99,REVENUE,Southern Electric,
Peterborough,http://opendatacommunities.org/id/unitary-authority/peterborough,Peterborough City Council,Cultural and Related Services,Waste Collection,Supplies and Services,03/01/2012 00:00,425665,-3246.6,REVENUE,Enterprise Managed Services Limited,
Peterborough,http://opendatacommunities.org/id/unitary-authority/peterborough,Peterborough City Council,Deficit/(Surplus) on Trading Undertakings,Trading Account Surpluses & Deficits,Supplies and Services,03/01/2012 00:00,425684,617.64,REVENUE,Barron Clark Castings Ltd,
Peterborough,http://opendatacommunities.org/id/unitary-authority/peterborough,Peterborough City Council,Children's & Education Services - Children's Social Care,Children Looked After,Employees,03/01/2012 00:00,425718,589.68,REVENUE,Randstad Care Ltd,
Peterborough,http://opendatacommunities.org/id/unitary-authority/peterborough,Peterborough City Council,Capital,Capital,Capital Pending Update to BS,03/01/2012 00:00,425723,370061.21,CAPITAL,Kier Eastern,
Peterborough,http://opendatacommunities.org/id/unitary-authority/peterborough,Peterborough City Council,More than one Service Area Category,More than one Service Division,Supplies and Services,03/01/2012 00:00,425729,13761.4,REVENUE,Peterborough City Council,
Peterborough,http://opendatacommunities.org/id/unitary-authority/peterborough,Peterborough City Council,Deficit/(Surplus) on Trading Undertakings,Trading Account Surpluses & Deficits,Supplies and Services,03/01/2012 00:00,425744,9278.71,REVENUE,Haas Automation,
Peterborough,http://opendatacommunities.org/id/unitary-authority/peterborough,Peterborough City Council,Planning Services,Economic Development,Third Party Payments,03/01/2012 00:00,425749,3525,REVENUE,P'Boro Council For Voluntary Srvs,
Peterborough,http://opendatacommunities.org/id/unitary-authority/peterborough,Peterborough City Council,Planning Services,Economic Development,Third Party Payments,03/01/2012 00:00,425753,3702.5,REVENUE,P'Boro Council For Voluntary Srvs,
Peterborough,http://opendatacommunities.org/id/unitary-authority/peterborough,Peterborough City Council,Planning Services,Economic Development,Third Party Payments,03/01/2012 00:00,425760,8982.5,REVENUE,P'Boro Council For Voluntary Srvs,
Peterborough,http://opendatacommunities.org/id/unitary-authority/peterborough,Peterborough City Council,Support Services,Support Services,Premises,03/01/2012 00:00,425764,1696.9,REVENUE,Eastern Shires Purchasing Organisation,
Peterborough,http://opendatacommunities.org/id/unitary-authority/peterborough,Peterborough City Council,Support Services,Support Services,Supplies and Services,03/01/2012 00:00,425780,190694.18,REVENUE,Serco Ltd,
Peterborough,http://opendatacommunities.org/id/unitary-authority/peterborough,Peterborough City Council,Children's & Education Services - Education,Secondary,Premises,03/01/2012 00:00,425788,1349.59,REVENUE,Southern Electric,
Peterborough,http://opendatacommunities.org/id/unitary-authority/peterborough,Peterborough City Council,Children's & Education Services - Education,Secondary,Premises,03/01/2012 00:00,425789,6303.45,REVENUE,Southern Electric,
Peterborough,http://opendatacommunities.org/id/unitary-authority/peterborough,Peterborough City Council,Children's & Education Services - Education,Secondary,Premises,03/01/2012 00:00,425790,12534.76,REVENUE,Southern Electric,
Peterborough,http://opendatacommunities.org/id/unitary-authority/peterborough,Peterborough City Council,Children's & Education Services - Children's Social Care,Children Looked After,Employees,03/01/2012 00:00,425807,653.64,REVENUE,Car-Es (UK) Ltd,
Peterborough,http://opendatacommunities.org/id/unitary-authority/peterborough,Peterborough City Council,More than one Service Area Category,More than one Service Division,Balance Sheet,03/01/2012 00:00,425808,1122,Balance Sheet,"Harris, Mr Paul",
Peterborough,http://opendatacommunities.org/id/unitary-authority/peterborough,Peterborough City Council,Children's & Education Services - Children's Social Care,Other Children's & Families Services,Supplies and Services,03/01/2012 00:00,425816,1200,REVENUE,Stagecoach in Peterborough,
Peterborough,http://opendatacommunities.org/id/unitary-authority/peterborough,Peterborough City Council,Capital,Capital,Capital Pending Update to BS,04/01/2012 00:00,412614,1074,CAPITAL,Ratcliff Land & Engineering Surveys,
Peterborough,http://opendatacommunities.org/id/unitary-authority/peterborough,Peterborough City Council,Children's & Education Services - Children's Social Care,Other Children's & Families Services,Employees,04/01/2012 00:00,415108,903,REVENUE,Sanctuary Personnel Ltd,
Peterborough,http://opendatacommunities.org/id/unitary-authority/peterborough,Peterborough City Council,Children's & Education Services - Children's Social Care,Other Children's & Families Services,Employees,04/01/2012 00:00,421451,-1638.84,REVENUE,Sanctuary Personnel Ltd,
Peterborough,http://opendatacommunities.org/id/unitary-authority/peterborough,Peterborough City Council,Capital,Capital,Capital Pending Update to BS,04/01/2012 00:00,422092,65520,CAPITAL,Pinsent Masons,
Peterborough,http://opendatacommunities.org/id/unitary-authority/peterborough,Peterborough City Council,Capital,Capital,Capital Pending Update to BS,04/01/2012 00:00,422251,36008.44,CAPITAL,Frederick F Smith (Builders) Ltd,
Peterborough,http://opendatacommunities.org/id/unitary-authority/peterborough,Peterborough City Council,Capital,Capital,Capital Pending Update to BS,04/01/2012 00:00,422498,34886.68,CAPITAL,Lindum Group Ltd,
Peterborough,http://opendatacommunities.org/id/unitary-authority/peterborough,Peterborough City Council,Children's & Education Services - Children's Social Care,Other Children's & Families Services,Employees,04/01/2012 00:00,422570,1424.16,REVENUE,Randstad Care Ltd,
Peterborough,http://opendatacommunities.org/id/unitary-authority/peterborough,Peterborough City Council,Capital,Capital,Capital Pending Update to BS,04/01/2012 00:00,422616,2627.5,CAPITAL,Atkins Limited,
Peterborough,http://opendatacommunities.org/id/unitary-authority/peterborough,Peterborough City Council,Children's & Education Services - Children's Social Care,Other Children's & Families Services,Employees,04/01/2012 00:00,422766,2302.39,REVENUE,Randstad Care Ltd,
Peterborough,http://opendatacommunities.org/id/unitary-authority/peterborough,Peterborough City Council,Children's & Education Services - Children's Social Care,Children Looked After,Employees,04/01/2012 00:00,423086,1287.6,REVENUE,Eden Brown Ltd,
Peterborough,http://opendatacommunities.org/id/unitary-authority/peterborough,Peterborough City Council,"Highways, Roads & Transport Services","Environmental, Safety & Routine Maintenance",Supplies and Services,04/01/2012 00:00,423102,2095.09,REVENUE,Telent Technology Services Ltd,
Peterborough,http://opendatacommunities.org/id/unitary-authority/peterborough,Peterborough City Council,"Highways, Roads & Transport Services",Traffic management & Road Safety,Supplies and Services,04/01/2012 00:00,423107,1778.68,REVENUE,Telent Technology Services Ltd,
Peterborough,http://opendatacommunities.org/id/unitary-authority/peterborough,Peterborough City Council,"Highways, Roads & Transport Services",Traffic management & Road Safety,Supplies and Services,04/01/2012 00:00,423108,2233.88,REVENUE,Telent Technology Services Ltd,
Peterborough,http://opendatacommunities.org/id/unitary-authority/peterborough,Peterborough City Council,"Highways, Roads & Transport Services",Traffic management & Road Safety,Supplies and Services,04/01/2012 00:00,423110,6132.94,REVENUE,Telent Technology Services Ltd,
Peterborough,http://opendatacommunities.org/id/unitary-authority/peterborough,Peterborough City Council,"Highways, Roads & Transport Services","Environmental, Safety & Routine Maintenance",Supplies and Services,04/01/2012 00:00,423111,712.37,REVENUE,Telent Technology Services Ltd,
Peterborough,http://opendatacommunities.org/id/unitary-authority/peterborough,Peterborough City Council,Children's & Education Services - Children's Social Care,Other Children's & Families Services,Employees,04/01/2012 00:00,423160,1609.5,REVENUE,Care Recruitment UK Ltd,
Peterborough,http://opendatacommunities.org/id/unitary-authority/peterborough,Peterborough City Council,Support Services,Support Services,Supplies and Services,04/01/2012 00:00,423325,666,REVENUE,Key People Ltd,
Peterborough,http://opendatacommunities.org/id/unitary-authority/peterborough,Peterborough City Council,Capital,Capital,Capital Pending Update to BS,04/01/2012 00:00,423326,3474,CAPITAL,UK Power Networks (operations) Ltd,
Peterborough,http://opendatacommunities.org/id/unitary-authority/peterborough,Peterborough City Council,Children's & Education Services - Children's Social Care,Other Children's & Families Services,Employees,04/01/2012 00:00,423329,1008,REVENUE,The Synergy Group,
Peterborough,http://opendatacommunities.org/id/unitary-authority/peterborough,Peterborough City Council,Children's & Education Services - Children's Social Care,Other Children's & Families Services,Employees,04/01/2012 00:00,423331,1260,REVENUE,The Synergy Group,
Peterborough,http://opendatacommunities.org/id/unitary-authority/peterborough,Peterborough City Council,Children's & Education Services - Children's Social Care,Other Children's & Families Services,Employees,04/01/2012 00:00,423351,1705.2,REVENUE,Swim,
Peterborough,http://opendatacommunities.org/id/unitary-authority/peterborough,Peterborough City Council,Children's & Education Services - Children's Social Care,Children Looked After,Employees,04/01/2012 00:00,423370,1156.38,REVENUE,Advantage Healthcare Nursing & Care Ltd,
Peterborough,http://opendatacommunities.org/id/unitary-authority/peterborough,Peterborough City Council,Children's & Education Services - Children's Social Care,Children Looked After,Supplies and Services,04/01/2012 00:00,423514,9854.21,REVENUE,St Andrew's Healthcare,
Peterborough,http://opendatacommunities.org/id/unitary-authority/peterborough,Peterborough City Council,Children's & Education Services - Children's Social Care,Other Children's & Families Services,Supplies and Services,04/01/2012 00:00,423621,3523,REVENUE,R S P LTD,
Peterborough,http://opendatacommunities.org/id/unitary-authority/peterborough,Peterborough City Council,Children's & Education Services - Children's Social Care,Children Looked After,Supplies and Services - Transfer Payments,04/01/2012 00:00,423643,11200,REVENUE,Amegreen,
Peterborough,http://opendatacommunities.org/id/unitary-authority/peterborough,Peterborough City Council,Children's & Education Services - Children's Social Care,Other Children's & Families Services,Employees,04/01/2012 00:00,423649,1126.19,REVENUE,Randstad Care Ltd,
Peterborough,http://opendatacommunities.org/id/unitary-authority/peterborough,Peterborough City Council,Children's & Education Services - Children's Social Care,Children Looked After,Employees,04/01/2012 00:00,423650,789.76,REVENUE,Randstad Care Ltd,
Peterborough,http://opendatacommunities.org/id/unitary-authority/peterborough,Peterborough City Council,Children's & Education Services - Children's Social Care,Other Children's & Families Services,Employees,04/01/2012 00:00,423656,1154.26,REVENUE,Randstad Care Ltd,
Peterborough,http://opendatacommunities.org/id/unitary-authority/peterborough,Peterborough City Council,Support Services,Support Services,Supplies and Services,04/01/2012 00:00,423657,793.79,REVENUE,Johnston Press Midlands Division,
Peterborough,http://opendatacommunities.org/id/unitary-authority/peterborough,Peterborough City Council,Children's & Education Services - Children's Social Care,Support Services & Management Costs,Employees,04/01/2012 00:00,423658,1529.14,REVENUE,Randstad Care Ltd,
Peterborough,http://opendatacommunities.org/id/unitary-authority/peterborough,Peterborough City Council,Sources of Finance,RSG,Third Party Payments,04/01/2012 00:00,423663,570,REVENUE,Peakirk Village Hall Committee,
Peterborough,http://opendatacommunities.org/id/unitary-authority/peterborough,Peterborough City Council,Housing Services,Homelessness,Supplies and Services,04/01/2012 00:00,423678,702.55,REVENUE,Euro RSCG Riley Ltd,
Peterborough,http://opendatacommunities.org/id/unitary-authority/peterborough,Peterborough City Council,Children's & Education Services - Education,Non-School Funding,Supplies and Services,04/01/2012 00:00,423744,2330,REVENUE,The Award Scheme Ltd,
Peterborough,http://opendatacommunities.org/id/unitary-authority/peterborough,Peterborough City Council,Children's & Education Services - Children's Social Care,Family Support Services,More than one Expenses Type,04/01/2012 00:00,424077,1087.56,REVENUE,PAM Recruitment Ltd,
Peterborough,http://opendatacommunities.org/id/unitary-authority/peterborough,Peterborough City Council,Support Services,Support Services,Supplies and Services,04/01/2012 00:00,424090,8400,REVENUE,Ntrinsic Consulting Europe Ltd,
Peterborough,http://opendatacommunities.org/id/unitary-authority/peterborough,Peterborough City Council,Deficit/(Surplus) on Trading Undertakings,Trading Account Surpluses & Deficits,Supplies and Services,04/01/2012 00:00,424091,14400,REVENUE,Wilks Head & Eve,
Peterborough,http://opendatacommunities.org/id/unitary-authority/peterborough,Peterborough City Council,Housing Services,Homelessness,Supplies and Services,04/01/2012 00:00,424102,532.5,REVENUE,Restover Lodge Hotel,
Peterborough,http://opendatacommunities.org/id/unitary-authority/peterborough,Peterborough City Council,Housing Services,Homelessness,Supplies and Services,04/01/2012 00:00,424106,1119,REVENUE,Restover Lodge Hotel,
Peterborough,http://opendatacommunities.org/id/unitary-authority/peterborough,Peterborough City Council,Planning Services,Economic Development,Employees,04/01/2012 00:00,424569,1332,REVENUE,Hays Specialist Recruitment Ltd,
Peterborough,http://opendatacommunities.org/id/unitary-authority/peterborough,Peterborough City Council,Planning Services,Economic Development,Employees,04/01/2012 00:00,424570,1332,REVENUE,Hays Specialist Recruitment Ltd,
Peterborough,http://opendatacommunities.org/id/unitary-authority/peterborough,Peterborough City Council,Planning Services,Economic Development,Employees,04/01/2012 00:00,424571,1332,REVENUE,Hays Specialist Recruitment Ltd,
Peterborough,http://opendatacommunities.org/id/unitary-authority/peterborough,Peterborough City Council,Planning Services,Economic Development,Employees,04/01/2012 00:00,424572,888,REVENUE,Hays Specialist Recruitment Ltd,
Peterborough,http://opendatacommunities.org/id/unitary-authority/peterborough,Peterborough City Council,Children's & Education Services - Children's Social Care,Other Children's & Families Services,Employees,04/01/2012 00:00,424924,1600.92,REVENUE,Sanctuary Personnel Ltd,
Peterborough,http://opendatacommunities.org/id/unitary-authority/peterborough,Peterborough City Council,Children's & Education Services - Children's Social Care,Other Children's & Families Services,Employees,04/01/2012 00:00,424925,630,REVENUE,Sanctuary Personnel Ltd,
Peterborough,http://opendatacommunities.org/id/unitary-authority/peterborough,Peterborough City Council,Children's & Education Services - Children's Social Care,Other Children's & Families Services,Employees,04/01/2012 00:00,424926,630,REVENUE,Sanctuary Personnel Ltd,
Peterborough,http://opendatacommunities.org/id/unitary-authority/peterborough,Peterborough City Council,Environmental and Regulatory Services,"Cemetery, Crematorium & Mortuary Services",Supplies and Services,04/01/2012 00:00,424928,865.13,REVENUE,Konica Minolta Bus.Sol. East Ltd,
Peterborough,http://opendatacommunities.org/id/unitary-authority/peterborough,Peterborough City Council,Housing Services,Private Sector Housing Renewal,Supplies and Services,04/01/2012 00:00,424955,866.25,REVENUE,Fletton Electrics Ltd,
Peterborough,http://opendatacommunities.org/id/unitary-authority/peterborough,Peterborough City Council,Capital,Capital,Capital Pending Update to BS,04/01/2012 00:00,424956,5495.28,CAPITAL,Richard Rogers Conservation Ltd,
Peterborough,http://opendatacommunities.org/id/unitary-authority/peterborough,Peterborough City Council,"Highways, Roads & Transport Services","Transport planning, policy and strategy",Supplies and Services,04/01/2012 00:00,424972,529.19,REVENUE,Johnston Press Midlands Division,
Peterborough,http://opendatacommunities.org/id/unitary-authority/peterborough,Peterborough City Council,"Highways, Roads & Transport Services",Street Lighting,Premises,04/01/2012 00:00,424982,722.88,REVENUE,E.ON Energy,
Peterborough,http://opendatacommunities.org/id/unitary-authority/peterborough,Peterborough City Council,Housing Services,Homelessness,Supplies and Services,04/01/2012 00:00,424986,786.1,REVENUE,DA Rosalia Hotel,
Peterborough,http://opendatacommunities.org/id/unitary-authority/peterborough,Peterborough City Council,Housing Services,Homelessness,Supplies and Services,04/01/2012 00:00,424988,571.2,REVENUE,DA Rosalia Hotel,
Peterborough,http://opendatacommunities.org/id/unitary-authority/peterborough,Peterborough City Council,Housing Services,Homelessness,Supplies and Services,04/01/2012 00:00,424994,571.2,REVENUE,DA Rosalia Hotel,
Peterborough,http://opendatacommunities.org/id/unitary-authority/peterborough,Peterborough City Council,Capital,Capital,Capital Pending Update to BS,04/01/2012 00:00,425090,243854.4,CAPITAL,PG Robinson t/a PGR Construction,
Peterborough,http://opendatacommunities.org/id/unitary-authority/peterborough,Peterborough City Council,"Highways, Roads & Transport Services",Highways/road (structural),Supplies and Services,04/01/2012 00:00,425170,37578.61,REVENUE,Ringway Infrastructure Services,
Peterborough,http://opendatacommunities.org/id/unitary-authority/peterborough,Peterborough City Council,Environmental and Regulatory Services,"Cemetery, Crematorium & Mortuary Services",Supplies and Services,04/01/2012 00:00,425189,812.52,REVENUE,Barlow Tyrie Ltd,
Peterborough,http://opendatacommunities.org/id/unitary-authority/peterborough,Peterborough City Council,More than one Service Area Category,More than one Service Division,Supplies and Services,04/01/2012 00:00,425202,503.32,REVENUE,Vodafone Ltd,
Peterborough,http://opendatacommunities.org/id/unitary-authority/peterborough,Peterborough City Council,Central Services to the Public,Local Tax,Supplies and Services,04/01/2012 00:00,425420,923.53,REVENUE,Equita Ltd,
Peterborough,http://opendatacommunities.org/id/unitary-authority/peterborough,Peterborough City Council,Support Services,Support Services,Supplies and Services,04/01/2012 00:00,425460,1641.69,REVENUE,Signs Express,
Peterborough,http://opendatacommunities.org/id/unitary-authority/peterborough,Peterborough City Council,Housing Services,Housing Strategy,Supplies and Services,04/01/2012 00:00,425599,2400,REVENUE,Cambridge City Council,
Peterborough,http://opendatacommunities.org/id/unitary-authority/peterborough,Peterborough City Council,Housing Services,Homelessness,Supplies and Services,04/01/2012 00:00,425600,797.5,REVENUE,Restover Lodge Hotel,
Peterborough,http://opendatacommunities.org/id/unitary-authority/peterborough,Peterborough City Council,Housing Services,Homelessness,Supplies and Services,04/01/2012 00:00,425604,613.5,REVENUE,Restover Lodge Hotel,
Peterborough,http://opendatacommunities.org/id/unitary-authority/peterborough,Peterborough City Council,Housing Services,Homelessness,Supplies and Services,04/01/2012 00:00,425605,559.5,REVENUE,Restover Lodge Hotel,
Peterborough,http://opendatacommunities.org/id/unitary-authority/peterborough,Peterborough City Council,Capital,Capital,Capital Pending Update to BS,04/01/2012 00:00,425631,68125.2,CAPITAL,Burmor Construction,
Peterborough,http://opendatacommunities.org/id/unitary-authority/peterborough,Peterborough City Council,Children's & Education Services - Children's Social Care,Family Support Services,Third Party Payments,04/01/2012 00:00,425701,53833.25,REVENUE,Peterborough Diocesan Family Care,
Peterborough,http://opendatacommunities.org/id/unitary-authority/peterborough,Peterborough City Council,Children's & Education Services - Children's Social Care,Family Support Services,Third Party Payments,04/01/2012 00:00,425707,72780.5,REVENUE,Peterborough Diocesan Family Care,
Peterborough,http://opendatacommunities.org/id/unitary-authority/peterborough,Peterborough City Council,Children's & Education Services - Education,Primary,Supplies and Services,04/01/2012 00:00,425724,16816.88,REVENUE,Northamptonshire  County Council,
Peterborough,http://opendatacommunities.org/id/unitary-authority/peterborough,Peterborough City Council,Children's & Education Services - Children's Social Care,Other Children's & Families Services,Employees,04/01/2012 00:00,425726,1554,REVENUE,Blue Group International Ltd,
Peterborough,http://opendatacommunities.org/id/unitary-authority/peterborough,Peterborough City Council,Children's & Education Services - Children's Social Care,Support Services & Management Costs,Supplies and Services,04/01/2012 00:00,425745,720,REVENUE,"Bennett, Mr Jonathan",
Peterborough,http://opendatacommunities.org/id/unitary-authority/peterborough,Peterborough City Council,Planning Services,Economic Development,Supplies and Services,04/01/2012 00:00,425817,720,REVENUE,Linstock Communications Ltd,
Peterborough,http://opendatacommunities.org/id/unitary-authority/peterborough,Peterborough City Council,Children's & Education Services - Children's Social Care,Other Children's & Families Services,Supplies and Services - Transfer Payments,04/01/2012 00:00,425872,600,REVENUE,Redacted Personal Data,
Peterborough,http://opendatacommunities.org/id/unitary-authority/peterborough,Peterborough City Council,Children's & Education Services - Children's Social Care,Other Children's & Families Services,Supplies and Services - Transfer Payments,04/01/2012 00:00,425873,613.6,REVENUE,Redacted Personal Data,
Peterborough,http://opendatacommunities.org/id/unitary-authority/peterborough,Peterborough City Council,Children's & Education Services - Children's Social Care,Children Looked After,Supplies and Services - Transfer Payments,04/01/2012 00:00,425980,616.18,REVENUE,Redacted Personal Data,
Peterborough,http://opendatacommunities.org/id/unitary-authority/peterborough,Peterborough City Council,Children's & Education Services - Children's Social Care,Children Looked After,Supplies and Services - Transfer Payments,04/01/2012 00:00,425981,560.98,REVENUE,Redacted Personal Data,
Peterborough,http://opendatacommunities.org/id/unitary-authority/peterborough,Peterborough City Council,Children's & Education Services - Children's Social Care,Children Looked After,Supplies and Services - Transfer Payments,04/01/2012 00:00,425982,560.98,REVENUE,Redacted Personal Data,
Peterborough,http://opendatacommunities.org/id/unitary-authority/peterborough,Peterborough City Council,Children's & Education Services - Children's Social Care,Children Looked After,Supplies and Services - Transfer Payments,04/01/2012 00:00,425983,529.9,REVENUE,Redacted Personal Data,
Peterborough,http://opendatacommunities.org/id/unitary-authority/peterborough,Peterborough City Council,Children's & Education Services - Children's Social Care,Children Looked After,Supplies and Services - Transfer Payments,04/01/2012 00:00,425984,560.98,REVENUE,Redacted Personal Data,
Peterborough,http://opendatacommunities.org/id/unitary-authority/peterborough,Peterborough City Council,Children's & Education Services - Children's Social Care,Children Looked After,Supplies and Services - Transfer Payments,04/01/2012 00:00,425985,529.9,REVENUE,Redacted Personal Data,
Peterborough,http://opendatacommunities.org/id/unitary-authority/peterborough,Peterborough City Council,Children's & Education Services - Children's Social Care,Children Looked After,Supplies and Services - Transfer Payments,04/01/2012 00:00,425986,653.87,REVENUE,Redacted Personal Data,
Peterborough,http://opendatacommunities.org/id/unitary-authority/peterborough,Peterborough City Council,Children's & Education Services - Children's Social Care,Children Looked After,Supplies and Services - Transfer Payments,04/01/2012 00:00,425987,529.9,REVENUE,Redacted Personal Data,
Peterborough,http://opendatacommunities.org/id/unitary-authority/peterborough,Peterborough City Council,Children's & Education Services - Children's Social Care,Children Looked After,Supplies and Services - Transfer Payments,04/01/2012 00:00,425988,529.9,REVENUE,Redacted Personal Data,
Peterborough,http://opendatacommunities.org/id/unitary-authority/peterborough,Peterborough City Council,Children's & Education Services - Children's Social Care,Children Looked After,Supplies and Services - Transfer Payments,04/01/2012 00:00,425989,532.12,REVENUE,Redacted Personal Data,
Peterborough,http://opendatacommunities.org/id/unitary-authority/peterborough,Peterborough City Council,Children's & Education Services - Children's Social Care,Children Looked After,Supplies and Services - Transfer Payments,04/01/2012 00:00,425990,529.9,REVENUE,Redacted Personal Data,
Peterborough,http://opendatacommunities.org/id/unitary-authority/peterborough,Peterborough City Council,Children's & Education Services - Children's Social Care,Children Looked After,Supplies and Services - Transfer Payments,04/01/2012 00:00,425991,529.9,REVENUE,Redacted Personal Data,
Peterborough,http://opendatacommunities.org/id/unitary-authority/peterborough,Peterborough City Council,Children's & Education Services - Children's Social Care,Children Looked After,Supplies and Services - Transfer Payments,04/01/2012 00:00,425992,560.98,REVENUE,Redacted Personal Data,
Peterborough,http://opendatacommunities.org/id/unitary-authority/peterborough,Peterborough City Council,Children's & Education Services - Children's Social Care,Children Looked After,Supplies and Services - Transfer Payments,04/01/2012 00:00,425993,529.9,REVENUE,Redacted Personal Data,
Peterborough,http://opendatacommunities.org/id/unitary-authority/peterborough,Peterborough City Council,Children's & Education Services - Children's Social Care,Children Looked After,Supplies and Services - Transfer Payments,04/01/2012 00:00,425996,776.79,REVENUE,Redacted Personal Data,
Peterborough,http://opendatacommunities.org/id/unitary-authority/peterborough,Peterborough City Council,Children's & Education Services - Children's Social Care,Children Looked After,Supplies and Services - Transfer Payments,04/01/2012 00:00,425998,529.9,REVENUE,Redacted Personal Data,
Peterborough,http://opendatacommunities.org/id/unitary-authority/peterborough,Peterborough City Council,Children's & Education Services - Children's Social Care,Children Looked After,Supplies and Services - Transfer Payments,04/01/2012 00:00,426000,510.98,REVENUE,Redacted Personal Data,
Peterborough,http://opendatacommunities.org/id/unitary-authority/peterborough,Peterborough City Council,Children's & Education Services - Children's Social Care,Children Looked After,Supplies and Services - Transfer Payments,04/01/2012 00:00,426001,529.9,REVENUE,Redacted Personal Data,
Peterborough,http://opendatacommunities.org/id/unitary-authority/peterborough,Peterborough City Council,Children's & Education Services - Children's Social Care,Children Looked After,Supplies and Services - Transfer Payments,04/01/2012 00:00,426002,529.9,REVENUE,Redacted Personal Data,
Peterborough,http://opendatacommunities.org/id/unitary-authority/peterborough,Peterborough City Council,Children's & Education Services - Children's Social Care,Children Looked After,Supplies and Services - Transfer Payments,04/01/2012 00:00,426003,560.98,REVENUE,Redacted Personal Data,
Peterborough,http://opendatacommunities.org/id/unitary-authority/peterborough,Peterborough City Council,Children's & Education Services - Children's Social Care,Children Looked After,Supplies and Services - Transfer Payments,04/01/2012 00:00,426006,529.9,REVENUE,Redacted Personal Data,
Peterborough,http://opendatacommunities.org/id/unitary-authority/peterborough,Peterborough City Council,Children's & Education Services - Children's Social Care,Children Looked After,Supplies and Services - Transfer Payments,04/01/2012 00:00,426007,529.9,REVENUE,Redacted Personal Data,
Peterborough,http://opendatacommunities.org/id/unitary-authority/peterborough,Peterborough City Council,Children's & Education Services - Children's Social Care,Children Looked After,Supplies and Services - Transfer Payments,04/01/2012 00:00,426008,529.9,REVENUE,Redacted Personal Data,
Peterborough,http://opendatacommunities.org/id/unitary-authority/peterborough,Peterborough City Council,Children's & Education Services - Children's Social Care,Children Looked After,Supplies and Services - Transfer Payments,04/01/2012 00:00,426018,560.98,REVENUE,Redacted Personal Data,
Peterborough,http://opendatacommunities.org/id/unitary-authority/peterborough,Peterborough City Council,Children's & Education Services - Children's Social Care,Children Looked After,Supplies and Services - Transfer Payments,04/01/2012 00:00,426019,885.08,REVENUE,Redacted Personal Data,
Peterborough,http://opendatacommunities.org/id/unitary-authority/peterborough,Peterborough City Council,Children's & Education Services - Children's Social Care,Children Looked After,Supplies and Services - Transfer Payments,04/01/2012 00:00,426022,529.9,REVENUE,Redacted Personal Data,
Peterborough,http://opendatacommunities.org/id/unitary-authority/peterborough,Peterborough City Council,Children's & Education Services - Children's Social Care,Children Looked After,Supplies and Services - Transfer Payments,04/01/2012 00:00,426024,529.9,REVENUE,Redacted Personal Data,
Peterborough,http://opendatacommunities.org/id/unitary-authority/peterborough,Peterborough City Council,Children's & Education Services - Children's Social Care,Children Looked After,Supplies and Services - Transfer Payments,04/01/2012 00:00,426025,776.79,REVENUE,Redacted Personal Data,
Peterborough,http://opendatacommunities.org/id/unitary-authority/peterborough,Peterborough City Council,Children's & Education Services - Children's Social Care,Children Looked After,Supplies and Services - Transfer Payments,04/01/2012 00:00,426031,560.98,REVENUE,Redacted Personal Data,
Peterborough,http://opendatacommunities.org/id/unitary-authority/peterborough,Peterborough City Council,Children's & Education Services - Children's Social Care,Children Looked After,Supplies and Services - Transfer Payments,04/01/2012 00:00,426040,529.9,REVENUE,Redacted Personal Data,
Peterborough,http://opendatacommunities.org/id/unitary-authority/peterborough,Peterborough City Council,Children's & Education Services - Children's Social Care,Children Looked After,Supplies and Services - Transfer Payments,04/01/2012 00:00,426043,529.9,REVENUE,Redacted Personal Data,
Peterborough,http://opendatacommunities.org/id/unitary-authority/peterborough,Peterborough City Council,Children's & Education Services - Children's Social Care,Children Looked After,Supplies and Services - Transfer Payments,04/01/2012 00:00,426045,529.9,REVENUE,Redacted Personal Data,
Peterborough,http://opendatacommunities.org/id/unitary-authority/peterborough,Peterborough City Council,Children's & Education Services - Children's Social Care,Family Support Services,Supplies and Services,04/01/2012 00:00,426051,1148.22,REVENUE,Redacted Personal Data,
Peterborough,http://opendatacommunities.org/id/unitary-authority/peterborough,Peterborough City Council,Children's & Education Services - Children's Social Care,Children Looked After,Supplies and Services - Transfer Payments,04/01/2012 00:00,426069,560.98,REVENUE,Redacted Personal Data,
Peterborough,http://opendatacommunities.org/id/unitary-authority/peterborough,Peterborough City Council,Children's & Education Services - Children's Social Care,Children Looked After,Supplies and Services - Transfer Payments,04/01/2012 00:00,426075,885.08,REVENUE,Redacted Personal Data,
Peterborough,http://opendatacommunities.org/id/unitary-authority/peterborough,Peterborough City Council,Children's & Education Services - Children's Social Care,Children Looked After,Supplies and Services - Transfer Payments,04/01/2012 00:00,426077,885.08,REVENUE,Redacted Personal Data,
Peterborough,http://opendatacommunities.org/id/unitary-authority/peterborough,Peterborough City Council,Children's & Education Services - Children's Social Care,Children Looked After,Supplies and Services - Transfer Payments,04/01/2012 00:00,426078,885.08,REVENUE,Redacted Personal Data,
Peterborough,http://opendatacommunities.org/id/unitary-authority/peterborough,Peterborough City Council,Children's & Education Services - Children's Social Care,Children Looked After,Supplies and Services - Transfer Payments,04/01/2012 00:00,426079,885.08,REVENUE,Redacted Personal Data,
Peterborough,http://opendatacommunities.org/id/unitary-authority/peterborough,Peterborough City Council,Children's & Education Services - Children's Social Care,Children Looked After,Supplies and Services - Transfer Payments,04/01/2012 00:00,426080,885.08,REVENUE,Redacted Personal Data,
Peterborough,http://opendatacommunities.org/id/unitary-authority/peterborough,Peterborough City Council,Children's & Education Services - Children's Social Care,Children Looked After,Supplies and Services - Transfer Payments,04/01/2012 00:00,426084,549.88,REVENUE,Redacted Personal Data,
Peterborough,http://opendatacommunities.org/id/unitary-authority/peterborough,Peterborough City Council,Children's & Education Services - Children's Social Care,Children Looked After,Supplies and Services - Transfer Payments,04/01/2012 00:00,426097,529.9,REVENUE,Redacted Personal Data,
Peterborough,http://opendatacommunities.org/id/unitary-authority/peterborough,Peterborough City Council,Children's & Education Services - Children's Social Care,Children Looked After,Supplies and Services - Transfer Payments,04/01/2012 00:00,426114,560.98,REVENUE,Redacted Personal Data,
Peterborough,http://opendatacommunities.org/id/unitary-authority/peterborough,Peterborough City Council,Children's & Education Services - Children's Social Care,Children Looked After,Supplies and Services - Transfer Payments,04/01/2012 00:00,426120,560.98,REVENUE,Redacted Personal Data,
Peterborough,http://opendatacommunities.org/id/unitary-authority/peterborough,Peterborough City Council,Children's & Education Services - Children's Social Care,Children Looked After,Supplies and Services - Transfer Payments,04/01/2012 00:00,426136,529.9,REVENUE,Redacted Personal Data,
Peterborough,http://opendatacommunities.org/id/unitary-authority/peterborough,Peterborough City Council,Children's & Education Services - Children's Social Care,Children Looked After,Supplies and Services - Transfer Payments,04/01/2012 00:00,426137,529.9,REVENUE,Redacted Personal Data,
Peterborough,http://opendatacommunities.org/id/unitary-authority/peterborough,Peterborough City Council,Children's & Education Services - Children's Social Care,Children Looked After,Supplies and Services - Transfer Payments,04/01/2012 00:00,426151,529.9,REVENUE,Redacted Personal Data,
Peterborough,http://opendatacommunities.org/id/unitary-authority/peterborough,Peterborough City Council,Children's & Education Services - Children's Social Care,Children Looked After,Supplies and Services - Transfer Payments,04/01/2012 00:00,426164,529.9,REVENUE,Redacted Personal Data,
Peterborough,http://opendatacommunities.org/id/unitary-authority/peterborough,Peterborough City Council,Children's & Education Services - Children's Social Care,Children Looked After,Supplies and Services - Transfer Payments,04/01/2012 00:00,426167,780.5,REVENUE,Redacted Personal Data,
Peterborough,http://opendatacommunities.org/id/unitary-authority/peterborough,Peterborough City Council,Children's & Education Services - Children's Social Care,Children Looked After,Supplies and Services - Transfer Payments,04/01/2012 00:00,426176,529.9,REVENUE,Redacted Personal Data,
Peterborough,http://opendatacommunities.org/id/unitary-authority/peterborough,Peterborough City Council,Children's & Education Services - Children's Social Care,Children Looked After,Supplies and Services - Transfer Payments,04/01/2012 00:00,426196,520.91,REVENUE,Redacted Personal Data,
Peterborough,http://opendatacommunities.org/id/unitary-authority/peterborough,Peterborough City Council,Children's & Education Services - Children's Social Care,Children Looked After,Supplies and Services - Transfer Payments,04/01/2012 00:00,426210,1484.75,REVENUE,Redacted Personal Data,
Peterborough,http://opendatacommunities.org/id/unitary-authority/peterborough,Peterborough City Council,Children's & Education Services - Children's Social Care,Children Looked After,Supplies and Services - Transfer Payments,04/01/2012 00:00,426211,707.42,REVENUE,Redacted Personal Data,
Peterborough,http://opendatacommunities.org/id/unitary-authority/peterborough,Peterborough City Council,Children's & Education Services - Children's Social Care,Children Looked After,Supplies and Services - Transfer Payments,04/01/2012 00:00,426222,539.93,REVENUE,Redacted Personal Data,
Peterborough,http://opendatacommunities.org/id/unitary-authority/peterborough,Peterborough City Council,Children's & Education Services - Children's Social Care,Children Looked After,Supplies and Services - Transfer Payments,04/01/2012 00:00,426223,591.87,REVENUE,Redacted Personal Data,
Peterborough,http://opendatacommunities.org/id/unitary-authority/peterborough,Peterborough City Council,Children's & Education Services - Children's Social Care,Other Children's & Families Services,Supplies and Services,04/01/2012 00:00,426231,535.5,REVENUE,Stor-A-File Ltd,
Peterborough,http://opendatacommunities.org/id/unitary-authority/peterborough,Peterborough City Council,Children's & Education Services - Children's Social Care,Support Services & Management Costs,Supplies and Services,04/01/2012 00:00,426234,600,REVENUE,"Ganteaume, Ms Natalie",
Peterborough,http://opendatacommunities.org/id/unitary-authority/peterborough,Peterborough City Council,Children's & Education Services - Children's Social Care,Support Services & Management Costs,Supplies and Services,04/01/2012 00:00,426241,4620,REVENUE,"Jerman, Mr Anthony",
Peterborough,http://opendatacommunities.org/id/unitary-authority/peterborough,Peterborough City Council,More than one Service Area Category,More than one Service Division,Balance Sheet,04/01/2012 00:00,426277,6078.09,Balance Sheet,The Prudential Assurance Company Ltd,
Peterborough,http://opendatacommunities.org/id/unitary-authority/peterborough,Peterborough City Council,More than one Service Area Category,More than one Service Division,Balance Sheet,04/01/2012 00:00,426278,758291.85,Balance Sheet,Teachers Pensions,
Peterborough,http://opendatacommunities.org/id/unitary-authority/peterborough,Peterborough City Council,Housing Services,Private Sector Housing Renewal,Supplies and Services,04/01/2012 00:00,426284,-612,REVENUE,Fletton Electrics Ltd,
Peterborough,http://opendatacommunities.org/id/unitary-authority/peterborough,Peterborough City Council,Housing Services,Private Sector Housing Renewal,Supplies and Services,04/01/2012 00:00,426286,765,REVENUE,Fletton Electrics Ltd,
Peterborough,http://opendatacommunities.org/id/unitary-authority/peterborough,Peterborough City Council,More than one Service Area Category,More than one Service Division,Balance Sheet,04/01/2012 00:00,426287,6606.85,Balance Sheet,Teachers Pensions,
Peterborough,http://opendatacommunities.org/id/unitary-authority/peterborough,Peterborough City Council,More than one Service Area Category,More than one Service Division,Balance Sheet,04/01/2012 00:00,426289,7092.58,Balance Sheet,The Prudential Assurance Company Ltd,
Peterborough,http://opendatacommunities.org/id/unitary-authority/peterborough,Peterborough City Council,Children's & Education Services - Children's Social Care,Children Looked After,Supplies and Services - Transfer Payments,04/01/2012 00:00,426297,2785.71,REVENUE,Partners In Parenting,
Peterborough,http://opendatacommunities.org/id/unitary-authority/peterborough,Peterborough City Council,Children's & Education Services - Children's Social Care,Children Looked After,Supplies and Services - Transfer Payments,04/01/2012 00:00,426298,2878.57,REVENUE,Partners In Parenting,
Peterborough,http://opendatacommunities.org/id/unitary-authority/peterborough,Peterborough City Council,Children's & Education Services - Children's Social Care,Children Looked After,Supplies and Services - Transfer Payments,04/01/2012 00:00,426299,2785.71,REVENUE,Partners In Parenting,
Peterborough,http://opendatacommunities.org/id/unitary-authority/peterborough,Peterborough City Council,Children's & Education Services - Children's Social Care,Children Looked After,Supplies and Services - Transfer Payments,04/01/2012 00:00,426300,2878.57,REVENUE,Partners In Parenting,
Peterborough,http://opendatacommunities.org/id/unitary-authority/peterborough,Peterborough City Council,Capital,Capital,Capital Pending Update to BS,04/01/2012 00:00,426301,2676.02,CAPITAL,British Gas Business,
Peterborough,http://opendatacommunities.org/id/unitary-authority/peterborough,Peterborough City Council,"Highways, Roads & Transport Services",Public Transport,Supplies and Services,04/01/2012 00:00,426307,714,REVENUE,System Vision Ltd,
Peterborough,http://opendatacommunities.org/id/unitary-authority/peterborough,Peterborough City Council,Children's & Education Services - Education,Non-School Funding,Transport,04/01/2012 00:00,426324,669.6,REVENUE,Woodgrange Travel Ltd t/a DiamondCars,
Peterborough,http://opendatacommunities.org/id/unitary-authority/peterborough,Peterborough City Council,Children's & Education Services - Education,Non-School Funding,Transport,04/01/2012 00:00,426325,988.8,REVENUE,Woodgrange Travel Ltd t/a DiamondCars,
Peterborough,http://opendatacommunities.org/id/unitary-authority/peterborough,Peterborough City Council,Children's & Education Services - Education,Non-School Funding,Transport,04/01/2012 00:00,426326,1386,REVENUE,R T Enterprises Ltd T/A Royal Taxis,
Peterborough,http://opendatacommunities.org/id/unitary-authority/peterborough,Peterborough City Council,Children's & Education Services - Education,Non-School Funding,Transport,04/01/2012 00:00,426327,1310.4,REVENUE,R T Enterprises Ltd T/A Royal Taxis,
Peterborough,http://opendatacommunities.org/id/unitary-authority/peterborough,Peterborough City Council,Children's & Education Services - Education,Non-School Funding,Transport,04/01/2012 00:00,426328,922.2,REVENUE,Ash School Transport,
Peterborough,http://opendatacommunities.org/id/unitary-authority/peterborough,Peterborough City Council,Children's & Education Services - Education,Non-School Funding,Transport,04/01/2012 00:00,426330,756,REVENUE,Peterborough Cars,
Peterborough,http://opendatacommunities.org/id/unitary-authority/peterborough,Peterborough City Council,Children's & Education Services - Education,Non-School Funding,Transport,04/01/2012 00:00,426333,741,REVENUE,Goldstar Cabs Ltd,
Peterborough,http://opendatacommunities.org/id/unitary-authority/peterborough,Peterborough City Council,Children's & Education Services - Education,Non-School Funding,Transport,04/01/2012 00:00,426334,1299.6,REVENUE,Goldstar Cabs Ltd,
Peterborough,http://opendatacommunities.org/id/unitary-authority/peterborough,Peterborough City Council,More than one Service Area Category,More than one Service Division,Transport,04/01/2012 00:00,426335,953.28,REVENUE,Goldstar Cabs Ltd,
Peterborough,http://opendatacommunities.org/id/unitary-authority/peterborough,Peterborough City Council,Children's & Education Services - Education,Non-School Funding,Transport,04/01/2012 00:00,426336,1068.48,REVENUE,Goldstar Cabs Ltd,
Peterborough,http://opendatacommunities.org/id/unitary-authority/peterborough,Peterborough City Council,Children's & Education Services - Education,Non-School Funding,Transport,04/01/2012 00:00,426337,873,REVENUE,Goldstar Cabs Ltd,
Peterborough,http://opendatacommunities.org/id/unitary-authority/peterborough,Peterborough City Council,Children's & Education Services - Education,Non-School Funding,Transport,04/01/2012 00:00,426338,792,REVENUE,Goldstar Cabs Ltd,
Peterborough,http://opendatacommunities.org/id/unitary-authority/peterborough,Peterborough City Council,Children's & Education Services - Education,Non-School Funding,Transport,04/01/2012 00:00,426340,993.6,REVENUE,Goldstar Cabs Ltd,
Peterborough,http://opendatacommunities.org/id/unitary-authority/peterborough,Peterborough City Council,Children's & Education Services - Education,Non-School Funding,Transport,04/01/2012 00:00,426342,1108.8,REVENUE,Goldstar Cabs Ltd,
Peterborough,http://opendatacommunities.org/id/unitary-authority/peterborough,Peterborough City Council,Children's & Education Services - Education,Non-School Funding,Transport,04/01/2012 00:00,426343,676.8,REVENUE,Goldstar Cabs Ltd,
Peterborough,http://opendatacommunities.org/id/unitary-authority/peterborough,Peterborough City Council,Children's & Education Services - Education,Non-School Funding,Transport,04/01/2012 00:00,426344,817.92,REVENUE,Goldstar Cabs Ltd,
Peterborough,http://opendatacommunities.org/id/unitary-authority/peterborough,Peterborough City Council,Children's & Education Services - Education,Non-School Funding,Transport,04/01/2012 00:00,426346,1051.2,REVENUE,Goldstar Cabs Ltd,
Peterborough,http://opendatacommunities.org/id/unitary-authority/peterborough,Peterborough City Council,Children's & Education Services - Education,Non-School Funding,Transport,04/01/2012 00:00,426347,1684.5,REVENUE,Goldstar Cabs Ltd,
Peterborough,http://opendatacommunities.org/id/unitary-authority/peterborough,Peterborough City Council,Children's & Education Services - Education,Non-School Funding,Transport,04/01/2012 00:00,426349,1008,REVENUE,Goldstar Cabs Ltd,
Peterborough,http://opendatacommunities.org/id/unitary-authority/peterborough,Peterborough City Council,More than one Service Area Category,More than one Service Division,More than one Expenses Type,04/01/2012 00:00,426367,1605,"Mixture of Capital, Revenue and/or Balance Sheet",Dolphin Mobility East Midlands Ltd,
Peterborough,http://opendatacommunities.org/id/unitary-authority/peterborough,Peterborough City Council,Children's & Education Services - Children's Social Care,Children Looked After,Supplies and Services - Transfer Payments,04/01/2012 00:00,426369,607.14,REVENUE,Young Options College Ltd,
Peterborough,http://opendatacommunities.org/id/unitary-authority/peterborough,Peterborough City Council,Children's & Education Services - Children's Social Care,Family Support Services,Third Party Payments,04/01/2012 00:00,426371,63833.25,REVENUE,Peterborough Diocesan Family Care,
Peterborough,http://opendatacommunities.org/id/unitary-authority/peterborough,Peterborough City Council,Capital,Capital,Capital Pending Update to BS,04/01/2012 00:00,426375,1630.45,CAPITAL,Carillion Energy Services Ltd,
Peterborough,http://opendatacommunities.org/id/unitary-authority/peterborough,Peterborough City Council,More than one Service Area Category,More than one Service Division,More than one Expenses Type,04/01/2012 00:00,426377,4530,"Mixture of Capital, Revenue and/or Balance Sheet",Optimum Plumbing & Heating Ltd,
Peterborough,http://opendatacommunities.org/id/unitary-authority/peterborough,Peterborough City Council,More than one Service Area Category,More than one Service Division,More than one Expenses Type,04/01/2012 00:00,426379,4264.05,"Mixture of Capital, Revenue and/or Balance Sheet",Thermowall Ltd,
Peterborough,http://opendatacommunities.org/id/unitary-authority/peterborough,Peterborough City Council,More than one Service Area Category,More than one Service Division,More than one Expenses Type,04/01/2012 00:00,426388,4257.64,"Mixture of Capital, Revenue and/or Balance Sheet",Burmor Construction,
Peterborough,http://opendatacommunities.org/id/unitary-authority/peterborough,Peterborough City Council,More than one Service Area Category,More than one Service Division,More than one Expenses Type,04/01/2012 00:00,426393,4565.4,"Mixture of Capital, Revenue and/or Balance Sheet",Optimum Plumbing & Heating Ltd,
Peterborough,http://opendatacommunities.org/id/unitary-authority/peterborough,Peterborough City Council,Capital,Capital,Capital Pending Update to BS,04/01/2012 00:00,426395,4971.6,CAPITAL,Optimum Plumbing & Heating Ltd,
Peterborough,http://opendatacommunities.org/id/unitary-authority/peterborough,Peterborough City Council,More than one Service Area Category,More than one Service Division,More than one Expenses Type,04/01/2012 00:00,426414,2038,"Mixture of Capital, Revenue and/or Balance Sheet",Redacted Personal Data,
Peterborough,http://opendatacommunities.org/id/unitary-authority/peterborough,Peterborough City Council,More than one Service Area Category,More than one Service Division,More than one Expenses Type,04/01/2012 00:00,426443,2320.5,"Mixture of Capital, Revenue and/or Balance Sheet",Optimum Plumbing & Heating Ltd,
Peterborough,http://opendatacommunities.org/id/unitary-authority/peterborough,Peterborough City Council,More than one Service Area Category,More than one Service Division,More than one Expenses Type,04/01/2012 00:00,426444,8261.91,"Mixture of Capital, Revenue and/or Balance Sheet",Burmor Construction,
Peterborough,http://opendatacommunities.org/id/unitary-authority/peterborough,Peterborough City Council,Planning Services,Economic Development,Third Party Payments,06/01/2012 00:00,400622,700,REVENUE,East Community Association,
Peterborough,http://opendatacommunities.org/id/unitary-authority/peterborough,Peterborough City Council,Children's & Education Services - Children's Social Care,Children Looked After,Supplies and Services - Transfer Payments,06/01/2012 00:00,415778,3560.59,REVENUE,Key2,
Peterborough,http://opendatacommunities.org/id/unitary-authority/peterborough,Peterborough City Council,Children's & Education Services - Children's Social Care,Children Looked After,Supplies and Services - Transfer Payments,06/01/2012 00:00,415779,3155.7,REVENUE,Alliance Foster Care,
Peterborough,http://opendatacommunities.org/id/unitary-authority/peterborough,Peterborough City Council,Children's & Education Services - Children's Social Care,Children Looked After,Supplies and Services - Transfer Payments,06/01/2012 00:00,415788,3155.7,REVENUE,Alliance Foster Care,
Peterborough,http://opendatacommunities.org/id/unitary-authority/peterborough,Peterborough City Council,Children's & Education Services - Children's Social Care,Children Looked After,Supplies and Services - Transfer Payments,06/01/2012 00:00,415789,2631.3,REVENUE,Alliance Foster Care,
Peterborough,http://opendatacommunities.org/id/unitary-authority/peterborough,Peterborough City Council,Children's & Education Services - Children's Social Care,Children Looked After,Supplies and Services - Transfer Payments,06/01/2012 00:00,422325,4842.36,REVENUE,Key2,
Peterborough,http://opendatacommunities.org/id/unitary-authority/peterborough,Peterborough City Council,Children's & Education Services - Children's Social Care,Children Looked After,Supplies and Services - Transfer Payments,06/01/2012 00:00,422333,3445.92,REVENUE,Key2,
Peterborough,http://opendatacommunities.org/id/unitary-authority/peterborough,Peterborough City Council,"Highways, Roads & Transport Services","Transport planning, policy and strategy",Transport,06/01/2012 00:00,422576,2942.32,REVENUE,Atkins Limited,
Peterborough,http://opendatacommunities.org/id/unitary-authority/peterborough,Peterborough City Council,"Highways, Roads & Transport Services","Transport planning, policy and strategy",Transport,06/01/2012 00:00,422582,1087.99,REVENUE,Atkins Limited,
Peterborough,http://opendatacommunities.org/id/unitary-authority/peterborough,Peterborough City Council,Capital,Capital,Capital Pending Update to BS,06/01/2012 00:00,422586,14944.73,CAPITAL,Atkins Limited,
Peterborough,http://opendatacommunities.org/id/unitary-authority/peterborough,Peterborough City Council,Capital,Capital,Capital Pending Update to BS,06/01/2012 00:00,422588,1674.44,CAPITAL,Atkins Limited,
Peterborough,http://opendatacommunities.org/id/unitary-authority/peterborough,Peterborough City Council,"Highways, Roads & Transport Services","Environmental, Safety & Routine Maintenance",Transport,06/01/2012 00:00,422591,8454.02,REVENUE,Atkins Limited,
Peterborough,http://opendatacommunities.org/id/unitary-authority/peterborough,Peterborough City Council,Capital,Capital,Capital Pending Update to BS,06/01/2012 00:00,422593,1074.86,CAPITAL,Atkins Limited,
Peterborough,http://opendatacommunities.org/id/unitary-authority/peterborough,Peterborough City Council,"Highways, Roads & Transport Services","Transport planning, policy and strategy",Transport,06/01/2012 00:00,422596,8495.76,REVENUE,Atkins Limited,
Peterborough,http://opendatacommunities.org/id/unitary-authority/peterborough,Peterborough City Council,Capital,Capital,Capital Pending Update to BS,06/01/2012 00:00,422601,1020.24,CAPITAL,Atkins Limited,
Peterborough,http://opendatacommunities.org/id/unitary-authority/peterborough,Peterborough City Council,"Highways, Roads & Transport Services",Highways/road (structural),Transport,06/01/2012 00:00,422606,1179.23,REVENUE,Atkins Limited,
Peterborough,http://opendatacommunities.org/id/unitary-authority/peterborough,Peterborough City Council,Capital,Capital,Capital Pending Update to BS,06/01/2012 00:00,422613,1391.06,CAPITAL,Atkins Limited,
Peterborough,http://opendatacommunities.org/id/unitary-authority/peterborough,Peterborough City Council,Capital,Capital,Capital Pending Update to BS,06/01/2012 00:00,422623,5367.48,CAPITAL,Atkins Limited,
Peterborough,http://opendatacommunities.org/id/unitary-authority/peterborough,Peterborough City Council,"Highways, Roads & Transport Services","Transport planning, policy and strategy",Transport,06/01/2012 00:00,422624,776.24,REVENUE,Atkins Limited,
Peterborough,http://opendatacommunities.org/id/unitary-authority/peterborough,Peterborough City Council,Capital,Capital,Capital Pending Update to BS,06/01/2012 00:00,422628,6796.37,CAPITAL,Atkins Limited,
Peterborough,http://opendatacommunities.org/id/unitary-authority/peterborough,Peterborough City Council,Capital,Capital,Capital Pending Update to BS,06/01/2012 00:00,422635,935.29,CAPITAL,Atkins Limited,
Peterborough,http://opendatacommunities.org/id/unitary-authority/peterborough,Peterborough City Council,Capital,Capital,Capital Pending Update to BS,06/01/2012 00:00,422638,887.16,CAPITAL,Atkins Limited,
Peterborough,http://opendatacommunities.org/id/unitary-authority/peterborough,Peterborough City Council,Capital,Capital,Capital Pending Update to BS,06/01/2012 00:00,422640,8255.78,CAPITAL,Atkins Limited,
Peterborough,http://opendatacommunities.org/id/unitary-authority/peterborough,Peterborough City Council,Children's & Education Services - Education,Secondary,Transport,06/01/2012 00:00,422641,7200,REVENUE,Atkins Limited,
Peterborough,http://opendatacommunities.org/id/unitary-authority/peterborough,Peterborough City Council,Capital,Capital,Capital Pending Update to BS,06/01/2012 00:00,422649,887.18,CAPITAL,Atkins Limited,
Peterborough,http://opendatacommunities.org/id/unitary-authority/peterborough,Peterborough City Council,"Highways, Roads & Transport Services",Street Lighting,Transport,06/01/2012 00:00,422650,7851.37,REVENUE,Atkins Limited,
Peterborough,http://opendatacommunities.org/id/unitary-authority/peterborough,Peterborough City Council,Capital,Capital,Capital Pending Update to BS,06/01/2012 00:00,422651,5308.82,CAPITAL,Atkins Limited,
Peterborough,http://opendatacommunities.org/id/unitary-authority/peterborough,Peterborough City Council,Capital,Capital,Capital Pending Update to BS,06/01/2012 00:00,422657,3600,CAPITAL,Atkins Limited,
Peterborough,http://opendatacommunities.org/id/unitary-authority/peterborough,Peterborough City Council,Children's & Education Services - Education,Secondary,Employees,06/01/2012 00:00,423432,11190,REVENUE,Mana Resourcing Ltd,
Peterborough,http://opendatacommunities.org/id/unitary-authority/peterborough,Peterborough City Council,Children's & Education Services - Education,Secondary,Employees,06/01/2012 00:00,423732,11700,REVENUE,Mana Resourcing Ltd,
Peterborough,http://opendatacommunities.org/id/unitary-authority/peterborough,Peterborough City Council,Cultural and Related Services,Waste Collection,Supplies and Services,06/01/2012 00:00,424062,281071.69,REVENUE,Waste Recycling Ltd,
Peterborough,http://opendatacommunities.org/id/unitary-authority/peterborough,Peterborough City Council,Capital,Capital,Capital Pending Update to BS,06/01/2012 00:00,425197,4790.4,CAPITAL,Ringway Infrastructure Services,
Peterborough,http://opendatacommunities.org/id/unitary-authority/peterborough,Peterborough City Council,"Highways, Roads & Transport Services",Public Transport,Supplies and Services,06/01/2012 00:00,425514,164344.34,REVENUE,Stagecoach in Peterborough,
Peterborough,http://opendatacommunities.org/id/unitary-authority/peterborough,Peterborough City Council,"Highways, Roads & Transport Services",Public Transport,Supplies and Services,06/01/2012 00:00,425515,6400,REVENUE,Stagecoach in Peterborough,
Peterborough,http://opendatacommunities.org/id/unitary-authority/peterborough,Peterborough City Council,"Highways, Roads & Transport Services",Public Transport,Supplies and Services,06/01/2012 00:00,425516,17801.15,REVENUE,Stagecoach in Peterborough,
Peterborough,http://opendatacommunities.org/id/unitary-authority/peterborough,Peterborough City Council,"Highways, Roads & Transport Services",Public Transport,Supplies and Services,06/01/2012 00:00,425517,17841.62,REVENUE,Stagecoach in Peterborough,
Peterborough,http://opendatacommunities.org/id/unitary-authority/peterborough,Peterborough City Council,"Highways, Roads & Transport Services",Public Transport,Supplies and Services,06/01/2012 00:00,425518,34588.81,REVENUE,Stagecoach in Peterborough,
Peterborough,http://opendatacommunities.org/id/unitary-authority/peterborough,Peterborough City Council,"Highways, Roads & Transport Services",Public Transport,Supplies and Services,06/01/2012 00:00,425521,4800,REVENUE,Stagecoach in Peterborough,
Peterborough,http://opendatacommunities.org/id/unitary-authority/peterborough,Peterborough City Council,"Highways, Roads & Transport Services",Public Transport,Supplies and Services,06/01/2012 00:00,425800,7514,REVENUE,Centrebus North Ltd,
Peterborough,http://opendatacommunities.org/id/unitary-authority/peterborough,Peterborough City Council,"Highways, Roads & Transport Services",Public Transport,Supplies and Services,06/01/2012 00:00,425801,1838.91,REVENUE,Statutory Payment of Concessionary Fares to Bus Provider,
Peterborough,http://opendatacommunities.org/id/unitary-authority/peterborough,Peterborough City Council,"Highways, Roads & Transport Services",Public Transport,Supplies and Services,06/01/2012 00:00,425805,15000,REVENUE,First Eastern Counties Buses Ltd,
Peterborough,http://opendatacommunities.org/id/unitary-authority/peterborough,Peterborough City Council,More than one Service Area Category,More than one Service Division,More than one Expenses Type,06/01/2012 00:00,425818,1680.51,REVENUE,Peterborough City Council,
Peterborough,http://opendatacommunities.org/id/unitary-authority/peterborough,Peterborough City Council,Cultural and Related Services,Tourism,Supplies and Services,06/01/2012 00:00,426295,2066.25,REVENUE,Peterborough Male Voice Choir,
Peterborough,http://opendatacommunities.org/id/unitary-authority/peterborough,Peterborough City Council,Cultural and Related Services,Tourism,Supplies and Services,06/01/2012 00:00,426296,2824,REVENUE,Chapter of Peterborough Cathedral,
Peterborough,http://opendatacommunities.org/id/unitary-authority/peterborough,Peterborough City Council,Planning Services,Economic Development,Third Party Payments,06/01/2012 00:00,426448,500,REVENUE,Westwood Residents Association,
Peterborough,http://opendatacommunities.org/id/unitary-authority/peterborough,Peterborough City Council,Support Services,Support Services,Supplies and Services,06/01/2012 00:00,426452,2116.8,REVENUE,Serco Ltd,
Peterborough,http://opendatacommunities.org/id/unitary-authority/peterborough,Peterborough City Council,Children's & Education Services - Education,Non-School Funding,Supplies and Services,06/01/2012 00:00,426485,928,REVENUE,Bailgate Developments,
Peterborough,http://opendatacommunities.org/id/unitary-authority/peterborough,Peterborough City Council,Children's & Education Services - Education,Non-School Funding,Supplies and Services,06/01/2012 00:00,426486,1180,REVENUE,Redacted Personal Data,
Peterborough,http://opendatacommunities.org/id/unitary-authority/peterborough,Peterborough City Council,Planning Services,Economic Development,Premises,06/01/2012 00:00,426523,5401.95,REVENUE,Centre for Sustainable Engineering,
Peterborough,http://opendatacommunities.org/id/unitary-authority/peterborough,Peterborough City Council,Planning Services,Economic Development,Premises,06/01/2012 00:00,426524,-3433.93,REVENUE,Centre for Sustainable Engineering,
Peterborough,http://opendatacommunities.org/id/unitary-authority/peterborough,Peterborough City Council,Children's & Education Services - Children's Social Care,Support Services & Management Costs,Supplies and Services,06/01/2012 00:00,426537,3276,REVENUE,Symbol,
Peterborough,http://opendatacommunities.org/id/unitary-authority/peterborough,Peterborough City Council,Children's & Education Services - Education,Non-School Funding,Transport,06/01/2012 00:00,426602,918.24,REVENUE,Goldstar Cabs Ltd,
Peterborough,http://opendatacommunities.org/id/unitary-authority/peterborough,Peterborough City Council,Children's & Education Services - Education,Non-School Funding,Transport,06/01/2012 00:00,426604,3029.61,REVENUE,Translinc Ltd,
Peterborough,http://opendatacommunities.org/id/unitary-authority/peterborough,Peterborough City Council,Children's & Education Services - Education,Non-School Funding,Transport,06/01/2012 00:00,426605,2540.01,REVENUE,Translinc Ltd,
Peterborough,http://opendatacommunities.org/id/unitary-authority/peterborough,Peterborough City Council,Children's & Education Services - Education,Non-School Funding,Transport,06/01/2012 00:00,426606,2663.01,REVENUE,Translinc Ltd,
Peterborough,http://opendatacommunities.org/id/unitary-authority/peterborough,Peterborough City Council,Children's & Education Services - Education,Non-School Funding,Transport,06/01/2012 00:00,426607,2636.35,REVENUE,Translinc Ltd,
Peterborough,http://opendatacommunities.org/id/unitary-authority/peterborough,Peterborough City Council,Children's & Education Services - Education,Non-School Funding,Transport,06/01/2012 00:00,426608,2403.94,REVENUE,Translinc Ltd,
Peterborough,http://opendatacommunities.org/id/unitary-authority/peterborough,Peterborough City Council,Children's & Education Services - Education,Non-School Funding,Transport,06/01/2012 00:00,426609,2154,REVENUE,Shaws Coaches,
Peterborough,http://opendatacommunities.org/id/unitary-authority/peterborough,Peterborough City Council,Children's & Education Services - Education,Non-School Funding,Transport,06/01/2012 00:00,426616,1995,REVENUE,Centrebus North Ltd,
Peterborough,http://opendatacommunities.org/id/unitary-authority/peterborough,Peterborough City Council,Cultural and Related Services,Support Services & Management Costs,Premises,06/01/2012 00:00,426617,1039.32,REVENUE,E.ON Energy,
Peterborough,http://opendatacommunities.org/id/unitary-authority/peterborough,Peterborough City Council,Capital,Capital,Capital Pending Update to BS,06/01/2012 00:00,426637,720,CAPITAL,AMTEC Consulting Plc,
Peterborough,http://opendatacommunities.org/id/unitary-authority/peterborough,Peterborough City Council,Capital,Capital,Capital Pending Update to BS,06/01/2012 00:00,426638,6550.18,CAPITAL,AMTEC Consulting Plc,
Peterborough,http://opendatacommunities.org/id/unitary-authority/peterborough,Peterborough City Council,Planning Services,Economic Development,Third Party Payments,06/01/2012 00:00,426639,12919.39,REVENUE,AMTEC Consulting Plc,
Peterborough,http://opendatacommunities.org/id/unitary-authority/peterborough,Peterborough City Council,Adult Social Care,Service Strategy,Supplies and Services,06/01/2012 00:00,426640,42930,REVENUE,AMTEC Consulting Plc,
Peterborough,http://opendatacommunities.org/id/unitary-authority/peterborough,Peterborough City Council,Support Services,Support Services,Supplies and Services,06/01/2012 00:00,426641,14874,REVENUE,AMTEC Consulting Plc,
Peterborough,http://opendatacommunities.org/id/unitary-authority/peterborough,Peterborough City Council,Children's & Education Services - Education,Other School -related Education Functions,Supplies and Services,06/01/2012 00:00,426642,5716.8,REVENUE,AMTEC Consulting Plc,
Peterborough,http://opendatacommunities.org/id/unitary-authority/peterborough,Peterborough City Council,Children's & Education Services - Education,Other School -related Education Functions,Supplies and Services,06/01/2012 00:00,426643,4764,REVENUE,AMTEC Consulting Plc,
Peterborough,http://opendatacommunities.org/id/unitary-authority/peterborough,Peterborough City Council,Capital,Capital,Capital Pending Update to BS,06/01/2012 00:00,426644,29240.4,CAPITAL,AMTEC Consulting Plc,
Peterborough,http://opendatacommunities.org/id/unitary-authority/peterborough,Peterborough City Council,Support Services,Support Services,Supplies and Services,06/01/2012 00:00,426646,13770,REVENUE,AMTEC Consulting Plc,
Peterborough,http://opendatacommunities.org/id/unitary-authority/peterborough,Peterborough City Council,Capital,Capital,Capital Pending Update to BS,06/01/2012 00:00,426647,720,CAPITAL,AMTEC Consulting Plc,
Peterborough,http://opendatacommunities.org/id/unitary-authority/peterborough,Peterborough City Council,Support Services,Support Services,Supplies and Services,06/01/2012 00:00,426648,1620,REVENUE,AMTEC Consulting Plc,
Peterborough,http://opendatacommunities.org/id/unitary-authority/peterborough,Peterborough City Council,Capital,Capital,Capital Pending Update to BS,06/01/2012 00:00,426649,37648.2,CAPITAL,AMTEC Consulting Plc,
Peterborough,http://opendatacommunities.org/id/unitary-authority/peterborough,Peterborough City Council,Capital,Capital,Capital Pending Update to BS,06/01/2012 00:00,426650,14142,CAPITAL,AMTEC Consulting Plc,
Peterborough,http://opendatacommunities.org/id/unitary-authority/peterborough,Peterborough City Council,Capital,Capital,Capital Pending Update to BS,06/01/2012 00:00,426651,13449.41,CAPITAL,AMTEC Consulting Plc,
Peterborough,http://opendatacommunities.org/id/unitary-authority/peterborough,Peterborough City Council,Planning Services,Economic Development,Third Party Payments,06/01/2012 00:00,426653,11483.9,REVENUE,AMTEC Consulting Plc,
Peterborough,http://opendatacommunities.org/id/unitary-authority/peterborough,Peterborough City Council,Support Services,Support Services,Supplies and Services,06/01/2012 00:00,426654,8211,REVENUE,AMTEC Consulting Plc,
Peterborough,http://opendatacommunities.org/id/unitary-authority/peterborough,Peterborough City Council,Support Services,Support Services,Supplies and Services,06/01/2012 00:00,426656,6804,REVENUE,AMTEC Consulting Plc,
Peterborough,http://opendatacommunities.org/id/unitary-authority/peterborough,Peterborough City Council,Support Services,Support Services,Supplies and Services,06/01/2012 00:00,426657,34110,REVENUE,AMTEC Consulting Plc,
Peterborough,http://opendatacommunities.org/id/unitary-authority/peterborough,Peterborough City Council,Support Services,Support Services,Supplies and Services,06/01/2012 00:00,426658,2862,REVENUE,AMTEC Consulting Plc,
Peterborough,http://opendatacommunities.org/id/unitary-authority/peterborough,Peterborough City Council,Capital,Capital,Capital Pending Update to BS,06/01/2012 00:00,426660,5400,CAPITAL,AMTEC Consulting Plc,
Peterborough,http://opendatacommunities.org/id/unitary-authority/peterborough,Peterborough City Council,Children's & Education Services - Education,Other School -related Education Functions,Supplies and Services,06/01/2012 00:00,426661,10200,REVENUE,AMTEC Consulting Plc,
Peterborough,http://opendatacommunities.org/id/unitary-authority/peterborough,Peterborough City Council,Central Services to the Public,Elections,Supplies and Services,06/01/2012 00:00,426662,5644.8,REVENUE,AMTEC Consulting Plc,
Peterborough,http://opendatacommunities.org/id/unitary-authority/peterborough,Peterborough City Council,Children's & Education Services - Children's Social Care,Children Looked After,Supplies and Services - Transfer Payments,06/01/2012 00:00,426684,712.99,REVENUE,PC Homes,
Peterborough,http://opendatacommunities.org/id/unitary-authority/peterborough,Peterborough City Council,Deficit/(Surplus) on Trading Undertakings,Trading Account Surpluses & Deficits,Supplies and Services,06/01/2012 00:00,426705,6458.4,REVENUE,AMTEC Consulting Plc,
Peterborough,http://opendatacommunities.org/id/unitary-authority/peterborough,Peterborough City Council,Support Services,Support Services,Supplies and Services,06/01/2012 00:00,426738,717.6,REVENUE,Speedy Couriers,
Peterborough,http://opendatacommunities.org/id/unitary-authority/peterborough,Peterborough City Council,Children's & Education Services - Education,Non-School Funding,Transport,06/01/2012 00:00,426749,1192.55,REVENUE,Peterborough Cars,
Peterborough,http://opendatacommunities.org/id/unitary-authority/peterborough,Peterborough City Council,Children's & Education Services - Education,Non-School Funding,Transport,06/01/2012 00:00,426751,1888.74,REVENUE,Peterborough Cars,
Peterborough,http://opendatacommunities.org/id/unitary-authority/peterborough,Peterborough City Council,Children's & Education Services - Education,Non-School Funding,Transport,06/01/2012 00:00,426753,1328.4,REVENUE,Goldstar Cabs Ltd,
Peterborough,http://opendatacommunities.org/id/unitary-authority/peterborough,Peterborough City Council,Children's & Education Services - Education,Non-School Funding,Transport,06/01/2012 00:00,426754,564,REVENUE,Goldstar Cabs Ltd,
Peterborough,http://opendatacommunities.org/id/unitary-authority/peterborough,Peterborough City Council,Children's & Education Services - Education,Non-School Funding,Transport,06/01/2012 00:00,426755,1692,REVENUE,Goldstar Cabs Ltd,
Peterborough,http://opendatacommunities.org/id/unitary-authority/peterborough,Peterborough City Council,More than one Service Area Category,More than one Service Division,Transport,06/01/2012 00:00,426756,709.8,REVENUE,Goldstar Cabs Ltd,
Peterborough,http://opendatacommunities.org/id/unitary-authority/peterborough,Peterborough City Council,Children's & Education Services - Education,Non-School Funding,Supplies and Services,06/01/2012 00:00,426798,557.17,REVENUE,Prospects,
Peterborough,http://opendatacommunities.org/id/unitary-authority/peterborough,Peterborough City Council,Adult Social Care,Adult Social Care,Third Party Payments,06/01/2012 00:00,426802,3305909.1,REVENUE,Peterborough PCT,
Peterborough,http://opendatacommunities.org/id/unitary-authority/peterborough,Peterborough City Council,More than one Service Area Category,More than one Service Division,Premises,06/01/2012 00:00,426824,1128.16,REVENUE,Anglian Water,
Peterborough,http://opendatacommunities.org/id/unitary-authority/peterborough,Peterborough City Council,Planning Services,Economic Development,Premises,06/01/2012 00:00,426834,541.76,REVENUE,British Gas Business,
Peterborough,http://opendatacommunities.org/id/unitary-authority/peterborough,Peterborough City Council,More than one Service Area Category,More than one Service Division,Premises,06/01/2012 00:00,426843,1252.21,REVENUE,Southern Electric,
Peterborough,http://opendatacommunities.org/id/unitary-authority/peterborough,Peterborough City Council,Housing Services,Homelessness,Supplies and Services,06/01/2012 00:00,426867,550,REVENUE,Rooms 4 U,
Peterborough,http://opendatacommunities.org/id/unitary-authority/peterborough,Peterborough City Council,Children's & Education Services - Children's Social Care,Children Looked After,More than one Expenses Type,06/01/2012 00:00,426887,1087.45,REVENUE,Clare Lodge Secure Unit,
Peterborough,http://opendatacommunities.org/id/unitary-authority/peterborough,Peterborough City Council,Children's & Education Services - Children's Social Care,More than one Service Division,More than one Expenses Type,06/01/2012 00:00,426901,878.16,REVENUE,Children & Families Looked After Children,
Peterborough,http://opendatacommunities.org/id/unitary-authority/peterborough,Peterborough City Council,Children's & Education Services - Children's Social Care,Family Support Services,Supplies and Services - Transfer Payments,06/01/2012 00:00,426913,899.61,REVENUE,Cherry Lodge,
Peterborough,http://opendatacommunities.org/id/unitary-authority/peterborough,Peterborough City Council,"Highways, Roads & Transport Services","Transport planning, policy and strategy",Supplies and Services,06/01/2012 00:00,426915,1155.6,REVENUE,Peek Traffic Ltd,
Peterborough,http://opendatacommunities.org/id/unitary-authority/peterborough,Peterborough City Council,Planning Services,Economic Development,Third Party Payments,06/01/2012 00:00,426943,21000,REVENUE,Peterborough Workspace Ltd,
Peterborough,http://opendatacommunities.org/id/unitary-authority/peterborough,Peterborough City Council,Children's & Education Services - Children's Social Care,Other Children's & Families Services,Employees,09/01/2012 00:00,423327,1284.48,REVENUE,The Synergy Group,
Peterborough,http://opendatacommunities.org/id/unitary-authority/peterborough,Peterborough City Council,Children's & Education Services - Children's Social Care,Other Children's & Families Services,Employees,09/01/2012 00:00,423328,1288.62,REVENUE,The Synergy Group,
Peterborough,http://opendatacommunities.org/id/unitary-authority/peterborough,Peterborough City Council,Children's & Education Services - Children's Social Care,Other Children's & Families Services,Employees,09/01/2012 00:00,423332,1061.28,REVENUE,The Synergy Group,
Peterborough,http://opendatacommunities.org/id/unitary-authority/peterborough,Peterborough City Council,Cultural and Related Services,Culture & Heritage,Supplies and Services,09/01/2012 00:00,423352,1693.8,REVENUE,Triple SSS Limited,
Peterborough,http://opendatacommunities.org/id/unitary-authority/peterborough,Peterborough City Council,Children's & Education Services - Children's Social Care,Children's Services - Commissioning and Social Work,Third Party Payments,09/01/2012 00:00,423395,4581.1,REVENUE,DRINKSENSE,
Peterborough,http://opendatacommunities.org/id/unitary-authority/peterborough,Peterborough City Council,Children's & Education Services - Children's Social Care,Support Services & Management Costs,Supplies and Services,09/01/2012 00:00,423446,2039.35,REVENUE,Redacted Personal Data,
Peterborough,http://opendatacommunities.org/id/unitary-authority/peterborough,Peterborough City Council,Children's & Education Services - Education,Non-School Funding,Employees,09/01/2012 00:00,423651,2995.2,REVENUE,National Childminding Association,
Peterborough,http://opendatacommunities.org/id/unitary-authority/peterborough,Peterborough City Council,Children's & Education Services - Children's Social Care,Children Looked After,Employees,09/01/2012 00:00,423660,1832.4,REVENUE,Textbook Teachers,
Peterborough,http://opendatacommunities.org/id/unitary-authority/peterborough,Peterborough City Council,Children's & Education Services - Children's Social Care,Children Looked After,Supplies and Services,09/01/2012 00:00,424006,710.72,REVENUE,Walter Clarke EFG,
Peterborough,http://opendatacommunities.org/id/unitary-authority/peterborough,Peterborough City Council,Children's & Education Services - Children's Social Care,Family Support Services,Third Party Payments,09/01/2012 00:00,424041,24698,REVENUE,Cambs & P'boro NHS Foundation Trust,
Peterborough,http://opendatacommunities.org/id/unitary-authority/peterborough,Peterborough City Council,Children's & Education Services - Children's Social Care,Other Children's & Families Services,Employees,09/01/2012 00:00,424085,1554,REVENUE,Blue Group International Ltd,
Peterborough,http://opendatacommunities.org/id/unitary-authority/peterborough,Peterborough City Council,Capital,Capital,Capital Pending Update to BS,09/01/2012 00:00,424941,166435.46,CAPITAL,Princebuild Limited,
Peterborough,http://opendatacommunities.org/id/unitary-authority/peterborough,Peterborough City Council,Children's & Education Services - Education,Non-School Funding,Supplies and Services,09/01/2012 00:00,424950,6662.5,REVENUE,Cambs & P'boro NHS Foundation Trust,
Peterborough,http://opendatacommunities.org/id/unitary-authority/peterborough,Peterborough City Council,Children's & Education Services - Children's Social Care,Children Looked After,More than one Expenses Type,09/01/2012 00:00,424959,11512.84,REVENUE,Lovell's Hall,
Peterborough,http://opendatacommunities.org/id/unitary-authority/peterborough,Peterborough City Council,Children's & Education Services - Children's Social Care,Children Looked After,Supplies and Services - Transfer Payments,09/01/2012 00:00,424960,9247.08,REVENUE,Lovell's Hall,
Peterborough,http://opendatacommunities.org/id/unitary-authority/peterborough,Peterborough City Council,Deficit/(Surplus) on Trading Undertakings,Trading Account Surpluses & Deficits,Supplies and Services,09/01/2012 00:00,424962,9420,REVENUE,Godric Engineering Ltd,
Peterborough,http://opendatacommunities.org/id/unitary-authority/peterborough,Peterborough City Council,Children's & Education Services - Children's Social Care,Family Support Services,Supplies and Services,09/01/2012 00:00,424966,48480.25,REVENUE,Cambs & P'boro NHS Foundation Trust,
Peterborough,http://opendatacommunities.org/id/unitary-authority/peterborough,Peterborough City Council,Children's & Education Services - Children's Social Care,Children Looked After,Supplies and Services,09/01/2012 00:00,425013,1022.89,REVENUE,Redacted Personal Data,
Peterborough,http://opendatacommunities.org/id/unitary-authority/peterborough,Peterborough City Council,Capital,Capital,Capital Pending Update to BS,09/01/2012 00:00,425060,6143.73,CAPITAL,VIX ACIS Ltd,
Peterborough,http://opendatacommunities.org/id/unitary-authority/peterborough,Peterborough City Council,Children's & Education Services - Education,Secondary,Supplies and Services,09/01/2012 00:00,425061,844.2,REVENUE,Serco Ltd,
Peterborough,http://opendatacommunities.org/id/unitary-authority/peterborough,Peterborough City Council,Capital,Capital,Capital Pending Update to BS,09/01/2012 00:00,425064,1420.32,CAPITAL,Pitney Bowes Software Ltd,
Peterborough,http://opendatacommunities.org/id/unitary-authority/peterborough,Peterborough City Council,Children's & Education Services - Children's Social Care,Other Children's & Families Services,Employees,09/01/2012 00:00,425067,1658.78,REVENUE,Blue Group International Ltd,
Peterborough,http://opendatacommunities.org/id/unitary-authority/peterborough,Peterborough City Council,Capital,Capital,Capital Pending Update to BS,09/01/2012 00:00,425174,30000,CAPITAL,Peter Brett Associates,
Peterborough,http://opendatacommunities.org/id/unitary-authority/peterborough,Peterborough City Council,Children's & Education Services - Education,Support Services & Management Costs,Supplies and Services,09/01/2012 00:00,425176,3547.8,REVENUE,Serco Ltd,
Peterborough,http://opendatacommunities.org/id/unitary-authority/peterborough,Peterborough City Council,Central Services to the Public,Emergency Planning,Supplies and Services,09/01/2012 00:00,425179,898.37,REVENUE,Serco Ltd,
Peterborough,http://opendatacommunities.org/id/unitary-authority/peterborough,Peterborough City Council,Children's & Education Services - Children's Social Care,Other Children's & Families Services,Employees,09/01/2012 00:00,425190,1530,REVENUE,Medicare First,
Peterborough,http://opendatacommunities.org/id/unitary-authority/peterborough,Peterborough City Council,Children's & Education Services - Children's Social Care,Other Children's & Families Services,Employees,09/01/2012 00:00,425192,1356.6,REVENUE,Medicare First,
Peterborough,http://opendatacommunities.org/id/unitary-authority/peterborough,Peterborough City Council,Children's & Education Services - Children's Social Care,Other Children's & Families Services,Employees,09/01/2012 00:00,425195,1467.84,REVENUE,Medicare First,
Peterborough,http://opendatacommunities.org/id/unitary-authority/peterborough,Peterborough City Council,Deficit/(Surplus) on Trading Undertakings,Trading Account Surpluses & Deficits,Supplies and Services,09/01/2012 00:00,425263,505.39,REVENUE,Marlor Tooling Ltd,
Peterborough,http://opendatacommunities.org/id/unitary-authority/peterborough,Peterborough City Council,Support Services,Support Services,Employees,09/01/2012 00:00,425347,590.94,REVENUE,Reed Specialist Recruitment,
Peterborough,http://opendatacommunities.org/id/unitary-authority/peterborough,Peterborough City Council,Adult Social Care,Adult Social Care,Supplies and Services,09/01/2012 00:00,425802,325012.57,REVENUE,Peterborough Provider Services,
Peterborough,http://opendatacommunities.org/id/unitary-authority/peterborough,Peterborough City Council,More than one Service Area Category,More than one Service Division,Balance Sheet,09/01/2012 00:00,425803,47679.1,Balance Sheet,Peterborough Provider Services,
Peterborough,http://opendatacommunities.org/id/unitary-authority/peterborough,Peterborough City Council,"Highways, Roads & Transport Services",Street Lighting,Premises,09/01/2012 00:00,425804,1814.77,REVENUE,E.ON Energy,
Peterborough,http://opendatacommunities.org/id/unitary-authority/peterborough,Peterborough City Council,Children's & Education Services - Education,Primary,Supplies and Services,09/01/2012 00:00,426368,4627.7,REVENUE,Normans,
Peterborough,http://opendatacommunities.org/id/unitary-authority/peterborough,Peterborough City Council,Children's & Education Services - Education,Primary,Supplies and Services,09/01/2012 00:00,426372,3564,REVENUE,Normans,
Peterborough,http://opendatacommunities.org/id/unitary-authority/peterborough,Peterborough City Council,Deficit/(Surplus) on Trading Undertakings,Trading Account Surpluses & Deficits,Supplies and Services,09/01/2012 00:00,426402,7282.51,REVENUE,Perkins Engines Co Ltd,
Peterborough,http://opendatacommunities.org/id/unitary-authority/peterborough,Peterborough City Council,Children's & Education Services - Children's Social Care,Support Services & Management Costs,Supplies and Services,09/01/2012 00:00,426577,729.55,REVENUE,Redacted Personal Data,
Peterborough,http://opendatacommunities.org/id/unitary-authority/peterborough,Peterborough City Council,"Highways, Roads & Transport Services",Street Lighting,Premises,09/01/2012 00:00,426632,3456.7,REVENUE,Southern Electric,
Peterborough,http://opendatacommunities.org/id/unitary-authority/peterborough,Peterborough City Council,"Highways, Roads & Transport Services",Street Lighting,Premises,09/01/2012 00:00,426634,2700.63,REVENUE,Southern Electric,
Peterborough,http://opendatacommunities.org/id/unitary-authority/peterborough,Peterborough City Council,Children's & Education Services - Children's Social Care,Support Services & Management Costs,Employees,09/01/2012 00:00,426777,1495.8,REVENUE,Do The Right Thing Ltd,
Peterborough,http://opendatacommunities.org/id/unitary-authority/peterborough,Peterborough City Council,More than one Service Area Category,More than one Service Division,More than one Expenses Type,09/01/2012 00:00,426817,191001.46,"Mixture of Capital, Revenue and/or Balance Sheet",Ringway Infrastructure Services,
Peterborough,http://opendatacommunities.org/id/unitary-authority/peterborough,Peterborough City Council,Support Services,Support Services,Supplies and Services,09/01/2012 00:00,426939,15201.3,REVENUE,Edenred,
Peterborough,http://opendatacommunities.org/id/unitary-authority/peterborough,Peterborough City Council,Support Services,Support Services,Supplies and Services,09/01/2012 00:00,426941,599.73,REVENUE,Edenred,
Peterborough,http://opendatacommunities.org/id/unitary-authority/peterborough,Peterborough City Council,Deficit/(Surplus) on Trading Undertakings,Trading Account Surpluses & Deficits,Supplies and Services,09/01/2012 00:00,426984,749.7,REVENUE,Barron Clark Castings Ltd,
Peterborough,http://opendatacommunities.org/id/unitary-authority/peterborough,Peterborough City Council,Deficit/(Surplus) on Trading Undertakings,Trading Account Surpluses & Deficits,Supplies and Services,09/01/2012 00:00,426985,844.56,REVENUE,Barron Clark Castings Ltd,
Peterborough,http://opendatacommunities.org/id/unitary-authority/peterborough,Peterborough City Council,Support Services,Support Services,Supplies and Services,09/01/2012 00:00,426990,900,REVENUE,"Szwed, Ms Elizabeth",
Peterborough,http://opendatacommunities.org/id/unitary-authority/peterborough,Peterborough City Council,Support Services,Support Services,Supplies and Services,09/01/2012 00:00,427034,5327.82,REVENUE,Browne Jacobson,
Peterborough,http://opendatacommunities.org/id/unitary-authority/peterborough,Peterborough City Council,More than one Service Area Category,More than one Service Division,More than one Expenses Type,09/01/2012 00:00,427047,3248.81,"Mixture of Capital, Revenue and/or Balance Sheet",Jones Heating Ltd,
Peterborough,http://opendatacommunities.org/id/unitary-authority/peterborough,Peterborough City Council,More than one Service Area Category,More than one Service Division,More than one Expenses Type,09/01/2012 00:00,427048,3581.22,"Mixture of Capital, Revenue and/or Balance Sheet",Jones Heating Ltd,
Peterborough,http://opendatacommunities.org/id/unitary-authority/peterborough,Peterborough City Council,Children's & Education Services - Education,Non-School Funding,Supplies and Services,09/01/2012 00:00,427049,9848,REVENUE,Hampton Pre-School,
Peterborough,http://opendatacommunities.org/id/unitary-authority/peterborough,Peterborough City Council,More than one Service Area Category,More than one Service Division,More than one Expenses Type,09/01/2012 00:00,427051,1690,"Mixture of Capital, Revenue and/or Balance Sheet",EMS Stairlifts,
Peterborough,http://opendatacommunities.org/id/unitary-authority/peterborough,Peterborough City Council,More than one Service Area Category,More than one Service Division,More than one Expenses Type,09/01/2012 00:00,427052,4565.4,"Mixture of Capital, Revenue and/or Balance Sheet",Jones Heating Ltd,
Peterborough,http://opendatacommunities.org/id/unitary-authority/peterborough,Peterborough City Council,Support Services,Support Services,Employees,11/01/2012 00:00,389339,2167.28,REVENUE,Sacco Mann Ltd,
Peterborough,http://opendatacommunities.org/id/unitary-authority/peterborough,Peterborough City Council,Children's & Education Services - Children's Social Care,Other Children's & Families Services,Supplies and Services,11/01/2012 00:00,418121,2000,REVENUE,Redacted Personal Data,
Peterborough,http://opendatacommunities.org/id/unitary-authority/peterborough,Peterborough City Council,Children's & Education Services - Children's Social Care,Children's Services - Commissioning and Social Work,Third Party Payments,11/01/2012 00:00,418830,27500,REVENUE,Cambs & P'boro NHS Foundation Trust,
Peterborough,http://opendatacommunities.org/id/unitary-authority/peterborough,Peterborough City Council,Support Services,Support Services,Employees,11/01/2012 00:00,418831,1562.14,REVENUE,Venn Group Ltd,
Peterborough,http://opendatacommunities.org/id/unitary-authority/peterborough,Peterborough City Council,Children's & Education Services - Children's Social Care,Family Support Services,Supplies and Services,11/01/2012 00:00,422238,514.92,REVENUE,Sahara Community Care Services,
Peterborough,http://opendatacommunities.org/id/unitary-authority/peterborough,Peterborough City Council,Children's & Education Services - Children's Social Care,Family Support Services,Supplies and Services,11/01/2012 00:00,422240,643.12,REVENUE,Sahara Community Care Services,
Peterborough,http://opendatacommunities.org/id/unitary-authority/peterborough,Peterborough City Council,Children's & Education Services - Children's Social Care,Family Support Services,Supplies and Services,11/01/2012 00:00,422247,1223.76,REVENUE,Sahara Community Care Services,
Peterborough,http://opendatacommunities.org/id/unitary-authority/peterborough,Peterborough City Council,Children's & Education Services - Children's Social Care,Other Children's & Families Services,Third Party Payments,11/01/2012 00:00,422636,11445.44,REVENUE,Family Action,
Peterborough,http://opendatacommunities.org/id/unitary-authority/peterborough,Peterborough City Council,Support Services,Support Services,Employees,11/01/2012 00:00,423258,502.3,REVENUE,Reed Specialist Recruitment,
Peterborough,http://opendatacommunities.org/id/unitary-authority/peterborough,Peterborough City Council,Children's & Education Services - Children's Social Care,Children Looked After,Supplies and Services - Transfer Payments,11/01/2012 00:00,423413,1771.65,REVENUE,Synergy Fostering Ltd,
Peterborough,http://opendatacommunities.org/id/unitary-authority/peterborough,Peterborough City Council,Children's & Education Services - Children's Social Care,Children Looked After,Supplies and Services - Transfer Payments,11/01/2012 00:00,423419,1714.5,REVENUE,Synergy Fostering Ltd,
Peterborough,http://opendatacommunities.org/id/unitary-authority/peterborough,Peterborough City Council,Children's & Education Services - Children's Social Care,Family Support Services,Employees,11/01/2012 00:00,423437,3547.2,REVENUE,James Leckey Design Ltd,
Peterborough,http://opendatacommunities.org/id/unitary-authority/peterborough,Peterborough City Council,Support Services,Support Services,Employees,11/01/2012 00:00,423979,1501.04,REVENUE,Venn Group Ltd,
Peterborough,http://opendatacommunities.org/id/unitary-authority/peterborough,Peterborough City Council,Support Services,Support Services,Employees,11/01/2012 00:00,423980,1327.03,REVENUE,Venn Group Ltd,
Peterborough,http://opendatacommunities.org/id/unitary-authority/peterborough,Peterborough City Council,Housing Services,Private Sector Housing Renewal,Supplies and Services,11/01/2012 00:00,423985,1687.25,REVENUE,Nightingale Services,
Peterborough,http://opendatacommunities.org/id/unitary-authority/peterborough,Peterborough City Council,"Highways, Roads & Transport Services",Public Transport,Supplies and Services,11/01/2012 00:00,423988,4633.2,REVENUE,Spacemaster Partitions Ltd,
Peterborough,http://opendatacommunities.org/id/unitary-authority/peterborough,Peterborough City Council,Children's & Education Services - Children's Social Care,Children Looked After,Employees,11/01/2012 00:00,424039,1465.2,REVENUE,Frontline Staffing Ltd,
Peterborough,http://opendatacommunities.org/id/unitary-authority/peterborough,Peterborough City Council,Planning Services,Economic Development,Employees,11/01/2012 00:00,424902,10950,REVENUE,The RSA,
Peterborough,http://opendatacommunities.org/id/unitary-authority/peterborough,Peterborough City Council,Children's & Education Services - Education,Non-School Funding,Third Party Payments,11/01/2012 00:00,424910,30750.5,REVENUE,Young Lives,
Peterborough,http://opendatacommunities.org/id/unitary-authority/peterborough,Peterborough City Council,Children's & Education Services - Children's Social Care,Other Children's & Families Services,Employees,11/01/2012 00:00,424930,1646.4,REVENUE,Swim,
Peterborough,http://opendatacommunities.org/id/unitary-authority/peterborough,Peterborough City Council,Capital,Capital,Capital Pending Update to BS,11/01/2012 00:00,424952,2204.4,CAPITAL,Ratcliff Land & Engineering Surveys,
Peterborough,http://opendatacommunities.org/id/unitary-authority/peterborough,Peterborough City Council,Children's & Education Services - Education,All Schools - apportion across sectors,Supplies and Services,11/01/2012 00:00,424975,1440,REVENUE,Tribal Education Ltd,
Peterborough,http://opendatacommunities.org/id/unitary-authority/peterborough,Peterborough City Council,"Highways, Roads & Transport Services","Environmental, Safety & Routine Maintenance",Supplies and Services,11/01/2012 00:00,424990,9588.32,REVENUE,MeteoGroup UK Ltd,
Peterborough,http://opendatacommunities.org/id/unitary-authority/peterborough,Peterborough City Council,Children's & Education Services - Children's Social Care,Children Looked After,Supplies and Services - Transfer Payments,11/01/2012 00:00,424992,2907.49,REVENUE,Foster Care Associates Ltd FCA,
Peterborough,http://opendatacommunities.org/id/unitary-authority/peterborough,Peterborough City Council,Housing Services,Homelessness,Supplies and Services,11/01/2012 00:00,425007,702.55,REVENUE,Euro RSCG Riley Ltd,
Peterborough,http://opendatacommunities.org/id/unitary-authority/peterborough,Peterborough City Council,Environmental and Regulatory Services,Waste Collection,Premises,11/01/2012 00:00,425027,3593.68,REVENUE,Viridor Waste Kent Ltd,
Peterborough,http://opendatacommunities.org/id/unitary-authority/peterborough,Peterborough City Council,Environmental and Regulatory Services,Waste Collection,Premises,11/01/2012 00:00,425030,876.95,REVENUE,Viridor Waste Kent Ltd,
Peterborough,http://opendatacommunities.org/id/unitary-authority/peterborough,Peterborough City Council,Environmental and Regulatory Services,Waste Collection,Premises,11/01/2012 00:00,425038,679.19,REVENUE,Viridor Waste Kent Ltd,
Peterborough,http://opendatacommunities.org/id/unitary-authority/peterborough,Peterborough City Council,Children's & Education Services - Children's Social Care,Other Children's & Families Services,Employees,11/01/2012 00:00,425081,712.08,REVENUE,Randstad Care Ltd,
Peterborough,http://opendatacommunities.org/id/unitary-authority/peterborough,Peterborough City Council,Children's & Education Services - Children's Social Care,Other Children's & Families Services,Employees,11/01/2012 00:00,425082,1518.8,REVENUE,Randstad Care Ltd,
Peterborough,http://opendatacommunities.org/id/unitary-authority/peterborough,Peterborough City Council,Capital,Capital,Capital Pending Update to BS,11/01/2012 00:00,425096,2160,CAPITAL,Lambert Smith Hampton,
Peterborough,http://opendatacommunities.org/id/unitary-authority/peterborough,Peterborough City Council,Capital,Capital,Capital Pending Update to BS,11/01/2012 00:00,425104,31537.87,CAPITAL,Stirling Maynard and Partners,
Peterborough,http://opendatacommunities.org/id/unitary-authority/peterborough,Peterborough City Council,Children's & Education Services - Children's Social Care,Other Children's & Families Services,Employees,11/01/2012 00:00,425108,2330.56,REVENUE,Medicare First,
Peterborough,http://opendatacommunities.org/id/unitary-authority/peterborough,Peterborough City Council,Children's & Education Services - Education,Non-School Funding,Supplies and Services,11/01/2012 00:00,425116,4500,REVENUE,Cambs & P'boro NHS Foundation Trust,
Peterborough,http://opendatacommunities.org/id/unitary-authority/peterborough,Peterborough City Council,Children's & Education Services - Education,Secondary,Employees,11/01/2012 00:00,425128,1236,REVENUE,Mana Resourcing Ltd,
Peterborough,http://opendatacommunities.org/id/unitary-authority/peterborough,Peterborough City Council,Environmental and Regulatory Services,Waste Collection,Premises,11/01/2012 00:00,425134,6396.3,REVENUE,Viridor Waste Kent Ltd,
Peterborough,http://opendatacommunities.org/id/unitary-authority/peterborough,Peterborough City Council,Environmental and Regulatory Services,Waste Collection,Premises,11/01/2012 00:00,425139,821.02,REVENUE,Viridor Waste Kent Ltd,
Peterborough,http://opendatacommunities.org/id/unitary-authority/peterborough,Peterborough City Council,Environmental and Regulatory Services,Waste Collection,Premises,11/01/2012 00:00,425160,1289.7,REVENUE,Viridor Waste Kent Ltd,
Peterborough,http://opendatacommunities.org/id/unitary-authority/peterborough,Peterborough City Council,Support Services,Support Services,Premises,11/01/2012 00:00,425191,1677.6,REVENUE,Beebys Ltd,
Peterborough,http://opendatacommunities.org/id/unitary-authority/peterborough,Peterborough City Council,Support Services,Support Services,Premises,11/01/2012 00:00,425193,730.49,REVENUE,Beebys Ltd,
Peterborough,http://opendatacommunities.org/id/unitary-authority/peterborough,Peterborough City Council,Children's & Education Services - Children's Social Care,Other Children's & Families Services,Employees,11/01/2012 00:00,425200,1637.69,REVENUE,Medicare First,
Peterborough,http://opendatacommunities.org/id/unitary-authority/peterborough,Peterborough City Council,Children's & Education Services - Children's Social Care,Children Looked After,Supplies and Services - Transfer Payments,11/01/2012 00:00,425201,17050,REVENUE,Young Options College Ltd,
Peterborough,http://opendatacommunities.org/id/unitary-authority/peterborough,Peterborough City Council,Environmental and Regulatory Services,"Cemetery, Crematorium & Mortuary Services",Supplies and Services,11/01/2012 00:00,425205,1020,REVENUE,Scribes Ltd,
Peterborough,http://opendatacommunities.org/id/unitary-authority/peterborough,Peterborough City Council,Children's & Education Services - Children's Social Care,Children Looked After,Supplies and Services - Transfer Payments,11/01/2012 00:00,425214,3556.01,REVENUE,Foster Care Associates Ltd FCA,
Peterborough,http://opendatacommunities.org/id/unitary-authority/peterborough,Peterborough City Council,Children's & Education Services - Children's Social Care,Children Looked After,Supplies and Services - Transfer Payments,11/01/2012 00:00,425215,3556.01,REVENUE,Foster Care Associates Ltd FCA,
Peterborough,http://opendatacommunities.org/id/unitary-authority/peterborough,Peterborough City Council,Capital,Capital,Capital Pending Update to BS,11/01/2012 00:00,425216,17280,CAPITAL,Quadrant Security Group Ltd,
Peterborough,http://opendatacommunities.org/id/unitary-authority/peterborough,Peterborough City Council,Capital,Capital,Capital Pending Update to BS,11/01/2012 00:00,425227,12498.79,CAPITAL,Quadrant Security Group Ltd,
Peterborough,http://opendatacommunities.org/id/unitary-authority/peterborough,Peterborough City Council,Children's & Education Services - Education,Non-School Funding,Supplies and Services,11/01/2012 00:00,425231,1100,REVENUE,Wrights Auto Services,
Peterborough,http://opendatacommunities.org/id/unitary-authority/peterborough,Peterborough City Council,Children's & Education Services - Education,All Schools - apportion across sectors,Supplies and Services,11/01/2012 00:00,425239,1058.51,REVENUE,Peterborough Tree Services Ltd,
Peterborough,http://opendatacommunities.org/id/unitary-authority/peterborough,Peterborough City Council,Planning Services,Economic Development,Premises,11/01/2012 00:00,425257,2183.25,REVENUE,Great Northern Hotel (UK) Ltd,
Peterborough,http://opendatacommunities.org/id/unitary-authority/peterborough,Peterborough City Council,Children's & Education Services - Children's Social Care,Children Looked After,Supplies and Services - Transfer Payments,11/01/2012 00:00,425262,5240.55,REVENUE,Foster Care Associates Ltd FCA,
Peterborough,http://opendatacommunities.org/id/unitary-authority/peterborough,Peterborough City Council,Children's & Education Services - Children's Social Care,Children Looked After,Supplies and Services - Transfer Payments,11/01/2012 00:00,425264,3556.01,REVENUE,Foster Care Associates Ltd FCA,
Peterborough,http://opendatacommunities.org/id/unitary-authority/peterborough,Peterborough City Council,Children's & Education Services - Children's Social Care,Children Looked After,Supplies and Services - Transfer Payments,11/01/2012 00:00,425265,2907.49,REVENUE,Foster Care Associates Ltd FCA,
Peterborough,http://opendatacommunities.org/id/unitary-authority/peterborough,Peterborough City Council,Children's & Education Services - Children's Social Care,Children Looked After,Supplies and Services - Transfer Payments,11/01/2012 00:00,425269,3556.01,REVENUE,Foster Care Associates Ltd FCA,
Peterborough,http://opendatacommunities.org/id/unitary-authority/peterborough,Peterborough City Council,Children's & Education Services - Children's Social Care,Children Looked After,Supplies and Services - Transfer Payments,11/01/2012 00:00,425270,3556.01,REVENUE,Foster Care Associates Ltd FCA,
Peterborough,http://opendatacommunities.org/id/unitary-authority/peterborough,Peterborough City Council,Children's & Education Services - Children's Social Care,Children Looked After,Supplies and Services - Transfer Payments,11/01/2012 00:00,425273,2907.49,REVENUE,Foster Care Associates Ltd FCA,
Peterborough,http://opendatacommunities.org/id/unitary-authority/peterborough,Peterborough City Council,Children's & Education Services - Children's Social Care,Children Looked After,Supplies and Services - Transfer Payments,11/01/2012 00:00,425274,3556.01,REVENUE,Foster Care Associates Ltd FCA,
Peterborough,http://opendatacommunities.org/id/unitary-authority/peterborough,Peterborough City Council,Children's & Education Services - Children's Social Care,Children Looked After,Supplies and Services - Transfer Payments,11/01/2012 00:00,425275,2907.49,REVENUE,Foster Care Associates Ltd FCA,
Peterborough,http://opendatacommunities.org/id/unitary-authority/peterborough,Peterborough City Council,More than one Service Area Category,More than one Service Division,Transport,11/01/2012 00:00,425278,613.2,REVENUE,3 Star Ambassador Taxis,
Peterborough,http://opendatacommunities.org/id/unitary-authority/peterborough,Peterborough City Council,Children's & Education Services - Education,Non-School Funding,Transport,11/01/2012 00:00,425284,2280,REVENUE,Grettons Coaches,
Peterborough,http://opendatacommunities.org/id/unitary-authority/peterborough,Peterborough City Council,Children's & Education Services - Education,Non-School Funding,Transport,11/01/2012 00:00,425285,2460,REVENUE,Grettons Coaches,
Peterborough,http://opendatacommunities.org/id/unitary-authority/peterborough,Peterborough City Council,Children's & Education Services - Education,Non-School Funding,Transport,11/01/2012 00:00,425286,2220,REVENUE,Grettons Coaches,
Peterborough,http://opendatacommunities.org/id/unitary-authority/peterborough,Peterborough City Council,Children's & Education Services - Education,Non-School Funding,Transport,11/01/2012 00:00,425287,2208,REVENUE,Grettons Coaches,
Peterborough,http://opendatacommunities.org/id/unitary-authority/peterborough,Peterborough City Council,Children's & Education Services - Education,Non-School Funding,Transport,11/01/2012 00:00,425288,2208,REVENUE,Grettons Coaches,
Peterborough,http://opendatacommunities.org/id/unitary-authority/peterborough,Peterborough City Council,Children's & Education Services - Education,Non-School Funding,Transport,11/01/2012 00:00,425289,2220,REVENUE,Grettons Coaches,
Peterborough,http://opendatacommunities.org/id/unitary-authority/peterborough,Peterborough City Council,Children's & Education Services - Education,Non-School Funding,Transport,11/01/2012 00:00,425290,2220,REVENUE,Grettons Coaches,
Peterborough,http://opendatacommunities.org/id/unitary-authority/peterborough,Peterborough City Council,Children's & Education Services - Education,Non-School Funding,Transport,11/01/2012 00:00,425291,2364,REVENUE,Grettons Coaches,
Peterborough,http://opendatacommunities.org/id/unitary-authority/peterborough,Peterborough City Council,Children's & Education Services - Education,Non-School Funding,Transport,11/01/2012 00:00,425296,1680,REVENUE,Eames Minibuses,
Peterborough,http://opendatacommunities.org/id/unitary-authority/peterborough,Peterborough City Council,Children's & Education Services - Education,Non-School Funding,Transport,11/01/2012 00:00,425297,1512,REVENUE,Eames Minibuses,
Peterborough,http://opendatacommunities.org/id/unitary-authority/peterborough,Peterborough City Council,Children's & Education Services - Children's Social Care,Children Looked After,Supplies and Services - Transfer Payments,11/01/2012 00:00,425306,2907.49,REVENUE,Foster Care Associates Ltd FCA,
Peterborough,http://opendatacommunities.org/id/unitary-authority/peterborough,Peterborough City Council,Children's & Education Services - Children's Social Care,Children Looked After,Supplies and Services - Transfer Payments,11/01/2012 00:00,425308,3556.01,REVENUE,Foster Care Associates Ltd FCA,
Peterborough,http://opendatacommunities.org/id/unitary-authority/peterborough,Peterborough City Council,Children's & Education Services - Children's Social Care,Children Looked After,Supplies and Services - Transfer Payments,11/01/2012 00:00,425310,2907.49,REVENUE,Foster Care Associates Ltd FCA,
Peterborough,http://opendatacommunities.org/id/unitary-authority/peterborough,Peterborough City Council,Support Services,Support Services,Supplies and Services,11/01/2012 00:00,425351,666,REVENUE,Key People Ltd,
Peterborough,http://opendatacommunities.org/id/unitary-authority/peterborough,Peterborough City Council,Children's & Education Services - Children's Social Care,Children Looked After,Employees,11/01/2012 00:00,425378,769.97,REVENUE,Advantage Healthcare Nursing & Care Ltd,
Peterborough,http://opendatacommunities.org/id/unitary-authority/peterborough,Peterborough City Council,Children's & Education Services - Children's Social Care,Other Children's & Families Services,Employees,11/01/2012 00:00,425380,2296.37,REVENUE,Randstad Care Ltd,
Peterborough,http://opendatacommunities.org/id/unitary-authority/peterborough,Peterborough City Council,Children's & Education Services - Education,Secondary,Supplies and Services,11/01/2012 00:00,425408,26397.6,REVENUE,Feltech Ltd,
Peterborough,http://opendatacommunities.org/id/unitary-authority/peterborough,Peterborough City Council,"Highways, Roads & Transport Services","Transport planning, policy and strategy",Supplies and Services,11/01/2012 00:00,425410,1194,REVENUE,ADC (East Anglia) Ltd,
Peterborough,http://opendatacommunities.org/id/unitary-authority/peterborough,Peterborough City Council,"Cultural, Environmental and Planning Services",Flood Defence & Land Drainage,Supplies and Services,11/01/2012 00:00,425411,40080,REVENUE,ADC (East Anglia) Ltd,
Peterborough,http://opendatacommunities.org/id/unitary-authority/peterborough,Peterborough City Council,Central Services to the Public,Local Tax,Supplies and Services,11/01/2012 00:00,425422,1223.78,REVENUE,Equita Ltd,
Peterborough,http://opendatacommunities.org/id/unitary-authority/peterborough,Peterborough City Council,Children's & Education Services - Children's Social Care,Children Looked After,Supplies and Services - Transfer Payments,11/01/2012 00:00,425438,12400,REVENUE,Continuum Care & Educ. Group.,
Peterborough,http://opendatacommunities.org/id/unitary-authority/peterborough,Peterborough City Council,Children's & Education Services - Children's Social Care,Children Looked After,Supplies and Services - Transfer Payments,11/01/2012 00:00,425439,11957.01,REVENUE,Continuum Care & Educ. Group.,
Peterborough,http://opendatacommunities.org/id/unitary-authority/peterborough,Peterborough City Council,Children's & Education Services - Education,Non-School Funding,Employees,11/01/2012 00:00,425549,1144.8,REVENUE,Mana Resourcing Ltd,
Peterborough,http://opendatacommunities.org/id/unitary-authority/peterborough,Peterborough City Council,Children's & Education Services - Education,Primary,Employees,11/01/2012 00:00,425551,1071,REVENUE,Mana Resourcing Ltd,
Peterborough,http://opendatacommunities.org/id/unitary-authority/peterborough,Peterborough City Council,Children's & Education Services - Education,Non-School Funding,Employees,11/01/2012 00:00,425553,954,REVENUE,Mana Resourcing Ltd,
Peterborough,http://opendatacommunities.org/id/unitary-authority/peterborough,Peterborough City Council,Children's & Education Services - Education,Primary,Employees,11/01/2012 00:00,425554,594,REVENUE,Mana Resourcing Ltd,
Peterborough,http://opendatacommunities.org/id/unitary-authority/peterborough,Peterborough City Council,Children's & Education Services - Education,Secondary,Employees,11/01/2012 00:00,425555,8784,REVENUE,Mana Resourcing Ltd,
Peterborough,http://opendatacommunities.org/id/unitary-authority/peterborough,Peterborough City Council,"Cultural, Environmental and Planning Services",Flood Defence & Land Drainage,Supplies and Services,11/01/2012 00:00,425594,10155,REVENUE,ADC (East Anglia) Ltd,
Peterborough,http://opendatacommunities.org/id/unitary-authority/peterborough,Peterborough City Council,Housing Services,Homelessness,Supplies and Services,11/01/2012 00:00,425606,719,REVENUE,Restover Lodge Hotel,
Peterborough,http://opendatacommunities.org/id/unitary-authority/peterborough,Peterborough City Council,Environmental and Regulatory Services,"Cemetery, Crematorium & Mortuary Services",Supplies and Services,11/01/2012 00:00,425637,589.64,REVENUE,Konica Minolta Bus.Sol. East Ltd,
Peterborough,http://opendatacommunities.org/id/unitary-authority/peterborough,Peterborough City Council,Planning Services,Community Development,Premises,11/01/2012 00:00,425641,520,REVENUE,City College Peterborough,
Peterborough,http://opendatacommunities.org/id/unitary-authority/peterborough,Peterborough City Council,Planning Services,Economic Development,Employees,11/01/2012 00:00,425687,1428.17,REVENUE,The Synergy Group,
Peterborough,http://opendatacommunities.org/id/unitary-authority/peterborough,Peterborough City Council,Planning Services,Economic Development,Employees,11/01/2012 00:00,425690,1527.3,REVENUE,The Synergy Group,
Peterborough,http://opendatacommunities.org/id/unitary-authority/peterborough,Peterborough City Council,Planning Services,Economic Development,Employees,11/01/2012 00:00,425693,1870.02,REVENUE,The Synergy Group,
Peterborough,http://opendatacommunities.org/id/unitary-authority/peterborough,Peterborough City Council,Children's & Education Services - Children's Social Care,Other Children's & Families Services,Employees,11/01/2012 00:00,425715,1292.34,REVENUE,Randstad Care Ltd,
Peterborough,http://opendatacommunities.org/id/unitary-authority/peterborough,Peterborough City Council,Children's & Education Services - Children's Social Care,Other Children's & Families Services,Employees,11/01/2012 00:00,425725,1658.78,REVENUE,Blue Group International Ltd,
Peterborough,http://opendatacommunities.org/id/unitary-authority/peterborough,Peterborough City Council,Children's & Education Services - Children's Social Care,Other Children's & Families Services,Employees,11/01/2012 00:00,425735,1894.99,REVENUE,Sanctuary Personnel Ltd,
Peterborough,http://opendatacommunities.org/id/unitary-authority/peterborough,Peterborough City Council,Children's & Education Services - Children's Social Care,Other Children's & Families Services,Employees,11/01/2012 00:00,425737,1894.99,REVENUE,Sanctuary Personnel Ltd,
Peterborough,http://opendatacommunities.org/id/unitary-authority/peterborough,Peterborough City Council,Children's & Education Services - Children's Social Care,Other Children's & Families Services,Employees,11/01/2012 00:00,425738,1894.99,REVENUE,Sanctuary Personnel Ltd,
Peterborough,http://opendatacommunities.org/id/unitary-authority/peterborough,Peterborough City Council,"Highways, Roads & Transport Services",Street Lighting,Supplies and Services,11/01/2012 00:00,425770,46129.52,REVENUE,Volker Highways MEWS Ltd,
Peterborough,http://opendatacommunities.org/id/unitary-authority/peterborough,Peterborough City Council,Support Services,Support Services,Supplies and Services,11/01/2012 00:00,425799,21743.69,REVENUE,Danwood Group Limited,
Peterborough,http://opendatacommunities.org/id/unitary-authority/peterborough,Peterborough City Council,Environmental and Regulatory Services,"Cemetery, Crematorium & Mortuary Services",Supplies and Services,11/01/2012 00:00,425834,1002,REVENUE,J G Cross,
Peterborough,http://opendatacommunities.org/id/unitary-authority/peterborough,Peterborough City Council,Children's & Education Services - Children's Social Care,Other Children's & Families Services,Employees,11/01/2012 00:00,426280,1764,REVENUE,Sellick Partnership Group Limited,
Peterborough,http://opendatacommunities.org/id/unitary-authority/peterborough,Peterborough City Council,Children's & Education Services - Children's Social Care,Other Children's & Families Services,Employees,11/01/2012 00:00,426281,1764,REVENUE,Sellick Partnership Group Limited,
Peterborough,http://opendatacommunities.org/id/unitary-authority/peterborough,Peterborough City Council,Children's & Education Services - Education,Primary,Supplies and Services,11/01/2012 00:00,426366,9863.78,REVENUE,Normans,
Peterborough,http://opendatacommunities.org/id/unitary-authority/peterborough,Peterborough City Council,More than one Service Area Category,More than one Service Division,More than one Expenses Type,11/01/2012 00:00,426383,4498,"Mixture of Capital, Revenue and/or Balance Sheet",M M Heating & Plumbing,
Peterborough,http://opendatacommunities.org/id/unitary-authority/peterborough,Peterborough City Council,More than one Service Area Category,More than one Service Division,More than one Expenses Type,11/01/2012 00:00,426386,1090,"Mixture of Capital, Revenue and/or Balance Sheet",M J Greaves,
Peterborough,http://opendatacommunities.org/id/unitary-authority/peterborough,Peterborough City Council,More than one Service Area Category,More than one Service Division,More than one Expenses Type,11/01/2012 00:00,426389,2185,"Mixture of Capital, Revenue and/or Balance Sheet",Morley Building Services,
Peterborough,http://opendatacommunities.org/id/unitary-authority/peterborough,Peterborough City Council,More than one Service Area Category,More than one Service Division,More than one Expenses Type,11/01/2012 00:00,426391,2791,"Mixture of Capital, Revenue and/or Balance Sheet",Morley Building Services,
Peterborough,http://opendatacommunities.org/id/unitary-authority/peterborough,Peterborough City Council,Planning Services,Community Development,Third Party Payments,11/01/2012 00:00,426407,500,REVENUE,Victoria Park Residents Association,
Peterborough,http://opendatacommunities.org/id/unitary-authority/peterborough,Peterborough City Council,Planning Services,Community Development,Third Party Payments,11/01/2012 00:00,426410,500,REVENUE,Zimbabwe Peterborough Community,
Peterborough,http://opendatacommunities.org/id/unitary-authority/peterborough,Peterborough City Council,More than one Service Area Category,More than one Service Division,More than one Expenses Type,11/01/2012 00:00,426412,3643,"Mixture of Capital, Revenue and/or Balance Sheet",Casbon Building Services,
Peterborough,http://opendatacommunities.org/id/unitary-authority/peterborough,Peterborough City Council,Planning Services,Community Development,Third Party Payments,11/01/2012 00:00,426413,500,REVENUE,Desi Ladies,
Peterborough,http://opendatacommunities.org/id/unitary-authority/peterborough,Peterborough City Council,Planning Services,Community Development,Third Party Payments,11/01/2012 00:00,426434,500,REVENUE,Peterborough & Fenland MIND,
Peterborough,http://opendatacommunities.org/id/unitary-authority/peterborough,Peterborough City Council,Deficit/(Surplus) on Trading Undertakings,Trading Account Surpluses & Deficits,Supplies and Services,11/01/2012 00:00,426436,1396.68,REVENUE,Eaton Ltd,
Peterborough,http://opendatacommunities.org/id/unitary-authority/peterborough,Peterborough City Council,Planning Services,Community Development,Third Party Payments,11/01/2012 00:00,426440,500,REVENUE,P'bor African Com. Organisation (PACO),
Peterborough,http://opendatacommunities.org/id/unitary-authority/peterborough,Peterborough City Council,Planning Services,Community Development,Third Party Payments,11/01/2012 00:00,426442,500,REVENUE,PARCA,
Peterborough,http://opendatacommunities.org/id/unitary-authority/peterborough,Peterborough City Council,Planning Services,Community Development,Third Party Payments,11/01/2012 00:00,426446,500,REVENUE,Chaithanya-Kerala Cultural Association,
Peterborough,http://opendatacommunities.org/id/unitary-authority/peterborough,Peterborough City Council,Capital,Capital,Capital Pending Update to BS,11/01/2012 00:00,426476,96000,CAPITAL,Ringway Infrastructure Services,
Peterborough,http://opendatacommunities.org/id/unitary-authority/peterborough,Peterborough City Council,Support Services,Support Services,Employees,11/01/2012 00:00,426541,590.94,REVENUE,Reed Specialist Recruitment,
Peterborough,http://opendatacommunities.org/id/unitary-authority/peterborough,Peterborough City Council,Support Services,Support Services,Employees,11/01/2012 00:00,426542,633.16,REVENUE,Reed Specialist Recruitment,
Peterborough,http://opendatacommunities.org/id/unitary-authority/peterborough,Peterborough City Council,Capital,Capital,Capital Pending Update to BS,11/01/2012 00:00,426581,2401.79,CAPITAL,Fitzpatrick Contractors Ltd,
Peterborough,http://opendatacommunities.org/id/unitary-authority/peterborough,Peterborough City Council,Children's & Education Services - Education,Non-School Funding,Transport,11/01/2012 00:00,426587,504,REVENUE,3 Star Ambassador Taxis,
Peterborough,http://opendatacommunities.org/id/unitary-authority/peterborough,Peterborough City Council,Children's & Education Services - Education,Non-School Funding,Transport,11/01/2012 00:00,426588,662.4,REVENUE,3 Star Ambassador Taxis,
Peterborough,http://opendatacommunities.org/id/unitary-authority/peterborough,Peterborough City Council,Children's & Education Services - Education,Non-School Funding,Transport,11/01/2012 00:00,426590,1110,REVENUE,3 Star Ambassador Taxis,
Peterborough,http://opendatacommunities.org/id/unitary-authority/peterborough,Peterborough City Council,Children's & Education Services - Education,Non-School Funding,Transport,11/01/2012 00:00,426593,900,REVENUE,3 Star Ambassador Taxis,
Peterborough,http://opendatacommunities.org/id/unitary-authority/peterborough,Peterborough City Council,Children's & Education Services - Education,Non-School Funding,Transport,11/01/2012 00:00,426594,2076,REVENUE,Newborough Coaches Ltd,
Peterborough,http://opendatacommunities.org/id/unitary-authority/peterborough,Peterborough City Council,Children's & Education Services - Education,Non-School Funding,Transport,11/01/2012 00:00,426595,1968,REVENUE,Newborough Coaches Ltd,
Peterborough,http://opendatacommunities.org/id/unitary-authority/peterborough,Peterborough City Council,More than one Service Area Category,More than one Service Division,Transport,11/01/2012 00:00,426596,2376,REVENUE,Newborough Coaches Ltd,
Peterborough,http://opendatacommunities.org/id/unitary-authority/peterborough,Peterborough City Council,Children's & Education Services - Education,Non-School Funding,Transport,11/01/2012 00:00,426597,2502.24,REVENUE,Newborough Coaches Ltd,
Peterborough,http://opendatacommunities.org/id/unitary-authority/peterborough,Peterborough City Council,Children's & Education Services - Education,Non-School Funding,Transport,11/01/2012 00:00,426598,2592,REVENUE,Newborough Coaches Ltd,
Peterborough,http://opendatacommunities.org/id/unitary-authority/peterborough,Peterborough City Council,Children's & Education Services - Education,Non-School Funding,Transport,11/01/2012 00:00,426599,1008,REVENUE,Orton Comm. Transport Assoc. Ltd,
Peterborough,http://opendatacommunities.org/id/unitary-authority/peterborough,Peterborough City Council,Children's & Education Services - Education,Non-School Funding,Transport,11/01/2012 00:00,426600,1200,REVENUE,Orton Comm. Transport Assoc. Ltd,
Peterborough,http://opendatacommunities.org/id/unitary-authority/peterborough,Peterborough City Council,Children's & Education Services - Education,Non-School Funding,Transport,11/01/2012 00:00,426601,1140,REVENUE,Orton Comm. Transport Assoc. Ltd,
Peterborough,http://opendatacommunities.org/id/unitary-authority/peterborough,Peterborough City Council,Children's & Education Services - Education,Non-School Funding,Transport,11/01/2012 00:00,426740,792,REVENUE,Peterborough Cars,
Peterborough,http://opendatacommunities.org/id/unitary-authority/peterborough,Peterborough City Council,Children's & Education Services - Education,Non-School Funding,Transport,11/01/2012 00:00,426741,726,REVENUE,Peterborough Cars,
Peterborough,http://opendatacommunities.org/id/unitary-authority/peterborough,Peterborough City Council,Children's & Education Services - Education,Non-School Funding,Transport,11/01/2012 00:00,426742,815.28,REVENUE,Peterborough Cars,
Peterborough,http://opendatacommunities.org/id/unitary-authority/peterborough,Peterborough City Council,Children's & Education Services - Education,Non-School Funding,Transport,11/01/2012 00:00,426743,763.2,REVENUE,Peterborough Cars,
Peterborough,http://opendatacommunities.org/id/unitary-authority/peterborough,Peterborough City Council,Children's & Education Services - Education,Non-School Funding,Transport,11/01/2012 00:00,426747,863.28,REVENUE,Peterborough Cars,
Peterborough,http://opendatacommunities.org/id/unitary-authority/peterborough,Peterborough City Council,Children's & Education Services - Education,Non-School Funding,Transport,11/01/2012 00:00,426750,693.46,REVENUE,Peterborough Cars,
Peterborough,http://opendatacommunities.org/id/unitary-authority/peterborough,Peterborough City Council,Children's & Education Services - Education,Non-School Funding,Transport,11/01/2012 00:00,426752,1079.28,REVENUE,Peterborough Cars,
Peterborough,http://opendatacommunities.org/id/unitary-authority/peterborough,Peterborough City Council,Children's & Education Services - Education,Non-School Funding,Transport,11/01/2012 00:00,426760,518.4,REVENUE,King Cabz,
Peterborough,http://opendatacommunities.org/id/unitary-authority/peterborough,Peterborough City Council,Children's & Education Services - Children's Social Care,Children Looked After,Employees,11/01/2012 00:00,426799,1072.8,REVENUE,Textbook Teachers,
Peterborough,http://opendatacommunities.org/id/unitary-authority/peterborough,Peterborough City Council,More than one Service Area Category,More than one Service Division,Supplies and Services,11/01/2012 00:00,426823,1476.72,REVENUE,TNT Post Midlands Ltd,
Peterborough,http://opendatacommunities.org/id/unitary-authority/peterborough,Peterborough City Council,Planning Services,Economic Development,Employees,11/01/2012 00:00,426848,676.66,REVENUE,Redacted Personal Data,
Peterborough,http://opendatacommunities.org/id/unitary-authority/peterborough,Peterborough City Council,"Highways, Roads & Transport Services",Public Transport,Supplies and Services,11/01/2012 00:00,426908,9237.34,REVENUE,National Express Ltd,
Peterborough,http://opendatacommunities.org/id/unitary-authority/peterborough,Peterborough City Council,"Highways, Roads & Transport Services",Public Transport,Supplies and Services,11/01/2012 00:00,426912,7822.6,REVENUE,Stagecoach in Peterborough,
Peterborough,http://opendatacommunities.org/id/unitary-authority/peterborough,Peterborough City Council,Court Services,Coroner's Court Service,Supplies and Services,11/01/2012 00:00,427006,1355.2,REVENUE,BDW Practice Account,
Peterborough,http://opendatacommunities.org/id/unitary-authority/peterborough,Peterborough City Council,More than one Service Area Category,More than one Service Division,Supplies and Services,11/01/2012 00:00,427010,1476.61,REVENUE,TNT Post Midlands Ltd,
Peterborough,http://opendatacommunities.org/id/unitary-authority/peterborough,Peterborough City Council,More than one Service Area Category,More than one Service Division,Balance Sheet,11/01/2012 00:00,427022,605,Balance Sheet,Whitefriars Solicitors,
Peterborough,http://opendatacommunities.org/id/unitary-authority/peterborough,Peterborough City Council,Support Services,Support Services,Supplies and Services,11/01/2012 00:00,427037,2006.96,REVENUE,Royal Mail,
Peterborough,http://opendatacommunities.org/id/unitary-authority/peterborough,Peterborough City Council,More than one Service Area Category,More than one Service Division,More than one Expenses Type,11/01/2012 00:00,427050,5655,"Mixture of Capital, Revenue and/or Balance Sheet",Morley Building Services,
Peterborough,http://opendatacommunities.org/id/unitary-authority/peterborough,Peterborough City Council,Cultural and Related Services,Tourism,Supplies and Services,11/01/2012 00:00,427064,868.5,REVENUE,Peterborough Playgoers,
Peterborough,http://opendatacommunities.org/id/unitary-authority/peterborough,Peterborough City Council,Cultural and Related Services,Tourism,Supplies and Services,11/01/2012 00:00,427096,2295.5,REVENUE,The Ticket Factory,
Peterborough,http://opendatacommunities.org/id/unitary-authority/peterborough,Peterborough City Council,Children's & Education Services - Education,Non-School Funding,Supplies and Services,11/01/2012 00:00,427099,954,REVENUE,The Learning Tree Kindergarten,
Peterborough,http://opendatacommunities.org/id/unitary-authority/peterborough,Peterborough City Council,Children's & Education Services - Education,Non-School Funding,Supplies and Services,11/01/2012 00:00,427100,660,REVENUE,Herlington Pre-School,
Peterborough,http://opendatacommunities.org/id/unitary-authority/peterborough,Peterborough City Council,More than one Service Area Category,More than one Service Division,More than one Expenses Type,11/01/2012 00:00,427104,557.36,REVENUE,Peterborough Registrars Office,
Peterborough,http://opendatacommunities.org/id/unitary-authority/peterborough,Peterborough City Council,"Highways, Roads & Transport Services","Transport planning, policy and strategy",Employees,11/01/2012 00:00,427113,-2664,REVENUE,The Synergy Group,
Peterborough,http://opendatacommunities.org/id/unitary-authority/peterborough,Peterborough City Council,Children's & Education Services - Education,Non-School Funding,Supplies and Services,11/01/2012 00:00,427124,765.6,REVENUE,A2B Euro Cars,
Peterborough,http://opendatacommunities.org/id/unitary-authority/peterborough,Peterborough City Council,Children's & Education Services - Education,Non-School Funding,Transport,11/01/2012 00:00,427125,969.6,REVENUE,A2B Euro Cars,
Peterborough,http://opendatacommunities.org/id/unitary-authority/peterborough,Peterborough City Council,Children's & Education Services - Education,Non-School Funding,Transport,11/01/2012 00:00,427126,892.8,REVENUE,A2B Euro Cars,
Peterborough,http://opendatacommunities.org/id/unitary-authority/peterborough,Peterborough City Council,Children's & Education Services - Education,Non-School Funding,Transport,11/01/2012 00:00,427127,1008,REVENUE,A2B Euro Cars,
Peterborough,http://opendatacommunities.org/id/unitary-authority/peterborough,Peterborough City Council,Children's & Education Services - Education,Non-School Funding,Transport,11/01/2012 00:00,427129,1555.2,REVENUE,A2B Euro Cars,
Peterborough,http://opendatacommunities.org/id/unitary-authority/peterborough,Peterborough City Council,Children's & Education Services - Education,Non-School Funding,Transport,11/01/2012 00:00,427130,1036.8,REVENUE,A2B Euro Cars,
Peterborough,http://opendatacommunities.org/id/unitary-authority/peterborough,Peterborough City Council,Children's & Education Services - Education,Non-School Funding,Transport,11/01/2012 00:00,427132,576,REVENUE,A2B Euro Cars,
Peterborough,http://opendatacommunities.org/id/unitary-authority/peterborough,Peterborough City Council,Children's & Education Services - Education,Non-School Funding,Transport,11/01/2012 00:00,427133,792,REVENUE,R T Enterprises Ltd T/A Royal Taxis,
Peterborough,http://opendatacommunities.org/id/unitary-authority/peterborough,Peterborough City Council,Children's & Education Services - Education,Non-School Funding,Transport,11/01/2012 00:00,427136,748.8,REVENUE,R T Enterprises Ltd T/A Royal Taxis,
Peterborough,http://opendatacommunities.org/id/unitary-authority/peterborough,Peterborough City Council,Children's & Education Services - Education,Non-School Funding,Transport,11/01/2012 00:00,427139,710.4,REVENUE,R T Enterprises Ltd T/A Royal Taxis,
Peterborough,http://opendatacommunities.org/id/unitary-authority/peterborough,Peterborough City Council,Children's & Education Services - Education,Non-School Funding,Transport,11/01/2012 00:00,427140,1152,REVENUE,Ash School Transport,
Peterborough,http://opendatacommunities.org/id/unitary-authority/peterborough,Peterborough City Council,Children's & Education Services - Education,Non-School Funding,Transport,11/01/2012 00:00,427141,648,REVENUE,Ash School Transport,
Peterborough,http://opendatacommunities.org/id/unitary-authority/peterborough,Peterborough City Council,Children's & Education Services - Education,Non-School Funding,Transport,11/01/2012 00:00,427142,900,REVENUE,Ash School Transport,
Peterborough,http://opendatacommunities.org/id/unitary-authority/peterborough,Peterborough City Council,Children's & Education Services - Education,Non-School Funding,Transport,11/01/2012 00:00,427143,1036.8,REVENUE,Peterborough Cars,
Peterborough,http://opendatacommunities.org/id/unitary-authority/peterborough,Peterborough City Council,Children's & Education Services - Education,Non-School Funding,Transport,11/01/2012 00:00,427145,1166.4,REVENUE,Peterborough Cars,
Peterborough,http://opendatacommunities.org/id/unitary-authority/peterborough,Peterborough City Council,Children's & Education Services - Education,Non-School Funding,Transport,11/01/2012 00:00,427146,503.28,REVENUE,Peterborough Cars,
Peterborough,http://opendatacommunities.org/id/unitary-authority/peterborough,Peterborough City Council,Children's & Education Services - Education,Non-School Funding,Transport,11/01/2012 00:00,427149,1710.84,REVENUE,Translinc Ltd,
Peterborough,http://opendatacommunities.org/id/unitary-authority/peterborough,Peterborough City Council,Children's & Education Services - Education,Non-School Funding,Transport,11/01/2012 00:00,427150,1434.36,REVENUE,Translinc Ltd,
Peterborough,http://opendatacommunities.org/id/unitary-authority/peterborough,Peterborough City Council,Children's & Education Services - Education,Non-School Funding,Transport,11/01/2012 00:00,427151,1521.72,REVENUE,Translinc Ltd,
Peterborough,http://opendatacommunities.org/id/unitary-authority/peterborough,Peterborough City Council,Children's & Education Services - Education,Non-School Funding,Transport,11/01/2012 00:00,427152,1478.88,REVENUE,Translinc Ltd,
Peterborough,http://opendatacommunities.org/id/unitary-authority/peterborough,Peterborough City Council,Children's & Education Services - Education,Non-School Funding,Employees,11/01/2012 00:00,427158,2500,REVENUE,Cambridgeshire County Council,
Peterborough,http://opendatacommunities.org/id/unitary-authority/peterborough,Peterborough City Council,Planning Services,Economic Development,Third Party Payments,11/01/2012 00:00,427163,23054.4,REVENUE,UK cntr for Economic & Env Dev.,
Peterborough,http://opendatacommunities.org/id/unitary-authority/peterborough,Peterborough City Council,More than one Service Area Category,More than one Service Division,More than one Expenses Type,11/01/2012 00:00,427184,924.4,REVENUE,Redacted Personal Data,
Peterborough,http://opendatacommunities.org/id/unitary-authority/peterborough,Peterborough City Council,Children's & Education Services - Children's Social Care,Children Looked After,Transport,11/01/2012 00:00,427186,1305,REVENUE,Redacted Personal Data,
Peterborough,http://opendatacommunities.org/id/unitary-authority/peterborough,Peterborough City Council,Children's & Education Services - Children's Social Care,Children Looked After,Transport,11/01/2012 00:00,427187,1219.5,REVENUE,Redacted Personal Data,
Peterborough,http://opendatacommunities.org/id/unitary-authority/peterborough,Peterborough City Council,Children's & Education Services - Children's Social Care,Children Looked After,Transport,11/01/2012 00:00,427188,786.3,REVENUE,Redacted Personal Data,
Peterborough,http://opendatacommunities.org/id/unitary-authority/peterborough,Peterborough City Council,Children's & Education Services - Children's Social Care,Children Looked After,Transport,11/01/2012 00:00,427189,522.45,REVENUE,Redacted Personal Data,
Peterborough,http://opendatacommunities.org/id/unitary-authority/peterborough,Peterborough City Council,More than one Service Area Category,More than one Service Division,Transport,11/01/2012 00:00,427209,691.2,REVENUE,A2B Euro Cars,
Peterborough,http://opendatacommunities.org/id/unitary-authority/peterborough,Peterborough City Council,Children's & Education Services - Education,Non-School Funding,Transport,11/01/2012 00:00,427210,835.2,REVENUE,A2B Euro Cars,
Peterborough,http://opendatacommunities.org/id/unitary-authority/peterborough,Peterborough City Council,More than one Service Area Category,More than one Service Division,Transport,11/01/2012 00:00,427211,993.6,REVENUE,A2B Euro Cars,
Peterborough,http://opendatacommunities.org/id/unitary-authority/peterborough,Peterborough City Council,Children's & Education Services - Education,Non-School Funding,Transport,11/01/2012 00:00,427212,705.6,REVENUE,A2B Euro Cars,
Peterborough,http://opendatacommunities.org/id/unitary-authority/peterborough,Peterborough City Council,Children's & Education Services - Education,Non-School Funding,Transport,11/01/2012 00:00,427213,844.8,REVENUE,A2B Euro Cars,
Peterborough,http://opendatacommunities.org/id/unitary-authority/peterborough,Peterborough City Council,Children's & Education Services - Education,Non-School Funding,Transport,11/01/2012 00:00,427214,1152,REVENUE,A2B Euro Cars,
Peterborough,http://opendatacommunities.org/id/unitary-authority/peterborough,Peterborough City Council,Children's & Education Services - Education,Non-School Funding,Transport,11/01/2012 00:00,427215,1152,REVENUE,A2B Euro Cars,
Peterborough,http://opendatacommunities.org/id/unitary-authority/peterborough,Peterborough City Council,Children's & Education Services - Education,Non-School Funding,Transport,11/01/2012 00:00,427216,1382.4,REVENUE,A2B Euro Cars,
Peterborough,http://opendatacommunities.org/id/unitary-authority/peterborough,Peterborough City Council,More than one Service Area Category,More than one Service Division,Transport,11/01/2012 00:00,427217,1152,REVENUE,A2B Euro Cars,
Peterborough,http://opendatacommunities.org/id/unitary-authority/peterborough,Peterborough City Council,Children's & Education Services - Education,Non-School Funding,Transport,11/01/2012 00:00,427218,664.8,REVENUE,A2B Euro Cars,
Peterborough,http://opendatacommunities.org/id/unitary-authority/peterborough,Peterborough City Council,Children's & Education Services - Education,Non-School Funding,Transport,11/01/2012 00:00,427219,662.4,REVENUE,A2B Euro Cars,
Peterborough,http://opendatacommunities.org/id/unitary-authority/peterborough,Peterborough City Council,Children's & Education Services - Education,Non-School Funding,Transport,11/01/2012 00:00,427220,633.6,REVENUE,A2B Euro Cars,
Peterborough,http://opendatacommunities.org/id/unitary-authority/peterborough,Peterborough City Council,More than one Service Area Category,More than one Service Division,Transport,11/01/2012 00:00,427222,792,REVENUE,A2B Euro Cars,
Peterborough,http://opendatacommunities.org/id/unitary-authority/peterborough,Peterborough City Council,Children's & Education Services - Education,Non-School Funding,Transport,11/01/2012 00:00,427223,1267.2,REVENUE,A2B Euro Cars,
Peterborough,http://opendatacommunities.org/id/unitary-authority/peterborough,Peterborough City Council,Children's & Education Services - Education,Non-School Funding,Transport,11/01/2012 00:00,427224,684,REVENUE,Woodgrange Travel Ltd t/a DiamondCars,
Peterborough,http://opendatacommunities.org/id/unitary-authority/peterborough,Peterborough City Council,More than one Service Area Category,More than one Service Division,Transport,11/01/2012 00:00,427226,840,REVENUE,Woodgrange Travel Ltd t/a DiamondCars,
Peterborough,http://opendatacommunities.org/id/unitary-authority/peterborough,Peterborough City Council,Children's & Education Services - Education,Non-School Funding,Transport,11/01/2012 00:00,427227,1060.8,REVENUE,Goldstar Cabs Ltd,
Peterborough,http://opendatacommunities.org/id/unitary-authority/peterborough,Peterborough City Council,Children's & Education Services - Education,Non-School Funding,Transport,11/01/2012 00:00,427229,1122,REVENUE,Goldstar Cabs Ltd,
Peterborough,http://opendatacommunities.org/id/unitary-authority/peterborough,Peterborough City Council,Children's & Education Services - Education,Non-School Funding,Transport,11/01/2012 00:00,427230,619.2,REVENUE,Goldstar Cabs Ltd,
Peterborough,http://opendatacommunities.org/id/unitary-authority/peterborough,Peterborough City Council,Children's & Education Services - Education,Non-School Funding,Transport,11/01/2012 00:00,427231,1474.83,REVENUE,Translinc Ltd,
Peterborough,http://opendatacommunities.org/id/unitary-authority/peterborough,Peterborough City Council,Children's & Education Services - Children's Social Care,Support Services & Management Costs,Supplies and Services,11/01/2012 00:00,427240,661.45,REVENUE,David Briggs Associates Ltd,
Peterborough,http://opendatacommunities.org/id/unitary-authority/peterborough,Peterborough City Council,Capital,Capital,Capital Pending Update to BS,11/01/2012 00:00,427246,54103.7,CAPITAL,R G Carter Peterborough Ltd,
Peterborough,http://opendatacommunities.org/id/unitary-authority/peterborough,Peterborough City Council,Capital,Capital,Capital Pending Update to BS,11/01/2012 00:00,427247,126586.27,CAPITAL,R G Carter Peterborough Ltd,
Peterborough,http://opendatacommunities.org/id/unitary-authority/peterborough,Peterborough City Council,Children's & Education Services - Education,Non-School Funding,Supplies and Services,11/01/2012 00:00,427254,864,REVENUE,Redacted Personal Data,
Peterborough,http://opendatacommunities.org/id/unitary-authority/peterborough,Peterborough City Council,Children's & Education Services - Children's Social Care,Support Services & Management Costs,Supplies and Services,11/01/2012 00:00,427258,709.2,REVENUE,Psychology4Law Ltd,
Peterborough,http://opendatacommunities.org/id/unitary-authority/peterborough,Peterborough City Council,Planning Services,Economic Development,Third Party Payments,11/01/2012 00:00,427267,4880,REVENUE,Peterborough Mediation,
Peterborough,http://opendatacommunities.org/id/unitary-authority/peterborough,Peterborough City Council,More than one Service Area Category,More than one Service Division,Supplies and Services,11/01/2012 00:00,427301,660,REVENUE,"Lanson, Miss Lauren",
Peterborough,http://opendatacommunities.org/id/unitary-authority/peterborough,Peterborough City Council,Children's & Education Services - Education,Non-School Funding,Employees,11/01/2012 00:00,427306,24397.22,REVENUE,Teachers Pensions,
Peterborough,http://opendatacommunities.org/id/unitary-authority/peterborough,Peterborough City Council,Capital,Capital,Capital Pending Update to BS,11/01/2012 00:00,427307,3404.89,CAPITAL,The K A Wing Group Ltd,
Peterborough,http://opendatacommunities.org/id/unitary-authority/peterborough,Peterborough City Council,Children's & Education Services - Children's Social Care,Other Children's & Families Services,Employees,11/01/2012 00:00,427308,1631.7,REVENUE,Swim,
Peterborough,http://opendatacommunities.org/id/unitary-authority/peterborough,Peterborough City Council,Children's & Education Services - Children's Social Care,Other Children's & Families Services,Employees,11/01/2012 00:00,427309,1587.6,REVENUE,Swim,
Peterborough,http://opendatacommunities.org/id/unitary-authority/peterborough,Peterborough City Council,Environmental and Regulatory Services,"Cemetery, Crematorium & Mortuary Services",Premises,11/01/2012 00:00,427325,698.85,REVENUE,Anglian Water,
Peterborough,http://opendatacommunities.org/id/unitary-authority/peterborough,Peterborough City Council,Deficit/(Surplus) on Trading Undertakings,Trading Account Surpluses & Deficits,Premises,11/01/2012 00:00,427332,1824.54,REVENUE,Npower Ltd,
Peterborough,http://opendatacommunities.org/id/unitary-authority/peterborough,Peterborough City Council,Children's & Education Services - Children's Social Care,Family Support Services,Premises,11/01/2012 00:00,427338,1027.42,REVENUE,British Gas Trading Ltd,
Peterborough,http://opendatacommunities.org/id/unitary-authority/peterborough,Peterborough City Council,Planning Services,Recreation & Sport,Premises,13/01/2012 00:00,413315,3000,REVENUE,St John's PCC,
Peterborough,http://opendatacommunities.org/id/unitary-authority/peterborough,Peterborough City Council,Children's & Education Services - Children's Social Care,Youth Justice,Supplies and Services,13/01/2012 00:00,418046,900,REVENUE,Vivacity Culture and Leisure,
Peterborough,http://opendatacommunities.org/id/unitary-authority/peterborough,Peterborough City Council,Adult Social Care,Other Adult Services,Third Party Payments,13/01/2012 00:00,421408,5568.5,REVENUE,Debenham Tie Leung (DTZ),
Peterborough,http://opendatacommunities.org/id/unitary-authority/peterborough,Peterborough City Council,Children's & Education Services - Children's Social Care,More than one Service Division,Employees,13/01/2012 00:00,422562,976.58,REVENUE,Randstad Care Ltd,
Peterborough,http://opendatacommunities.org/id/unitary-authority/peterborough,Peterborough City Council,Children's & Education Services - Children's Social Care,Family Support Services,Supplies and Services,13/01/2012 00:00,423481,2340,REVENUE,Independent Health Care Services,
Peterborough,http://opendatacommunities.org/id/unitary-authority/peterborough,Peterborough City Council,Planning Services,Recreation & Sport,Premises,13/01/2012 00:00,423558,3000,REVENUE,St John's PCC,
Peterborough,http://opendatacommunities.org/id/unitary-authority/peterborough,Peterborough City Council,Children's & Education Services - Children's Social Care,Children Looked After,Supplies and Services - Transfer Payments,13/01/2012 00:00,423698,3764.33,REVENUE,Five Rivers,
Peterborough,http://opendatacommunities.org/id/unitary-authority/peterborough,Peterborough City Council,Deficit/(Surplus) on Trading Undertakings,Trading Account Surpluses & Deficits,Premises,13/01/2012 00:00,423701,6600,REVENUE,Anglia Support Partnership,
Peterborough,http://opendatacommunities.org/id/unitary-authority/peterborough,Peterborough City Council,Children's & Education Services - Children's Social Care,Family Support Services,Supplies and Services,13/01/2012 00:00,424964,4187.5,REVENUE,Cambs & P'boro NHS Foundation Trust,
Peterborough,http://opendatacommunities.org/id/unitary-authority/peterborough,Peterborough City Council,Children's & Education Services - Children's Social Care,Children Looked After,Supplies and Services - Transfer Payments,13/01/2012 00:00,425185,6135.8,REVENUE,Credo Care Ltd,
Peterborough,http://opendatacommunities.org/id/unitary-authority/peterborough,Peterborough City Council,Deficit/(Surplus) on Trading Undertakings,Trading Account Surpluses & Deficits,Supplies and Services,13/01/2012 00:00,425252,1280.53,REVENUE,Southern Electric,
Peterborough,http://opendatacommunities.org/id/unitary-authority/peterborough,Peterborough City Council,Children's & Education Services - Education,Non-School Funding,Employees,13/01/2012 00:00,425550,763.2,REVENUE,Mana Resourcing Ltd,
Peterborough,http://opendatacommunities.org/id/unitary-authority/peterborough,Peterborough City Council,Planning Services,Community Development,Third Party Payments,13/01/2012 00:00,426397,500,REVENUE,P'Boro Bangladesh Welfare Assoc. UK,
Peterborough,http://opendatacommunities.org/id/unitary-authority/peterborough,Peterborough City Council,More than one Service Area Category,More than one Service Division,More than one Expenses Type,13/01/2012 00:00,426655,118855.12,"Mixture of Capital, Revenue and/or Balance Sheet",Ringway Infrastructure Services,
Peterborough,http://opendatacommunities.org/id/unitary-authority/peterborough,Peterborough City Council,Children's & Education Services - Children's Social Care,Children Looked After,Supplies and Services - Transfer Payments,13/01/2012 00:00,426685,690,REVENUE,PC Homes,
Peterborough,http://opendatacommunities.org/id/unitary-authority/peterborough,Peterborough City Council,Children's & Education Services - Children's Social Care,Children Looked After,Supplies and Services - Transfer Payments,13/01/2012 00:00,426686,712.99,REVENUE,PC Homes,
Peterborough,http://opendatacommunities.org/id/unitary-authority/peterborough,Peterborough City Council,Children's & Education Services - Children's Social Care,Children Looked After,Supplies and Services - Transfer Payments,13/01/2012 00:00,426688,1826.35,REVENUE,PC Homes,
Peterborough,http://opendatacommunities.org/id/unitary-authority/peterborough,Peterborough City Council,Children's & Education Services - Children's Social Care,Children Looked After,Supplies and Services - Transfer Payments,13/01/2012 00:00,426689,712.99,REVENUE,PC Homes,
Peterborough,http://opendatacommunities.org/id/unitary-authority/peterborough,Peterborough City Council,Children's & Education Services - Children's Social Care,Children Looked After,Supplies and Services - Transfer Payments,13/01/2012 00:00,426846,39613,REVENUE,Chelfham Mill School Ltd,
Peterborough,http://opendatacommunities.org/id/unitary-authority/peterborough,Peterborough City Council,Children's & Education Services - Children's Social Care,Children Looked After,Supplies and Services - Transfer Payments,13/01/2012 00:00,426878,3407.7,REVENUE,Tree House Care Fostering Solutions Ltd,
Peterborough,http://opendatacommunities.org/id/unitary-authority/peterborough,Peterborough City Council,Planning Services,Community Development,Third Party Payments,13/01/2012 00:00,427300,500,REVENUE,Khalsa Cricket Club,
Peterborough,http://opendatacommunities.org/id/unitary-authority/peterborough,Peterborough City Council,Planning Services,Community Development,Supplies and Services,13/01/2012 00:00,427302,1100,REVENUE,Barnack Parish Council,
Peterborough,http://opendatacommunities.org/id/unitary-authority/peterborough,Peterborough City Council,Planning Services,Community Development,Supplies and Services,13/01/2012 00:00,427303,500,REVENUE,Eye Parish Council,
Peterborough,http://opendatacommunities.org/id/unitary-authority/peterborough,Peterborough City Council,Deficit/(Surplus) on Trading Undertakings,Trading Account Surpluses & Deficits,Premises,13/01/2012 00:00,427330,617.1,REVENUE,E.ON Energy,
Peterborough,http://opendatacommunities.org/id/unitary-authority/peterborough,Peterborough City Council,Deficit/(Surplus) on Trading Undertakings,Trading Account Surpluses & Deficits,Supplies and Services,13/01/2012 00:00,427432,971.52,REVENUE,Barron Clark Castings Ltd,
Peterborough,http://opendatacommunities.org/id/unitary-authority/peterborough,Peterborough City Council,Deficit/(Surplus) on Trading Undertakings,Trading Account Surpluses & Deficits,Supplies and Services,13/01/2012 00:00,427433,2313,REVENUE,Barron Clark Castings Ltd,
Peterborough,http://opendatacommunities.org/id/unitary-authority/peterborough,Peterborough City Council,Deficit/(Surplus) on Trading Undertakings,Trading Account Surpluses & Deficits,Supplies and Services,13/01/2012 00:00,427434,914.94,REVENUE,Barron Clark Castings Ltd,
Peterborough,http://opendatacommunities.org/id/unitary-authority/peterborough,Peterborough City Council,"Highways, Roads & Transport Services",Public Transport,Supplies and Services,13/01/2012 00:00,427438,1234,REVENUE,Bristows Cycles,
Peterborough,http://opendatacommunities.org/id/unitary-authority/peterborough,Peterborough City Council,Central Services to the Public,Local Tax,Supplies and Services,13/01/2012 00:00,427441,1050.5,REVENUE,Financial Data Management,
Peterborough,http://opendatacommunities.org/id/unitary-authority/peterborough,Peterborough City Council,Central Services to the Public,Local Tax,Supplies and Services,13/01/2012 00:00,427442,549.82,REVENUE,Financial Data Management,
Peterborough,http://opendatacommunities.org/id/unitary-authority/peterborough,Peterborough City Council,Children's & Education Services - Children's Social Care,Children Looked After,Transport,13/01/2012 00:00,427507,1098.55,REVENUE,Redacted Personal Data,
Peterborough,http://opendatacommunities.org/id/unitary-authority/peterborough,Peterborough City Council,Children's & Education Services - Children's Social Care,Children Looked After,Transport,13/01/2012 00:00,427508,2161.35,REVENUE,Redacted Personal Data,
Peterborough,http://opendatacommunities.org/id/unitary-authority/peterborough,Peterborough City Council,Children's & Education Services - Children's Social Care,Children Looked After,Transport,13/01/2012 00:00,427512,627.3,REVENUE,Redacted Personal Data,
Peterborough,http://opendatacommunities.org/id/unitary-authority/peterborough,Peterborough City Council,Capital,Capital,Capital Pending Update to BS,13/01/2012 00:00,427553,559.9,CAPITAL,Carter Jonas,
Peterborough,http://opendatacommunities.org/id/unitary-authority/peterborough,Peterborough City Council,Planning Services,Economic Development,Supplies and Services,13/01/2012 00:00,427563,12000,REVENUE,Centre for Cities,
Peterborough,http://opendatacommunities.org/id/unitary-authority/peterborough,Peterborough City Council,Planning Services,Community Development,Third Party Payments,13/01/2012 00:00,427581,5000,REVENUE,East of England Faiths Council,
Peterborough,http://opendatacommunities.org/id/unitary-authority/peterborough,Peterborough City Council,More than one Service Area Category,More than one Service Division,Balance Sheet,13/01/2012 00:00,427583,1067.84,Balance Sheet,Cambridgeshire County Council,
Peterborough,http://opendatacommunities.org/id/unitary-authority/peterborough,Peterborough City Council,More than one Service Area Category,More than one Service Division,Balance Sheet,13/01/2012 00:00,427586,3308.59,Balance Sheet,Cambridgeshire County Council,
Peterborough,http://opendatacommunities.org/id/unitary-authority/peterborough,Peterborough City Council,Planning Services,Community Development,Third Party Payments,13/01/2012 00:00,427587,500,REVENUE,New Hope UK Charity,
Peterborough,http://opendatacommunities.org/id/unitary-authority/peterborough,Peterborough City Council,More than one Service Area Category,More than one Service Division,Balance Sheet,13/01/2012 00:00,427588,537762.88,Balance Sheet,Cambridgeshire County Council,
Peterborough,http://opendatacommunities.org/id/unitary-authority/peterborough,Peterborough City Council,More than one Service Area Category,More than one Service Division,Balance Sheet,13/01/2012 00:00,427591,201014.02,Balance Sheet,Cambridgeshire County Council,
Peterborough,http://opendatacommunities.org/id/unitary-authority/peterborough,Peterborough City Council,Planning Services,Community Development,Supplies and Services,13/01/2012 00:00,427606,574.89,REVENUE,Eye Parish Council,
Peterborough,http://opendatacommunities.org/id/unitary-authority/peterborough,Peterborough City Council,"Cultural, Environmental and Planning Services",Open Spaces,Supplies and Services,13/01/2012 00:00,427607,793.2,REVENUE,LDA Design Consulting LLP,
Peterborough,http://opendatacommunities.org/id/unitary-authority/peterborough,Peterborough City Council,Planning Services,Community Development,Supplies and Services,13/01/2012 00:00,427610,714,REVENUE,Keyprint,
Peterborough,http://opendatacommunities.org/id/unitary-authority/peterborough,Peterborough City Council,Planning Services,Economic Development,Third Party Payments,13/01/2012 00:00,427612,700,REVENUE,Castor & Ailsworth Village Hall,
Peterborough,http://opendatacommunities.org/id/unitary-authority/peterborough,Peterborough City Council,Children's & Education Services - Children's Social Care,Support Services & Management Costs,Supplies and Services,13/01/2012 00:00,427614,2750,REVENUE,Redacted Personal Data,
Peterborough,http://opendatacommunities.org/id/unitary-authority/peterborough,Peterborough City Council,Children's & Education Services - Children's Social Care,Support Services & Management Costs,Supplies and Services,13/01/2012 00:00,427615,2500,REVENUE,Redacted Personal Data,
Peterborough,http://opendatacommunities.org/id/unitary-authority/peterborough,Peterborough City Council,Children's & Education Services - Education,Non-School Funding,Supplies and Services,13/01/2012 00:00,427619,50000,REVENUE,Opportunity Peterborough,
Peterborough,http://opendatacommunities.org/id/unitary-authority/peterborough,Peterborough City Council,More than one Service Area Category,More than one Service Division,Premises,13/01/2012 00:00,427623,1433.27,REVENUE,Anglian Water,
Peterborough,http://opendatacommunities.org/id/unitary-authority/peterborough,Peterborough City Council,Children's & Education Services - Children's Social Care,More than one Service Division,Supplies and Services,13/01/2012 00:00,427667,885.76,REVENUE,Children & Families Looked After Children,
Peterborough,http://opendatacommunities.org/id/unitary-authority/peterborough,Peterborough City Council,Children's & Education Services - Children's Social Care,Children Looked After,More than one Expenses Type,13/01/2012 00:00,427671,2634.03,REVENUE,Clare Lodge Secure Unit,
Peterborough,http://opendatacommunities.org/id/unitary-authority/peterborough,Peterborough City Council,Children's & Education Services - Education,Non-School Funding,Transport,13/01/2012 00:00,427704,1371.6,REVENUE,A2B Euro Cars,
Peterborough,http://opendatacommunities.org/id/unitary-authority/peterborough,Peterborough City Council,Children's & Education Services - Education,Non-School Funding,Transport,13/01/2012 00:00,427706,2044.8,REVENUE,Woodgrange Travel Ltd t/a DiamondCars,
Peterborough,http://opendatacommunities.org/id/unitary-authority/peterborough,Peterborough City Council,Children's & Education Services - Education,Non-School Funding,Transport,13/01/2012 00:00,427707,1728,REVENUE,Woodgrange Travel Ltd t/a DiamondCars,
Peterborough,http://opendatacommunities.org/id/unitary-authority/peterborough,Peterborough City Council,Children's & Education Services - Education,Non-School Funding,Transport,13/01/2012 00:00,427708,1143,REVENUE,Woodgrange Travel Ltd t/a DiamondCars,
Peterborough,http://opendatacommunities.org/id/unitary-authority/peterborough,Peterborough City Council,Children's & Education Services - Education,Non-School Funding,Transport,13/01/2012 00:00,427709,864,REVENUE,Woodgrange Travel Ltd t/a DiamondCars,
Peterborough,http://opendatacommunities.org/id/unitary-authority/peterborough,Peterborough City Council,Children's & Education Services - Education,Non-School Funding,Transport,13/01/2012 00:00,427713,1987.2,REVENUE,Woodgrange Travel Ltd t/a DiamondCars,
Peterborough,http://opendatacommunities.org/id/unitary-authority/peterborough,Peterborough City Council,Children's & Education Services - Education,Non-School Funding,Transport,13/01/2012 00:00,427714,1036.8,REVENUE,Woodgrange Travel Ltd t/a DiamondCars,
Peterborough,http://opendatacommunities.org/id/unitary-authority/peterborough,Peterborough City Council,Children's & Education Services - Education,Non-School Funding,Transport,13/01/2012 00:00,427716,774,REVENUE,Woodgrange Travel Ltd t/a DiamondCars,
Peterborough,http://opendatacommunities.org/id/unitary-authority/peterborough,Peterborough City Council,Children's & Education Services - Education,Non-School Funding,Transport,13/01/2012 00:00,427717,849.6,REVENUE,Woodgrange Travel Ltd t/a DiamondCars,
Peterborough,http://opendatacommunities.org/id/unitary-authority/peterborough,Peterborough City Council,Children's & Education Services - Education,Non-School Funding,Transport,13/01/2012 00:00,427718,748.8,REVENUE,Woodgrange Travel Ltd t/a DiamondCars,
Peterborough,http://opendatacommunities.org/id/unitary-authority/peterborough,Peterborough City Council,Children's & Education Services - Education,Non-School Funding,Transport,13/01/2012 00:00,427719,580.8,REVENUE,Woodgrange Travel Ltd t/a DiamondCars,
Peterborough,http://opendatacommunities.org/id/unitary-authority/peterborough,Peterborough City Council,Children's & Education Services - Education,Non-School Funding,Transport,13/01/2012 00:00,427720,859.2,REVENUE,Woodgrange Travel Ltd t/a DiamondCars,
Peterborough,http://opendatacommunities.org/id/unitary-authority/peterborough,Peterborough City Council,Children's & Education Services - Education,Non-School Funding,Transport,13/01/2012 00:00,427722,2851.2,REVENUE,Goldstar Cabs Ltd,
Peterborough,http://opendatacommunities.org/id/unitary-authority/peterborough,Peterborough City Council,Children's & Education Services - Education,Non-School Funding,Transport,13/01/2012 00:00,427723,2160,REVENUE,Goldstar Cabs Ltd,
Peterborough,http://opendatacommunities.org/id/unitary-authority/peterborough,Peterborough City Council,Children's & Education Services - Education,Non-School Funding,Transport,13/01/2012 00:00,427724,1296,REVENUE,Woodgrange Travel Ltd t/a DiamondCars,
Peterborough,http://opendatacommunities.org/id/unitary-authority/peterborough,Peterborough City Council,Children's & Education Services - Education,Non-School Funding,Transport,13/01/2012 00:00,427725,1166.4,REVENUE,Woodgrange Travel Ltd t/a DiamondCars,
Peterborough,http://opendatacommunities.org/id/unitary-authority/peterborough,Peterborough City Council,Children's & Education Services - Education,Non-School Funding,Transport,13/01/2012 00:00,427726,868.8,REVENUE,King Cabz,
Peterborough,http://opendatacommunities.org/id/unitary-authority/peterborough,Peterborough City Council,Children's & Education Services - Education,Non-School Funding,Transport,13/01/2012 00:00,427727,720,REVENUE,King Cabz,
Peterborough,http://opendatacommunities.org/id/unitary-authority/peterborough,Peterborough City Council,Children's & Education Services - Education,Non-School Funding,Transport,13/01/2012 00:00,427732,1140,REVENUE,Centrebus North Ltd,
Peterborough,http://opendatacommunities.org/id/unitary-authority/peterborough,Peterborough City Council,More than one Service Area Category,More than one Service Division,Transport,13/01/2012 00:00,427735,1108.8,REVENUE,Redacted Personal Data,
Peterborough,http://opendatacommunities.org/id/unitary-authority/peterborough,Peterborough City Council,More than one Service Area Category,More than one Service Division,Transport,13/01/2012 00:00,427736,783.9,REVENUE,Redacted Personal Data,
Peterborough,http://opendatacommunities.org/id/unitary-authority/peterborough,Peterborough City Council,More than one Service Area Category,More than one Service Division,Transport,13/01/2012 00:00,427737,1375.65,REVENUE,Redacted Personal Data,
Peterborough,http://opendatacommunities.org/id/unitary-authority/peterborough,Peterborough City Council,Children's & Education Services - Children's Social Care,Children Looked After,Transport,13/01/2012 00:00,427738,1060.65,REVENUE,Redacted Personal Data,
Peterborough,http://opendatacommunities.org/id/unitary-authority/peterborough,Peterborough City Council,Children's & Education Services - Children's Social Care,Children Looked After,Transport,13/01/2012 00:00,427739,1505.7,REVENUE,Redacted Personal Data,
Peterborough,http://opendatacommunities.org/id/unitary-authority/peterborough,Peterborough City Council,Children's & Education Services - Children's Social Care,Children Looked After,More than one Expenses Type,13/01/2012 00:00,427741,694.95,REVENUE,Redacted Personal Data,
Peterborough,http://opendatacommunities.org/id/unitary-authority/peterborough,Peterborough City Council,Children's & Education Services - Children's Social Care,Children Looked After,Transport,13/01/2012 00:00,427742,607.05,REVENUE,Redacted Personal Data,
Peterborough,http://opendatacommunities.org/id/unitary-authority/peterborough,Peterborough City Council,Children's & Education Services - Children's Social Care,Children Looked After,Transport,13/01/2012 00:00,427743,502.65,REVENUE,Redacted Personal Data,
Peterborough,http://opendatacommunities.org/id/unitary-authority/peterborough,Peterborough City Council,Planning Services,Economic Development,Third Party Payments,13/01/2012 00:00,427746,5570,REVENUE,WRVS,
Peterborough,http://opendatacommunities.org/id/unitary-authority/peterborough,Peterborough City Council,Children's & Education Services - Children's Social Care,Children Looked After,Supplies and Services,13/01/2012 00:00,427748,753.89,REVENUE,Global Radio Services Ltd,
Peterborough,http://opendatacommunities.org/id/unitary-authority/peterborough,Peterborough City Council,Children's & Education Services - Children's Social Care,Children Looked After,Supplies and Services,13/01/2012 00:00,427758,970.2,REVENUE,Global Radio Services Ltd,
Peterborough,http://opendatacommunities.org/id/unitary-authority/peterborough,Peterborough City Council,Deficit/(Surplus) on Trading Undertakings,Trading Account Surpluses & Deficits,Supplies and Services,13/01/2012 00:00,427796,1156.5,REVENUE,Barron Clark Castings Ltd,
Peterborough,http://opendatacommunities.org/id/unitary-authority/peterborough,Peterborough City Council,Support Services,Support Services,Supplies and Services,13/01/2012 00:00,427808,886.5,REVENUE,Browne Jacobson,
Peterborough,http://opendatacommunities.org/id/unitary-authority/peterborough,Peterborough City Council,Support Services,Support Services,Supplies and Services,13/01/2012 00:00,427809,702,REVENUE,Browne Jacobson,
Peterborough,http://opendatacommunities.org/id/unitary-authority/peterborough,Peterborough City Council,Support Services,Support Services,Supplies and Services,13/01/2012 00:00,427810,754.2,REVENUE,Browne Jacobson,
Peterborough,http://opendatacommunities.org/id/unitary-authority/peterborough,Peterborough City Council,Environmental and Regulatory Services,Regulatory services,Supplies and Services,13/01/2012 00:00,427812,7800,REVENUE,Acclaim Safety Systems Ltd,
Peterborough,http://opendatacommunities.org/id/unitary-authority/peterborough,Peterborough City Council,Children's & Education Services - Education,Primary,Supplies and Services,13/01/2012 00:00,427839,9658.8,REVENUE,Normans,
Peterborough,http://opendatacommunities.org/id/unitary-authority/peterborough,Peterborough City Council,Children's & Education Services - Education,Non-School Funding,Transport,16/01/2012 00:00,390189,-570,REVENUE,Newborough Coaches Ltd,
Peterborough,http://opendatacommunities.org/id/unitary-authority/peterborough,Peterborough City Council,Planning Services,Economic Development,Third Party Payments,16/01/2012 00:00,411589,5570,REVENUE,WRVS,
Peterborough,http://opendatacommunities.org/id/unitary-authority/peterborough,Peterborough City Council,Children's & Education Services - Children's Social Care,Children Looked After,Supplies and Services - Transfer Payments,16/01/2012 00:00,423631,3173.45,REVENUE,IAS TACT,
Peterborough,http://opendatacommunities.org/id/unitary-authority/peterborough,Peterborough City Council,Children's & Education Services - Children's Social Care,Other Children's & Families Services,Employees,16/01/2012 00:00,424895,1479,REVENUE,Care Recruitment UK Ltd,
Peterborough,http://opendatacommunities.org/id/unitary-authority/peterborough,Peterborough City Council,Capital,Capital,Capital Pending Update to BS,16/01/2012 00:00,424981,22964.04,CAPITAL,Active Energy Ltd,
Peterborough,http://opendatacommunities.org/id/unitary-authority/peterborough,Peterborough City Council,Capital,Capital,Capital Pending Update to BS,16/01/2012 00:00,424983,26368.2,CAPITAL,Active Energy Ltd,
Peterborough,http://opendatacommunities.org/id/unitary-authority/peterborough,Peterborough City Council,Children's & Education Services - Children's Social Care,Children Looked After,Supplies and Services,16/01/2012 00:00,425219,1116.61,REVENUE,Walter Clarke EFG,
Peterborough,http://opendatacommunities.org/id/unitary-authority/peterborough,Peterborough City Council,Children's & Education Services - Children's Social Care,Other Children's & Families Services,Employees,16/01/2012 00:00,425319,1658.78,REVENUE,Blue Group International Ltd,
Peterborough,http://opendatacommunities.org/id/unitary-authority/peterborough,Peterborough City Council,Children's & Education Services - Children's Social Care,Children Looked After,Supplies and Services - Transfer Payments,16/01/2012 00:00,425322,11400,REVENUE,Lincoln House Childrens Services,
Peterborough,http://opendatacommunities.org/id/unitary-authority/peterborough,Peterborough City Council,Children's & Education Services - Children's Social Care,Other Children's & Families Services,Employees,16/01/2012 00:00,425409,1554,REVENUE,Blue Group International Ltd,
Peterborough,http://opendatacommunities.org/id/unitary-authority/peterborough,Peterborough City Council,Cultural and Related Services,Waste Collection,Supplies and Services,16/01/2012 00:00,425421,8765.86,REVENUE,H W Martin Waste Ltd,
Peterborough,http://opendatacommunities.org/id/unitary-authority/peterborough,Peterborough City Council,Capital,Capital,Capital Pending Update to BS,16/01/2012 00:00,425560,80574,CAPITAL,Geoffrey Osborne Ltd,
Peterborough,http://opendatacommunities.org/id/unitary-authority/peterborough,Peterborough City Council,Capital,Capital,Capital Pending Update to BS,16/01/2012 00:00,425598,52159.28,CAPITAL,E N Suiter & Sons Ltd,
Peterborough,http://opendatacommunities.org/id/unitary-authority/peterborough,Peterborough City Council,Support Services,Support Services,Supplies and Services,16/01/2012 00:00,425688,793.5,REVENUE,DSM (GB) Ltd,
Peterborough,http://opendatacommunities.org/id/unitary-authority/peterborough,Peterborough City Council,Children's & Education Services - Children's Social Care,Children Looked After,Supplies and Services - Transfer Payments,16/01/2012 00:00,425827,5913.25,REVENUE,Heath Farm Family Services Ltd,
Peterborough,http://opendatacommunities.org/id/unitary-authority/peterborough,Peterborough City Council,Children's & Education Services - Education,Non-School Funding,Supplies and Services,16/01/2012 00:00,426302,1320,REVENUE,Netherton Community S A,
Peterborough,http://opendatacommunities.org/id/unitary-authority/peterborough,Peterborough City Council,Deficit/(Surplus) on Trading Undertakings,Trading Account Surpluses & Deficits,Supplies and Services,16/01/2012 00:00,426374,1440,REVENUE,Wilks Head & Eve,
Peterborough,http://opendatacommunities.org/id/unitary-authority/peterborough,Peterborough City Council,Children's & Education Services - Children's Social Care,Other Children's & Families Services,Employees,16/01/2012 00:00,426403,2991.94,REVENUE,Medicare First,
Peterborough,http://opendatacommunities.org/id/unitary-authority/peterborough,Peterborough City Council,Children's & Education Services - Children's Social Care,Other Children's & Families Services,Employees,16/01/2012 00:00,426404,1530,REVENUE,Medicare First,
Peterborough,http://opendatacommunities.org/id/unitary-authority/peterborough,Peterborough City Council,Environmental and Regulatory Services,Waste Collection,Supplies and Services,16/01/2012 00:00,426435,1290,REVENUE,Duston Oils,
Peterborough,http://opendatacommunities.org/id/unitary-authority/peterborough,Peterborough City Council,Capital,Capital,Capital Pending Update to BS,16/01/2012 00:00,426437,2400,CAPITAL,Haley Sharpe Design Ltd,
Peterborough,http://opendatacommunities.org/id/unitary-authority/peterborough,Peterborough City Council,"Cultural, Environmental and Planning Services",Waste Collection,Third Party Payments,16/01/2012 00:00,426478,4800,REVENUE,AMCS UK Waste Management Solutions,
Peterborough,http://opendatacommunities.org/id/unitary-authority/peterborough,Peterborough City Council,"Cultural, Environmental and Planning Services",Waste Collection,Third Party Payments,16/01/2012 00:00,426479,2726.4,REVENUE,AMCS UK Waste Management Solutions,
Peterborough,http://opendatacommunities.org/id/unitary-authority/peterborough,Peterborough City Council,Support Services,Support Services,Supplies and Services,16/01/2012 00:00,426613,981,REVENUE,Eversheds LLP,
Peterborough,http://opendatacommunities.org/id/unitary-authority/peterborough,Peterborough City Council,Children's & Education Services - Children's Social Care,Other Children's & Families Services,Supplies and Services,16/01/2012 00:00,426770,12716,REVENUE,Progressive Care Ltd,
Peterborough,http://opendatacommunities.org/id/unitary-authority/peterborough,Peterborough City Council,Cultural and Related Services,Waste Collection,Supplies and Services,16/01/2012 00:00,427002,1860,REVENUE,G M Carnell,
Peterborough,http://opendatacommunities.org/id/unitary-authority/peterborough,Peterborough City Council,Environmental and Regulatory Services,Regulatory services,Supplies and Services,16/01/2012 00:00,427035,1981.56,REVENUE,"Richards, Mr Alan",
Peterborough,http://opendatacommunities.org/id/unitary-authority/peterborough,Peterborough City Council,Children's & Education Services - Education,Non-School Funding,Supplies and Services,16/01/2012 00:00,427205,193566.1,REVENUE,Cambridgeshire County Council,
Peterborough,http://opendatacommunities.org/id/unitary-authority/peterborough,Peterborough City Council,Support Services,Support Services,Premises,16/01/2012 00:00,427256,600,REVENUE,Dept for Work & Pensions,
Peterborough,http://opendatacommunities.org/id/unitary-authority/peterborough,Peterborough City Council,Children's & Education Services - Children's Social Care,Other Children's & Families Services,Third Party Payments,16/01/2012 00:00,427436,6600,REVENUE,Blumint,
Peterborough,http://opendatacommunities.org/id/unitary-authority/peterborough,Peterborough City Council,More than one Service Area Category,More than one Service Division,Supplies and Services,16/01/2012 00:00,427567,1008.61,REVENUE,Royal Mail,
Peterborough,http://opendatacommunities.org/id/unitary-authority/peterborough,Peterborough City Council,Planning Services,Community Development,Third Party Payments,16/01/2012 00:00,427584,500,REVENUE,Millfield Medical Centre Patients Participation Group,
Peterborough,http://opendatacommunities.org/id/unitary-authority/peterborough,Peterborough City Council,"Cultural, Environmental and Planning Services",Waste Collection,Supplies and Services,16/01/2012 00:00,427764,6104.76,REVENUE,Elliott Group Limited,
Peterborough,http://opendatacommunities.org/id/unitary-authority/peterborough,Peterborough City Council,"Cultural, Environmental and Planning Services",Waste Collection,Capital Financing Costs,16/01/2012 00:00,427769,6308.34,REVENUE,Elliott Group Limited,
Peterborough,http://opendatacommunities.org/id/unitary-authority/peterborough,Peterborough City Council,"Cultural, Environmental and Planning Services",Waste Collection,Capital Financing Costs,16/01/2012 00:00,427771,6104.76,REVENUE,Elliott Group Limited,
Peterborough,http://opendatacommunities.org/id/unitary-authority/peterborough,Peterborough City Council,Support Services,Support Services,Premises,16/01/2012 00:00,427791,1583,REVENUE,Zurich Insurance Company,
Peterborough,http://opendatacommunities.org/id/unitary-authority/peterborough,Peterborough City Council,Cultural and Related Services,Support Services & Management Costs,Third Party Payments,16/01/2012 00:00,427804,34992,REVENUE,Vivacity Culture and Leisure,
Peterborough,http://opendatacommunities.org/id/unitary-authority/peterborough,Peterborough City Council,Support Services,Support Services,Premises,16/01/2012 00:00,427838,4529.76,REVENUE,Zurich Insurance Company,
Peterborough,http://opendatacommunities.org/id/unitary-authority/peterborough,Peterborough City Council,Capital,Capital,Capital Pending Update to BS,16/01/2012 00:00,427851,51089.26,CAPITAL,Quadrant Security Group Ltd,
Peterborough,http://opendatacommunities.org/id/unitary-authority/peterborough,Peterborough City Council,Support Services,Support Services,Supplies and Services,16/01/2012 00:00,427863,1782,REVENUE,Clear Channel UK Ltd,
Peterborough,http://opendatacommunities.org/id/unitary-authority/peterborough,Peterborough City Council,More than one Service Area Category,More than one Service Division,Premises,16/01/2012 00:00,427868,54384.56,REVENUE,Southern Electric,
Peterborough,http://opendatacommunities.org/id/unitary-authority/peterborough,Peterborough City Council,Children's & Education Services - Children's Social Care,Youth Justice,Premises,16/01/2012 00:00,427872,623.61,REVENUE,British Gas Business,
Peterborough,http://opendatacommunities.org/id/unitary-authority/peterborough,Peterborough City Council,More than one Service Area Category,More than one Service Division,More than one Expenses Type,16/01/2012 00:00,427891,4359.6,"Mixture of Capital, Revenue and/or Balance Sheet",Optimum Plumbing & Heating Ltd,
Peterborough,http://opendatacommunities.org/id/unitary-authority/peterborough,Peterborough City Council,More than one Service Area Category,More than one Service Division,More than one Expenses Type,16/01/2012 00:00,427892,4150,"Mixture of Capital, Revenue and/or Balance Sheet",Obam Domestic Lift Services Ltd,
Peterborough,http://opendatacommunities.org/id/unitary-authority/peterborough,Peterborough City Council,More than one Service Area Category,More than one Service Division,More than one Expenses Type,16/01/2012 00:00,427895,5190,"Mixture of Capital, Revenue and/or Balance Sheet",Warics Ltd,
Peterborough,http://opendatacommunities.org/id/unitary-authority/peterborough,Peterborough City Council,More than one Service Area Category,More than one Service Division,More than one Expenses Type,16/01/2012 00:00,427898,4934,"Mixture of Capital, Revenue and/or Balance Sheet",P F S Builders & Contractors,
Peterborough,http://opendatacommunities.org/id/unitary-authority/peterborough,Peterborough City Council,More than one Service Area Category,More than one Service Division,More than one Expenses Type,16/01/2012 00:00,427899,3774,"Mixture of Capital, Revenue and/or Balance Sheet",P F S Builders & Contractors,
Peterborough,http://opendatacommunities.org/id/unitary-authority/peterborough,Peterborough City Council,More than one Service Area Category,More than one Service Division,More than one Expenses Type,16/01/2012 00:00,427900,4334,"Mixture of Capital, Revenue and/or Balance Sheet",Burmor Construction,
Peterborough,http://opendatacommunities.org/id/unitary-authority/peterborough,Peterborough City Council,More than one Service Area Category,More than one Service Division,More than one Expenses Type,16/01/2012 00:00,427903,1651,"Mixture of Capital, Revenue and/or Balance Sheet",S R K Engineering,
Peterborough,http://opendatacommunities.org/id/unitary-authority/peterborough,Peterborough City Council,Loss on Disposal of fixed assets,Loss on Disposal of Fixed Assets,Third Party Payments,16/01/2012 00:00,427905,4770.12,REVENUE,Morris Homes Limited,
Peterborough,http://opendatacommunities.org/id/unitary-authority/peterborough,Peterborough City Council,More than one Service Area Category,More than one Service Division,More than one Expenses Type,16/01/2012 00:00,427910,5923,"Mixture of Capital, Revenue and/or Balance Sheet",Warics Ltd,
Peterborough,http://opendatacommunities.org/id/unitary-authority/peterborough,Peterborough City Council,Support Services,Support Services & Management Costs,Supplies and Services,16/01/2012 00:00,427917,12197.95,REVENUE,Everything Everywhere Ltd,
Peterborough,http://opendatacommunities.org/id/unitary-authority/peterborough,Peterborough City Council,Support Services,Support Services & Management Costs,Supplies and Services,16/01/2012 00:00,427919,-6625.87,REVENUE,Everything Everywhere Ltd,
Peterborough,http://opendatacommunities.org/id/unitary-authority/peterborough,Peterborough City Council,Children's & Education Services - Education,Management and support services,Premises,16/01/2012 00:00,427921,1334.71,REVENUE,Eastern Shires Purchasing Organisation,
Peterborough,http://opendatacommunities.org/id/unitary-authority/peterborough,Peterborough City Council,Support Services,Support Services & Management Costs,Supplies and Services,16/01/2012 00:00,427922,-2683.19,REVENUE,Everything Everywhere Ltd,
Peterborough,http://opendatacommunities.org/id/unitary-authority/peterborough,Peterborough City Council,Children's & Education Services - Children's Social Care,Support Services & Management Costs,Supplies and Services,16/01/2012 00:00,427925,-978.78,REVENUE,Everything Everywhere Ltd,
Peterborough,http://opendatacommunities.org/id/unitary-authority/peterborough,Peterborough City Council,Children's & Education Services - Children's Social Care,Support Services & Management Costs,Supplies and Services,16/01/2012 00:00,427926,-3821.4,REVENUE,Everything Everywhere Ltd,
Peterborough,http://opendatacommunities.org/id/unitary-authority/peterborough,Peterborough City Council,Corporate & Democratic Core,Corporate Management,Supplies and Services,16/01/2012 00:00,427928,8972.17,REVENUE,Everything Everywhere Ltd,
Peterborough,http://opendatacommunities.org/id/unitary-authority/peterborough,Peterborough City Council,More than one Service Area Category,More than one Service Division,More than one Expenses Type,16/01/2012 00:00,427929,2938,"Mixture of Capital, Revenue and/or Balance Sheet",S R K Engineering,
Peterborough,http://opendatacommunities.org/id/unitary-authority/peterborough,Peterborough City Council,Corporate & Democratic Core,Corporate Management,Supplies and Services,16/01/2012 00:00,427930,-514.58,REVENUE,Everything Everywhere Ltd,
